Workbook

Sheet Cover
A1: =RIGHT(CELL("filename", $A$1), LEN(CELL("filename", $A$1)) - SEARCH("]", CELL("filename", $A$1))) -> Cover
B3: Raw Water Deterioration
B5: Model code: | C5: PR24CA33
B6: Version number: | C6: 4
B7: File name: | C7: =MID(CELL("filename"), FIND("[", CELL("filename"), 1) + 1, FIND("]", CELL("filename"), 1) - FIND("[", CELL("filename"), 1) - 1) -> PR24 FD CA33 Water - Raw water deterioration; enhancement expenditure model_redacted v4.xlsm
B8: Date: | C8: 2025-08-01
B10: For enquiries please contact: | C10: PR24@ofwat.gov.uk
B28: Contents:
B30: Tab name | C30: Description
B31: Change Log | C31: Changes made to model since submission of the Final Determination
B32: F_Inputs BP | C32: Inputs from relevant PR24 business plan tables
B33: F_Inputs SDEff | C33: Company shallow dive efficiency challenges
B34: Water_totex | C34: Summary of overall water TOTEX by company
B35: F_Input_override | C35: Reallocations and query cost amendments
B36: Consolidated input | C36: Consolidated costs
B37: Final input | C37: Final input costs for assessment
B38: Representation Overview | C38: Overview by company, scheme, DWI ref, costs, assessment approach
B39: Representation Req. Summary | C39: Requested schemes TOTEX amounts across different types for FD
B40: Representation All. Summary | C40: Allowed scheme TOTEX amounts across different types for FD
B41: Deep Dive Sheets | C41: Individual deep dive summaries by company and scheme
B42: Allowance | C42: Final allowances for Raw Water Deterioration
B43: Outputs to aggregator | C43: Summary of proposed costs and calculation of allowances
B44: F-Outputs | C44: Final outputs
B45: Post Adj & FS Allowances | C45: Post adjustment and final allowances
B46: PCD Calculations | C46: Price Control Deliverables calculation summary

Sheet Flow chart
A1: =RIGHT(CELL("filename", A1), LEN(CELL("filename", A1)) - SEARCH("]", CELL("filename", A1))) -> Flow chart
A3: Conceptual model
A49: End of sheet

Sheet Change Log
A1: Company | B1: Scheme Name | C1: DWI Notice Reference | D1: DD Requested Totex (£m) | E1: Type | F1: FD Assessed TOTEX (£m) | G1: FD Allowance (£m) - Erroneous | H1: FD Allowance (£m) - Corrected | I1: Difference (£m) | J1: Difference Total (£m) | K1: Description | L1: Material? Y/N | M1: Corrected? Y/N
A2: SRN | B2: Stanhope Lodge | C2: SRN-2023-00007 | D2: 2.055 | E2: Shallow Dive | F2: =D2*0.95 -> 1.95225 | G2: 1.644 | H2: =F2*0.9 -> 1.757025 | I2: =H2-G2 -> 0.113025 | J2: =SUM(I2:I9) -> 1.45783 | K2: New shallow dive efficiency challenge (10%) applied. Previously using challenge from DD (20%) in error. PCD calculations have not been updated to reflect updated allowances. We will update them when we have updated models for all changes we intend to make, rerun all models and have final post frontier shift and real price effects allowances from the enhancement aggregator. | L2: Y | M2: Y
A3: SRN | B3: Keycol | C3: SRN-2023-00014 | D3: 1.404 | E3: Shallow Dive | F3: 1.3338 | G3: 1.1232 | H3: =F3*0.9 -> 1.20042 | I3: =H3-G3 -> 0.07722 | K3: New shallow dive efficiency challenge (10%) applied. Previously using challenge from DD (20%) in error. PCD calculations have not been updated to reflect updated allowances. We will update them when we have updated models for all changes we intend to make, rerun all models and have final post frontier shift and real price effects allowances from the enhancement aggregator. | L3: Y | M3: Y
A4: SRN | B4: Hazells | C4: SRN-2023-00009 | D4: 1.24 | E4: Shallow Dive | F4: 1.178 | G4: 0.992 | H4: 1.0602 | I4: 0.0682 | K4: New shallow dive efficiency challenge (10%) applied. Previously using challenge from DD (20%) in error. PCD calculations have not been updated to reflect updated allowances. We will update them when we have updated models for all changes we intend to make, rerun all models and have final post frontier shift and real price effects allowances from the enhancement aggregator. | L4: Y | M4: Y
A5: SRN | B5: Sutton | C5: SRN-2022-00016 | D5: 3.488 | E5: Shallow Dive | F5: 3.3136 | G5: 2.7904 | H5: 2.98224 | I5: 0.19184 | K5: New shallow dive efficiency challenge (10%) applied. Previously using challenge from DD (20%) in error. PCD calculations have not been updated to reflect updated allowances. We will update them when we have updated models for all changes we intend to make, rerun all models and have final post frontier shift and real price effects allowances from the enhancement aggregator. | L5: Y | M5: Y
A6: SRN | B6: Brede | C6: SRN-2022-00016 | D6: 3.621 | E6: Shallow Dive | F6: 3.43995 | G6: 2.8968 | H6: 3.095955 | I6: 0.199155 | K6: New shallow dive efficiency challenge (10%) applied. Previously using challenge from DD (20%) in error. PCD calculations have not been updated to reflect updated allowances. We will update them when we have updated models for all changes we intend to make, rerun all models and have final post frontier shift and real price effects allowances from the enhancement aggregator. | L6: Y | M6: Y
A7: SRN | B7: Beauport | C7: SRN-2022-00016 | D7: 4.699 | E7: Shallow Dive | F7: 4.46405 | G7: 3.7592 | H7: 4.017645 | I7: 0.258445 | K7: New shallow dive efficiency challenge (10%) applied. Previously using challenge from DD (20%) in error. PCD calculations have not been updated to reflect updated allowances. We will update them when we have updated models for all changes we intend to make, rerun all models and have final post frontier shift and real price effects allowances from the enhancement aggregator. | L7: Y | M7: Y
A8: SRN | B8: Andover | C8: SRN-2022-00016 | D8: 5.38 | E8: Shallow Dive | F8: 5.111 | G8: 4.304 | H8: 4.5999 | I8: 0.2959 | K8: New shallow dive efficiency challenge (10%) applied. Previously using challenge from DD (20%) in error. PCD calculations have not been updated to reflect updated allowances. We will update them when we have updated models for all changes we intend to make, rerun all models and have final post frontier shift and real price effects allowances from the enhancement aggregator. | L8: Y | M8: Y
A9: SRN | B9: Balsdean | C9: SRN-2022-00016 | D9: 4.619 | E9: Shallow Dive | F9: 4.38805 | G9: 3.6952 | H9: 3.949245 | I9: 0.254045 | K9: New shallow dive efficiency challenge (10%) applied. Previously using challenge from DD (20%) in error. PCD calculations have not been updated to reflect updated allowances. We will update them when we have updated models for all changes we intend to make, rerun all models and have final post frontier shift and real price effects allowances from the enhancement aggregator. | L9: Y | M9: Y
A10: SRN | B10: Transitional | C10: N/A | D10: N/A | E10: N/A | F10: 0 | G10: 0 | H10: 3.024 | I10: 3.024 | J10: =I10 -> 3.024 | K10: No change made as no material impact on allowances | L10: N | M10: N
A11: ANH | B11: Beck Row WTW PFAS | C11: ANH-2023-00017 | D11: 5.2 | E11: Shallow Dive | F11: 5.2 | G11: 4.784 | H11: 5.2 | I11: 0.416 | J11: =SUM(I11:I12) -> 0.71744 | K11: PFAS related scheme therefore full costs allowed. Previously was challenged, now corrected. PCD calculations have not been updated to reflect updated allowances. We will update them when we have updated models for all changes we intend to make, rerun all models and have final post frontier shift and real price effects allowances from the enhancement aggregator. | L11: Y | M11: Y
A12: ANH | B12: PFAS Strategy | C12: ANH-2023-00022 | D12: 3.768 | E12: Shallow Dive | F12: 3.768 | G12: 3.46656 | H12: 3.768 | I12: 0.30144 | K12: PFAS related scheme therefore full costs allowed. Previously was challenged, now corrected. PCD calculations have not been updated to reflect updated allowances. We will update them when we have updated models for all changes we intend to make, rerun all models and have final post frontier shift and real price effects allowances from the enhancement aggregator. | L12: Y | M12: Y
A13: WSH | B13: Mayhill | C13: DWR-2023-0003 | D13: 2.91 | E13: Shallow Dive | F13: 2.91 | G13: N/A | H13: N/A | I13: N/A | J13: N/A | K13: Mayhill WTW legal instrument reference updated to DWR-2023-0003, previous notice did not apply to this site. | L13: N | M13: Y
A14: WSH | B14: Mayhill WTW | C14: DWR-2023-0003 | D14: 1.412 | E14: UV Modelling Cost | F14: 1.412 | G14: N/A | H14: N/A | I14: N/A | J14: N/A | K14: Mayhill WTW legal instrument reference updated to DWR-2023-0003, previous notice did not apply to this site. | L14: N | M14: Y
A15: WSH | B15: Bontgoch and Pendine WTW | C15: DWR-2022-00004 (Pendine) DWR-2024-00009 (Bontgoch) | D15: 5.701 | E15: Shallow Dive | F15: 5.701 | G15: N/A | H15: N/A | I15: N/A | J15: N/A | K15: Bontgoch WTW legal instrument reference updated to DWR-2024-00009, previous notice did not apply to this site. | L15: N | M15: Y
A16: ANH | B16: Barrow WTW PFAS (GAC) | C16: ANH-2024-00002 | D16: N/A | E16: Deep Dive | F16: =27.867+0.82 -> 28.687 | G16: =27.867 -> 27.867 | H16: 28.687 | I16: =H16-G16 -> 0.82 | J16: 0.82 | K16: Uplift of allowance for Barrow WTW (GAC) - uplift of £0.82m. OPEX costs associated with schemes - prompted by company query stating they were missing at FD. | L16: Y | M16: Y
A17: ANH | B17: Warren Hill Reservoir/ Southfields WTW PFAS (GAC) | C17: ANH-2024-00001 | D17: N/A | E17: Deep Dive | F17: =14.057+0.12 -> 14.177 | G17: =14.057 -> 14.057 | H17: 14.177 | I17: 0.12 | J17: 0.18 | K17: Uplift of allowance for Warren Hill Reservoir/ Southfields WTW (GAC) - uplift of £0.18m. OPEX costs associated with schemes - prompted by company query stating they were missing at FD. | L17: Y | M17: Y
A18: ANH | B18: Barrow WTW PFAS (GAC) | C18: ANH-2024-00002 | D18: N/A | E18: Deep Dive | F18: =27.867+0.82 -> 28.687 | G18: =27.867 -> 27.867 | H18: 28.687 | I18: =H18-G18 -> 0.82 | J18: 0.82 | K18: Update of Pre FS Allowance for this scheme following correction | L18: Y | M18: Y
A19: ANH | B19: Warren Hill Reservoir/ Southfields WTW PFAS (GAC) | C19: ANH-2024-00001 | D19: N/A | E19: Deep Dive | F19: =14.057+0.12 -> 14.177 | G19: =14.057 -> 14.057 | H19: 14.177 | I19: 0.12 | J19: 0.18 | K19: Update of Pre FS Allowance for this scheme following correction | L19: Y | M19: Y
A20: ANH | B20: Beck Row WTW PFAS | C20: ANH-2023-00017 | D20: 5.2 | E20: Shallow Dive | F20: 5.2 | G20: 4.784 | H20: 5.2 | I20: 0.416 | J20: =SUM(I20:I21) -> 0.71744 | K20: Update of Pre FS Allowance for this scheme following correction | L20: Y | M20: Y
A21: ANH | B21: PFAS Strategy | C21: ANH-2023-00022 | D21: 3.768 | E21: Shallow Dive | F21: 3.768 | G21: 3.46656 | H21: 3.768 | I21: 0.30144 | K21: Update of Pre FS Allowance for this scheme following correction | L21: Y | M21: Y
A22: SRN | B22: Stanhope Lodge | C22: SRN-2023-00007 | D22: 2.055 | E22: Shallow Dive | F22: =D22*0.95 -> 1.95225 | G22: 1.644 | H22: =F22*0.9 -> 1.757025 | I22: =H22-G22 -> 0.113025 | J22: =SUM(I22:I29) -> 1.45783 | K22: Update of Pre FS Allowance for this scheme following correction | L22: Y | M22: Y
A23: SRN | B23: Keycol | C23: SRN-2023-00014 | D23: 1.404 | E23: Shallow Dive | F23: 1.3338 | G23: 1.1232 | H23: =F23*0.9 -> 1.20042 | I23: =H23-G23 -> 0.07722 | K23: Update of Pre FS Allowance for this scheme following correction | L23: Y | M23: Y
A24: SRN | B24: Hazells | C24: SRN-2023-00009 | D24: 1.24 | E24: Shallow Dive | F24: 1.178 | G24: 0.992 | H24: 1.0602 | I24: 0.0682 | K24: Update of Pre FS Allowance for this scheme following correction | L24: Y | M24: Y
A25: SRN | B25: Sutton | C25: SRN-2022-00016 | D25: 3.488 | E25: Shallow Dive | F25: 3.3136 | G25: 2.7904 | H25: 2.98224 | I25: 0.19184 | K25: Update of Pre FS Allowance for this scheme following correction | L25: Y | M25: Y
A26: SRN | B26: Brede | C26: SRN-2022-00016 | D26: 3.621 | E26: Shallow Dive | F26: 3.43995 | G26: 2.8968 | H26: 3.095955 | I26: 0.199155 | K26: Update of Pre FS Allowance for this scheme following correction | L26: Y | M26: Y
A27: SRN | B27: Beauport | C27: SRN-2022-00016 | D27: 4.699 | E27: Shallow Dive | F27: 4.46405 | G27: 3.7592 | H27: 4.017645 | I27: 0.258445 | K27: Update of Pre FS Allowance for this scheme following correction | L27: Y | M27: Y
A28: SRN | B28: Andover | C28: SRN-2022-00016 | D28: 5.38 | E28: Shallow Dive | F28: 5.111 | G28: 4.304 | H28: 4.5999 | I28: 0.2959 | K28: Update of Pre FS Allowance for this scheme following correction | L28: Y | M28: Y
A29: SRN | B29: Balsdean | C29: SRN-2022-00016 | D29: 4.619 | E29: Shallow Dive | F29: 4.38805 | G29: 3.6952 | H29: 3.949245 | I29: 0.254045 | K29: Update of Pre FS Allowance for this scheme following correction | L29: Y | M29: Y

Sheet Inputs >>

Sheet F_Inputs BP
A1: =RIGHT(CELL("filename", $A$1), LEN(CELL("filename", $A$1)) - SEARCH("]", CELL("filename", $A$1))) -> F_Inputs BP
C2: RWD Run 11 | E2: Run on 04 Sep 2024 11:50
A3: Acronym | B3: Reference | C3: Item description | D3: Unit | E3: Model | F3: 2023-24 | G3: 2024-25 | H3: 2025-26 | I3: 2026-27 | J3: 2027-28 | K3: 2028-29 | L3: 2029-30
F5: Price Review 2024 | G5: Price Review 2024 | H5: Price Review 2024 | I5: Price Review 2024 | J5: Price Review 2024 | K5: Price Review 2024 | L5: Price Review 2024
F6: Run 11 - PR24 FD Data | G6: Run 11 - PR24 FD Data | H6: Run 11 - PR24 FD Data | I6: Run 11 - PR24 FD Data | J6: Run 11 - PR24 FD Data | K6: Run 11 - PR24 FD Data | L6: Run 11 - PR24 FD Data
F7: Latest | G7: Latest | H7: Latest | I7: Latest | J7: Latest | K7: Latest | L7: Latest
A8: ANH | B8: CW3_099TOT_PR24 | C8: Water quality improvements - Addressing raw water quality deterioration (grey solutions); ; enhancement totex - Total | D8: £m | E8: Price Review 2024 | F8: 2.165353026 | G8: 0.19 | H8: 6.88 | I8: 22.057 | J8: 27.79 | K8: 31.389 | L8: 16.658 | M8: =IF(ISNUMBER(L8),SUM(H8:L8),SUM(F8:G8)) -> 104.774 | N8: =IF(OR(M8=0,M8=""),"","Final Input (Pre Reallocations)") -> Final Input (Pre Reallocations)
A9: ANH | B9: CW3_102TOT_PR24 | C9: Water quality improvements - Addressing raw water quality deterioration (green solutions); enhancement totex - Total | D9: £m | E9: Price Review 2024 | F9: 0 | G9: 0 | H9: 0 | I9: 0 | J9: 0 | K9: 0 | L9: 0 | M9: =IF(ISNUMBER(L9),SUM(H9:L9),SUM(F9:G9)) -> 0 | N9: =IF(OR(M9=0,M9=""),"","Final Input (Pre Reallocations)") -> 
A10: ANH | B10: CW12_096TOT_PR24 | C10: Water quality improvements - Addressing raw water quality deterioration (grey solutions); ; enhancement totex - Total | D10: £m | E10: Price Review 2024 | F10: 0 | G10: 0 | M10: 0
A11: ANH | B11: CW12_099TOT_PR24 | C11: Water quality improvements - Addressing raw water quality deterioration (green solutions); enhancement totex - Total | D11: £m | E11: Price Review 2024 | F11: 0 | G11: 0 | M11: 0
A12: ANH | B12: CW17_096TOT_PR24 | C12: Water quality improvements - Addressing raw water quality deterioration (grey solutions); ; enhancement totex - Total | D12: £m | E12: Price Review 2024 | F12: 0 | G12: 0 | H12: 0 | I12: 0 | J12: 0 | K12: 0 | L12: 0 | M12: 0
A13: ANH | B13: CW17_099TOT_PR24 | C13: Water quality improvements - Addressing raw water quality deterioration (green solutions); enhancement totex - Total | D13: £m | E13: Price Review 2024 | F13: 0 | G13: 0 | H13: 0 | I13: 0 | J13: 0 | K13: 0 | L13: 0 | M13: 0
A14: WSH | B14: CW3_099TOT_PR24 | C14: Water quality improvements - Addressing raw water quality deterioration (grey solutions); ; enhancement totex - Total | D14: £m | E14: Price Review 2024 | F14: 0 | G14: 0 | H14: 10.456 | I14: 12.066 | J14: 10.712 | K14: 9.027 | L14: 3.677 | M14: 45.938 | N14: Final Input (Pre Reallocations)
A15: WSH | B15: CW3_102TOT_PR24 | C15: Water quality improvements - Addressing raw water quality deterioration (green solutions); enhancement totex - Total | D15: £m | E15: Price Review 2024 | F15: 0.4983520575 | G15: 0.513 | H15: 1.304 | I15: 1.283 | J15: 1.285 | K15: 1.294 | L15: 1.31 | M15: 6.476 | N15: Final Input (Pre Reallocations)
A16: WSH | B16: CW12_096TOT_PR24 | C16: Water quality improvements - Addressing raw water quality deterioration (grey solutions); ; enhancement totex - Total | D16: £m | E16: Price Review 2024 | F16: 0 | G16: 0 | M16: 0
A17: WSH | B17: CW12_099TOT_PR24 | C17: Water quality improvements - Addressing raw water quality deterioration (green solutions); enhancement totex - Total | D17: £m | E17: Price Review 2024 | F17: 0 | G17: 0 | M17: 0
A18: WSH | B18: CW17_096TOT_PR24 | C18: Water quality improvements - Addressing raw water quality deterioration (grey solutions); ; enhancement totex - Total | D18: £m | E18: Price Review 2024 | F18: 0 | G18: 0 | H18: 0 | I18: 0 | J18: 0 | K18: 0 | L18: 0 | M18: 0
A19: WSH | B19: CW17_099TOT_PR24 | C19: Water quality improvements - Addressing raw water quality deterioration (green solutions); enhancement totex - Total | D19: £m | E19: Price Review 2024 | F19: 0 | G19: 0 | H19: 0 | I19: 0 | J19: 0 | K19: 0 | L19: 0 | M19: 0
A20: HDD | B20: CW3_099TOT_PR24 | C20: Water quality improvements - Addressing raw water quality deterioration (grey solutions); ; enhancement totex - Total | D20: £m | E20: Price Review 2024 | F20: 0 | G20: 0.4816067968 | H20: 0 | I20: 0 | J20: 0 | K20: 0 | L20: 0 | M20: 0
A21: HDD | B21: CW3_102TOT_PR24 | C21: Water quality improvements - Addressing raw water quality deterioration (green solutions); enhancement totex - Total | D21: £m | E21: Price Review 2024 | F21: 0 | G21: 0 | H21: 0 | I21: 0 | J21: 0 | K21: 0 | L21: 0 | M21: 0
A22: HDD | B22: CW12_096TOT_PR24 | C22: Water quality improvements - Addressing raw water quality deterioration (grey solutions); ; enhancement totex - Total | D22: £m | E22: Price Review 2024 | F22: 0 | G22: 0 | M22: 0
A23: HDD | B23: CW12_099TOT_PR24 | C23: Water quality improvements - Addressing raw water quality deterioration (green solutions); enhancement totex - Total | D23: £m | E23: Price Review 2024 | F23: 0 | G23: 0 | M23: 0
A24: HDD | B24: CW17_096TOT_PR24 | C24: Water quality improvements - Addressing raw water quality deterioration (grey solutions); ; enhancement totex - Total | D24: £m | E24: Price Review 2024 | F24: 0 | G24: 0 | H24: 0 | I24: 0 | J24: 0 | K24: 0 | L24: 0 | M24: 0
A25: HDD | B25: CW17_099TOT_PR24 | C25: Water quality improvements - Addressing raw water quality deterioration (green solutions); enhancement totex - Total | D25: £m | E25: Price Review 2024 | F25: 0 | G25: 0 | H25: 0 | I25: 0 | J25: 0 | K25: 0 | L25: 0 | M25: 0
A26: NES | B26: CW3_099TOT_PR24 | C26: Water quality improvements - Addressing raw water quality deterioration (grey solutions); ; enhancement totex - Total | D26: £m | E26: Price Review 2024 | F26: 7.205 | G26: 13.083 | H26: 3.43 | I26: 3.43 | J26: 0.397 | K26: 0.397 | L26: 0.397 | M26: 8.051 | N26: Final Input (Pre Reallocations)
A27: NES | B27: CW3_102TOT_PR24 | C27: Water quality improvements - Addressing raw water quality deterioration (green solutions); enhancement totex - Total | D27: £m | E27: Price Review 2024 | F27: 0 | G27: 0 | H27: 0 | I27: 0 | J27: 0 | K27: 0 | L27: 0 | M27: 0
A28: NES | B28: CW12_096TOT_PR24 | C28: Water quality improvements - Addressing raw water quality deterioration (grey solutions); ; enhancement totex - Total | D28: £m | E28: Price Review 2024 | F28: 0 | G28: 0 | M28: 0
A29: NES | B29: CW12_099TOT_PR24 | C29: Water quality improvements - Addressing raw water quality deterioration (green solutions); enhancement totex - Total | D29: £m | E29: Price Review 2024 | F29: 0 | G29: 0 | M29: 0
A30: NES | B30: CW17_096TOT_PR24 | C30: Water quality improvements - Addressing raw water quality deterioration (grey solutions); ; enhancement totex - Total | D30: £m | E30: Price Review 2024 | F30: 0 | G30: 0 | H30: 0 | I30: 0 | J30: 0 | K30: 0 | L30: 0 | M30: 0
A31: NES | B31: CW17_099TOT_PR24 | C31: Water quality improvements - Addressing raw water quality deterioration (green solutions); enhancement totex - Total | D31: £m | E31: Price Review 2024 | F31: 0 | G31: 0 | H31: 0 | I31: 0 | J31: 0 | K31: 0 | L31: 0 | M31: 0
A32: SVE | B32: CW3_099TOT_PR24 | C32: Water quality improvements - Addressing raw water quality deterioration (grey solutions); ; enhancement totex - Total | D32: £m | E32: Price Review 2024 | F32: 17.404 | G32: 43.36614586 | H32: 42.7984125 | I32: 40.32453277 | J32: 113.0104954 | K32: 120.3234156 | L32: 112.9296508 | M32: 429.3865071 | N32: Final Input (Pre Reallocations)
A33: SVE | B33: CW3_102TOT_PR24 | C33: Water quality improvements - Addressing raw water quality deterioration (green solutions); enhancement totex - Total | D33: £m | E33: Price Review 2024 | F33: 0 | G33: 0.2727510946 | H33: 3.887081326 | I33: 3.911372479 | J33: 3.991472933 | K33: 4.07251604 | L33: 4.097286671 | M33: 19.95972945 | N33: Final Input (Pre Reallocations)
A34: SVE | B34: CW12_096TOT_PR24 | C34: Water quality improvements - Addressing raw water quality deterioration (grey solutions); ; enhancement totex - Total | D34: £m | E34: Price Review 2024 | F34: 0 | G34: 13.078 | M34: 13.078 | N34: Final Input (Pre Reallocations)
A35: SVE | B35: CW12_099TOT_PR24 | C35: Water quality improvements - Addressing raw water quality deterioration (green solutions); enhancement totex - Total | D35: £m | E35: Price Review 2024 | F35: 0 | G35: 0.2727510946 | M35: 0.2727510946 | N35: Final Input (Pre Reallocations)
A36: SVE | B36: CW17_096TOT_PR24 | C36: Water quality improvements - Addressing raw water quality deterioration (grey solutions); ; enhancement totex - Total | D36: £m | E36: Price Review 2024 | F36: 0 | G36: 0 | H36: 0 | I36: 0 | J36: 0 | K36: 0 | L36: 0 | M36: 0
A37: SVE | B37: CW17_099TOT_PR24 | C37: Water quality improvements - Addressing raw water quality deterioration (green solutions); enhancement totex - Total | D37: £m | E37: Price Review 2024 | F37: 0 | G37: 0 | H37: 0 | I37: 0 | J37: 0 | K37: 0 | L37: 0 | M37: 0
A38: SWB | B38: CW3_099TOT_PR24 | C38: Water quality improvements - Addressing raw water quality deterioration (grey solutions); ; enhancement totex - Total | D38: £m | E38: Price Review 2024 | F38: 46.553 | G38: 43.04 | H38: 20.620788 | I38: 14.055048 | J38: 5.791971 | K38: 6.772279 | L38: 6.772279 | M38: 54.012365 | N38: Final Input (Pre Reallocations)
A39: SWB | B39: CW3_102TOT_PR24 | C39: Water quality improvements - Addressing raw water quality deterioration (green solutions); enhancement totex - Total | D39: £m | E39: Price Review 2024 | F39: 2.411 | G39: 0 | H39: 0 | I39: 0 | J39: 0 | K39: 0 | L39: 0 | M39: 0
A40: SWB | B40: CW12_096TOT_PR24 | C40: Water quality improvements - Addressing raw water quality deterioration (grey solutions); ; enhancement totex - Total | D40: £m | E40: Price Review 2024 | F40: 0 | G40: 0 | M40: 0
A41: SWB | B41: CW12_099TOT_PR24 | C41: Water quality improvements - Addressing raw water quality deterioration (green solutions); enhancement totex - Total | D41: £m | E41: Price Review 2024 | F41: 0 | G41: 0 | M41: 0
A42: SWB | B42: CW17_096TOT_PR24 | C42: Water quality improvements - Addressing raw water quality deterioration (grey solutions); ; enhancement totex - Total | D42: £m | E42: Price Review 2024 | F42: 0 | G42: 0 | H42: 0 | I42: 0 | J42: 0 | K42: 0 | L42: 0 | M42: 0
A43: SWB | B43: CW17_099TOT_PR24 | C43: Water quality improvements - Addressing raw water quality deterioration (green solutions); enhancement totex - Total | D43: £m | E43: Price Review 2024 | F43: 0 | G43: 0 | H43: 0 | I43: 0 | J43: 0 | K43: 0 | L43: 0 | M43: 0
A44: SRN | B44: CW3_099TOT_PR24 | C44: Water quality improvements - Addressing raw water quality deterioration (grey solutions); ; enhancement totex - Total | D44: £m | E44: Price Review 2024 | F44: 7.643 | G44: 3.164 | H44: 5.47 | I44: 30.002 | J44: 30.08 | K44: 20.442 | L44: 4.13 | M44: 90.124 | N44: Final Input (Pre Reallocations)
A45: SRN | B45: CW3_102TOT_PR24 | C45: Water quality improvements - Addressing raw water quality deterioration (green solutions); enhancement totex - Total | D45: £m | E45: Price Review 2024 | F45: 2.926 | G45: 6.162 | H45: 0 | I45: 0 | J45: 0 | K45: 0 | L45: 0 | M45: 0
A46: SRN | B46: CW12_096TOT_PR24 | C46: Water quality improvements - Addressing raw water quality deterioration (grey solutions); ; enhancement totex - Total | D46: £m | E46: Price Review 2024 | F46: 0 | G46: 0 | M46: 0
A47: SRN | B47: CW12_099TOT_PR24 | C47: Water quality improvements - Addressing raw water quality deterioration (green solutions); enhancement totex - Total | D47: £m | E47: Price Review 2024 | F47: 0 | G47: 0 | M47: 0
A48: SRN | B48: CW17_096TOT_PR24 | C48: Water quality improvements - Addressing raw water quality deterioration (grey solutions); ; enhancement totex - Total | D48: £m | E48: Price Review 2024 | F48: 0 | G48: 0 | H48: 0 | I48: 0 | J48: 0 | K48: 0 | L48: 0 | M48: 0
A49: SRN | B49: CW17_099TOT_PR24 | C49: Water quality improvements - Addressing raw water quality deterioration (green solutions); enhancement totex - Total | D49: £m | E49: Price Review 2024 | F49: 0 | G49: 0 | H49: 0 | I49: 0 | J49: 0 | K49: 0 | L49: 0 | M49: 0
A50: TMS | B50: CW3_099TOT_PR24 | C50: Water quality improvements - Addressing raw water quality deterioration (grey solutions); ; enhancement totex - Total | D50: £m | E50: Price Review 2024 | F50: 0.914 | G50: 0.901 | H50: 0 | I50: 0 | J50: 0 | K50: 0 | L50: 0 | M50: 0
A51: TMS | B51: CW3_102TOT_PR24 | C51: Water quality improvements - Addressing raw water quality deterioration (green solutions); enhancement totex - Total | D51: £m | E51: Price Review 2024 | F51: 0 | G51: 0 | H51: 0 | I51: 0 | J51: 0 | K51: 0 | L51: 0 | M51: 0
A52: TMS | B52: CW12_096TOT_PR24 | C52: Water quality improvements - Addressing raw water quality deterioration (grey solutions); ; enhancement totex - Total | D52: £m | E52: Price Review 2024 | F52: 0 | G52: 0 | M52: 0
A53: TMS | B53: CW12_099TOT_PR24 | C53: Water quality improvements - Addressing raw water quality deterioration (green solutions); enhancement totex - Total | D53: £m | E53: Price Review 2024 | F53: 0 | G53: 0 | M53: 0
A54: TMS | B54: CW17_096TOT_PR24 | C54: Water quality improvements - Addressing raw water quality deterioration (grey solutions); ; enhancement totex - Total | D54: £m | E54: Price Review 2024 | F54: 0 | G54: 0 | H54: 0 | I54: 0 | J54: 0 | K54: 0 | L54: 0 | M54: 0
A55: TMS | B55: CW17_099TOT_PR24 | C55: Water quality improvements - Addressing raw water quality deterioration (green solutions); enhancement totex - Total | D55: £m | E55: Price Review 2024 | F55: 0 | G55: 0 | H55: 0 | I55: 0 | J55: 0 | K55: 0 | L55: 0 | M55: 0
A56: NWT | B56: CW3_099TOT_PR24 | C56: Water quality improvements - Addressing raw water quality deterioration (grey solutions); ; enhancement totex - Total | D56: £m | E56: Price Review 2024 | F56: 0 | G56: 1.468351192 | H56: 6.754842253 | I56: 7.674438891 | J56: 37.02252081 | K56: 32.06492185 | L56: 8.233377755 | M56: 91.75010156 | N56: Final Input (Pre Reallocations)
A57: NWT | B57: CW3_102TOT_PR24 | C57: Water quality improvements - Addressing raw water quality deterioration (green solutions); enhancement totex - Total | D57: £m | E57: Price Review 2024 | F57: 1.082902789 | G57: 0 | H57: 0 | I57: 0 | J57: 0 | K57: 0 | L57: 0 | M57: 0
A58: NWT | B58: CW12_096TOT_PR24 | C58: Water quality improvements - Addressing raw water quality deterioration (grey solutions); ; enhancement totex - Total | D58: £m | E58: Price Review 2024 | F58: 0 | G58: 0 | M58: 0
A59: NWT | B59: CW12_099TOT_PR24 | C59: Water quality improvements - Addressing raw water quality deterioration (green solutions); enhancement totex - Total | D59: £m | E59: Price Review 2024 | F59: 0 | G59: 0 | M59: 0
A60: NWT | B60: CW17_096TOT_PR24 | C60: Water quality improvements - Addressing raw water quality deterioration (grey solutions); ; enhancement totex - Total | D60: £m | E60: Price Review 2024 | F60: 0 | G60: 0 | H60: 0 | I60: 0 | J60: 0 | K60: 0 | L60: 0 | M60: 0
A61: NWT | B61: CW17_099TOT_PR24 | C61: Water quality improvements - Addressing raw water quality deterioration (green solutions); enhancement totex - Total | D61: £m | E61: Price Review 2024 | F61: 0 | G61: 0 | H61: 0 | I61: 0 | J61: 0 | K61: 0 | L61: 0 | M61: 0
A62: WSX | B62: CW3_099TOT_PR24 | C62: Water quality improvements - Addressing raw water quality deterioration (grey solutions); ; enhancement totex - Total | D62: £m | E62: Price Review 2024 | F62: 3.850538319 | G62: 0.6589029324 | H62: 2.609437 | I62: 7.18656 | J62: 15.972182 | K62: 7.268071 | L62: 4.455742 | M62: 37.491992 | N62: Final Input (Pre Reallocations)
A63: WSX | B63: CW3_102TOT_PR24 | C63: Water quality improvements - Addressing raw water quality deterioration (green solutions); enhancement totex - Total | D63: £m | E63: Price Review 2024 | F63: 0.496919 | G63: 0.7452238613 | H63: 0.344 | I63: 0.537778 | J63: 0.566893 | K63: 0.343252 | L63: 0.331075 | M63: 2.122998 | N63: Final Input (Pre Reallocations)
A64: WSX | B64: CW12_096TOT_PR24 | C64: Water quality improvements - Addressing raw water quality deterioration (grey solutions); ; enhancement totex - Total | D64: £m | E64: Price Review 2024 | F64: 0.081001 | G64: 0.388067 | M64: 0.469068 | N64: Final Input (Pre Reallocations)
A65: WSX | B65: CW12_099TOT_PR24 | C65: Water quality improvements - Addressing raw water quality deterioration (green solutions); enhancement totex - Total | D65: £m | E65: Price Review 2024 | F65: 0.000999 | G65: 0.004217 | M65: 0.005216 | N65: Final Input (Pre Reallocations)
A66: WSX | B66: CW17_096TOT_PR24 | C66: Water quality improvements - Addressing raw water quality deterioration (grey solutions); ; enhancement totex - Total | D66: £m | E66: Price Review 2024 | F66: 0 | G66: 0 | H66: 0 | I66: 0 | J66: 0 | K66: 0 | L66: 0 | M66: 0
A67: WSX | B67: CW17_099TOT_PR24 | C67: Water quality improvements - Addressing raw water quality deterioration (green solutions); enhancement totex - Total | D67: £m | E67: Price Review 2024 | F67: 0 | G67: 0 | H67: 0 | I67: 0 | J67: 0 | K67: 0 | L67: 0 | M67: 0
A68: YKY | B68: CW3_099TOT_PR24 | C68: Water quality improvements - Addressing raw water quality deterioration (grey solutions); ; enhancement totex - Total | D68: £m | E68: Price Review 2024 | F68: 12.557 | G68: 10.275 | H68: 2.4025344 | I68: 8.989824 | J68: 14.3774208 | K68: 8.5395456 | L68: 6.1747968 | M68: 40.4841216 | N68: Final Input (Pre Reallocations)
A69: YKY | B69: CW3_102TOT_PR24 | C69: Water quality improvements - Addressing raw water quality deterioration (green solutions); enhancement totex - Total | D69: £m | E69: Price Review 2024 | F69: 0 | G69: 0 | H69: 0 | I69: 0 | J69: 0 | K69: 0 | L69: 0 | M69: 0
A70: YKY | B70: CW12_096TOT_PR24 | C70: Water quality improvements - Addressing raw water quality deterioration (grey solutions); ; enhancement totex - Total | D70: £m | E70: Price Review 2024 | F70: 0.066 | G70: 1.623 | M70: 1.689 | N70: Final Input (Pre Reallocations)
A71: YKY | B71: CW12_099TOT_PR24 | C71: Water quality improvements - Addressing raw water quality deterioration (green solutions); enhancement totex - Total | D71: £m | E71: Price Review 2024 | F71: 0 | G71: 0 | M71: 0
A72: YKY | B72: CW17_096TOT_PR24 | C72: Water quality improvements - Addressing raw water quality deterioration (grey solutions); ; enhancement totex - Total | D72: £m | E72: Price Review 2024 | F72: 0 | G72: 0 | H72: 0 | I72: 0 | J72: 0 | K72: 0 | L72: 0 | M72: 0
A73: YKY | B73: CW17_099TOT_PR24 | C73: Water quality improvements - Addressing raw water quality deterioration (green solutions); enhancement totex - Total | D73: £m | E73: Price Review 2024 | F73: 0 | G73: 0 | H73: 0 | I73: 0 | J73: 0 | K73: 0 | L73: 0 | M73: =IF(ISNUMBER(L73),SUM(H73:L73),SUM(F73:G73)) -> 0 | N73: =IF(OR(M73=0,M73=""),"","Final Input (Pre Reallocations)") -> 
A74: AFW | B74: CW3_099TOT_PR24 | C74: Water quality improvements - Addressing raw water quality deterioration (grey solutions); ; enhancement totex - Total | D74: £m | E74: Price Review 2024 | F74: 10.218 | G74: 7.965 | H74: 57.668 | I74: 67.287 | J74: 55.558 | K74: 45.831 | L74: 11.278 | M74: 237.622 | N74: Final Input (Pre Reallocations)
A75: AFW | B75: CW3_102TOT_PR24 | C75: Water quality improvements - Addressing raw water quality deterioration (green solutions); enhancement totex - Total | D75: £m | E75: Price Review 2024 | F75: 0 | G75: 0 | H75: 0 | I75: 0 | J75: 0 | K75: 0 | L75: 0 | M75: 0
A76: AFW | B76: CW12_096TOT_PR24 | C76: Water quality improvements - Addressing raw water quality deterioration (grey solutions); ; enhancement totex - Total | D76: £m | E76: Price Review 2024 | F76: 1.3 | G76: 1.865 | M76: 3.165 | N76: Final Input (Pre Reallocations)
A77: AFW | B77: CW12_099TOT_PR24 | C77: Water quality improvements - Addressing raw water quality deterioration (green solutions); enhancement totex - Total | D77: £m | E77: Price Review 2024 | F77: 0 | G77: 0 | M77: 0
A78: AFW | B78: CW17_096TOT_PR24 | C78: Water quality improvements - Addressing raw water quality deterioration (grey solutions); ; enhancement totex - Total | D78: £m | E78: Price Review 2024 | F78: 2.083 | G78: 0.637 | H78: 0 | I78: 0 | J78: 0 | K78: 0 | L78: 0 | M78: 0
A79: AFW | B79: CW17_099TOT_PR24 | C79: Water quality improvements - Addressing raw water quality deterioration (green solutions); enhancement totex - Total | D79: £m | E79: Price Review 2024 | F79: 0 | G79: 0 | H79: 0 | I79: 0 | J79: 0 | K79: 0 | L79: 0 | M79: 0
A80: BRL | B80: CW3_099TOT_PR24 | C80: Water quality improvements - Addressing raw water quality deterioration (grey solutions); ; enhancement totex - Total | D80: £m | E80: Price Review 2024 | F80: 0.141 | G80: 0.07461341239 | H80: 6.58344 | I80: 12.82352 | J80: 22.271163 | K80: 21.261044 | L80: 21.261044 | M80: 84.200211 | N80: Final Input (Pre Reallocations)
A81: BRL | B81: CW3_102TOT_PR24 | C81: Water quality improvements - Addressing raw water quality deterioration (green solutions); enhancement totex - Total | D81: £m | E81: Price Review 2024 | F81: 0 | G81: 0 | H81: 0 | I81: 0 | J81: 0 | K81: 0 | L81: 0 | M81: 0
A82: BRL | B82: CW12_096TOT_PR24 | C82: Water quality improvements - Addressing raw water quality deterioration (grey solutions); ; enhancement totex - Total | D82: £m | E82: Price Review 2024 | F82: 0 | G82: 0 | M82: 0
A83: BRL | B83: CW12_099TOT_PR24 | C83: Water quality improvements - Addressing raw water quality deterioration (green solutions); enhancement totex - Total | D83: £m | E83: Price Review 2024 | F83: 0 | G83: 0 | M83: 0
A84: BRL | B84: CW17_096TOT_PR24 | C84: Water quality improvements - Addressing raw water quality deterioration (grey solutions); ; enhancement totex - Total | D84: £m | E84: Price Review 2024 | F84: 0 | G84: 0 | H84: 0 | I84: 0 | J84: 0 | K84: 0 | L84: 0 | M84: 0
A85: BRL | B85: CW17_099TOT_PR24 | C85: Water quality improvements - Addressing raw water quality deterioration (green solutions); enhancement totex - Total | D85: £m | E85: Price Review 2024 | F85: 0 | G85: 0 | H85: 0 | I85: 0 | J85: 0 | K85: 0 | L85: 0 | M85: 0
A86: PRT | B86: CW3_099TOT_PR24 | C86: Water quality improvements - Addressing raw water quality deterioration (grey solutions); ; enhancement totex - Total | D86: £m | E86: Price Review 2024 | F86: 2.336402079 | G86: 1.792 | H86: 3.6899 | I86: 11.49238 | J86: 7.94007 | K86: 5.29976 | L86: 1.14685 | M86: 29.56896 | N86: Final Input (Pre Reallocations)
A87: PRT | B87: CW3_102TOT_PR24 | C87: Water quality improvements - Addressing raw water quality deterioration (green solutions); enhancement totex - Total | D87: £m | E87: Price Review 2024 | F87: 0 | G87: 0 | H87: 0 | I87: 0 | J87: 0 | K87: 0 | L87: 0 | M87: 0
A88: PRT | B88: CW12_096TOT_PR24 | C88: Water quality improvements - Addressing raw water quality deterioration (grey solutions); ; enhancement totex - Total | D88: £m | E88: Price Review 2024 | F88: 0 | G88: 0.6 | M88: 0.6 | N88: Final Input (Pre Reallocations)
A89: PRT | B89: CW12_099TOT_PR24 | C89: Water quality improvements - Addressing raw water quality deterioration (green solutions); enhancement totex - Total | D89: £m | E89: Price Review 2024 | F89: 0 | G89: 0 | M89: 0
A90: PRT | B90: CW17_096TOT_PR24 | C90: Water quality improvements - Addressing raw water quality deterioration (grey solutions); ; enhancement totex - Total | D90: £m | E90: Price Review 2024 | F90: 0 | G90: 0 | H90: 0 | I90: 0 | J90: 0 | K90: 0 | L90: 0 | M90: 0
A91: PRT | B91: CW17_099TOT_PR24 | C91: Water quality improvements - Addressing raw water quality deterioration (green solutions); enhancement totex - Total | D91: £m | E91: Price Review 2024 | F91: 0 | G91: 0 | H91: 0 | I91: 0 | J91: 0 | K91: 0 | L91: 0 | M91: 0
A92: SEW | B92: CW3_099TOT_PR24 | C92: Water quality improvements - Addressing raw water quality deterioration (grey solutions); ; enhancement totex - Total | D92: £m | E92: Price Review 2024 | F92: 10.33805092 | G92: 9.769530648 | H92: 12.84411369 | I92: 14.84389449 | J92: 6.547955022 | K92: 2.665784437 | L92: 1.670384437 | M92: 38.57213208 | N92: Final Input (Pre Reallocations)
A93: SEW | B93: CW3_102TOT_PR24 | C93: Water quality improvements - Addressing raw water quality deterioration (green solutions); enhancement totex - Total | D93: £m | E93: Price Review 2024 | F93: 0 | G93: 0 | H93: 10.95390276 | I93: 4.132173162 | J93: 3.007576793 | K93: 3.321392393 | L93: 3.218605915 | M93: 24.63365102 | N93: Final Input (Pre Reallocations)
A94: SEW | B94: CW12_096TOT_PR24 | C94: Water quality improvements - Addressing raw water quality deterioration (grey solutions); ; enhancement totex - Total | D94: £m | E94: Price Review 2024 | F94: 0.019476 | G94: 0.851221468 | M94: 0.870697468 | N94: Final Input (Pre Reallocations)
A95: SEW | B95: CW12_099TOT_PR24 | C95: Water quality improvements - Addressing raw water quality deterioration (green solutions); enhancement totex - Total | D95: £m | E95: Price Review 2024 | F95: 0 | G95: 0 | M95: 0
A96: SEW | B96: CW17_096TOT_PR24 | C96: Water quality improvements - Addressing raw water quality deterioration (grey solutions); ; enhancement totex - Total | D96: £m | E96: Price Review 2024 | F96: 0 | G96: 0 | H96: 0 | I96: 0 | J96: 0 | K96: 0 | L96: 0 | M96: 0
A97: SEW | B97: CW17_099TOT_PR24 | C97: Water quality improvements - Addressing raw water quality deterioration (green solutions); enhancement totex - Total | D97: £m | E97: Price Review 2024 | F97: 0 | G97: 0 | H97: 0 | I97: 0 | J97: 0 | K97: 0 | L97: 0 | M97: 0
A98: SSC | B98: CW3_099TOT_PR24 | C98: Water quality improvements - Addressing raw water quality deterioration (grey solutions); ; enhancement totex - Total | D98: £m | E98: Price Review 2024 | F98: 0 | G98: 0 | H98: 4.52502054 | I98: 10.87583925 | J98: 5.58231458 | K98: 2.91113045 | L98: 2.47457139 | M98: 26.36887621 | N98: Final Input (Pre Reallocations)
A99: SSC | B99: CW3_102TOT_PR24 | C99: Water quality improvements - Addressing raw water quality deterioration (green solutions); enhancement totex - Total | D99: £m | E99: Price Review 2024 | F99: 0 | G99: 0 | H99: 0 | I99: 0 | J99: 0 | K99: 0 | L99: 0 | M99: 0
A100: SSC | B100: CW12_096TOT_PR24 | C100: Water quality improvements - Addressing raw water quality deterioration (grey solutions); ; enhancement totex - Total | D100: £m | E100: Price Review 2024 | F100: 0 | G100: 0 | M100: 0
A101: SSC | B101: CW12_099TOT_PR24 | C101: Water quality improvements - Addressing raw water quality deterioration (green solutions); enhancement totex - Total | D101: £m | E101: Price Review 2024 | F101: 0 | G101: 0 | M101: 0
A102: SSC | B102: CW17_096TOT_PR24 | C102: Water quality improvements - Addressing raw water quality deterioration (grey solutions); ; enhancement totex - Total | D102: £m | E102: Price Review 2024 | F102: 0 | G102: 0 | H102: 0 | I102: 0 | J102: 0 | K102: 0 | L102: 0 | M102: 0
A103: SSC | B103: CW17_099TOT_PR24 | C103: Water quality improvements - Addressing raw water quality deterioration (green solutions); enhancement totex - Total | D103: £m | E103: Price Review 2024 | F103: 0 | G103: 0 | H103: 0 | I103: 0 | J103: 0 | K103: 0 | L103: 0 | M103: 0
A104: SES | B104: CW3_099TOT_PR24 | C104: Water quality improvements - Addressing raw water quality deterioration (grey solutions); ; enhancement totex - Total | D104: £m | E104: Price Review 2024 | F104: 0 | G104: 0 | H104: 0 | I104: 2.535 | J104: 2.535 | K104: 0.07 | L104: 0.07 | M104: 5.21 | N104: Final Input (Pre Reallocations)
A105: SES | B105: CW3_102TOT_PR24 | C105: Water quality improvements - Addressing raw water quality deterioration (green solutions); enhancement totex - Total | D105: £m | E105: Price Review 2024 | F105: 0 | G105: 0 | H105: 0 | I105: 0 | J105: 0 | K105: 0 | L105: 0 | M105: 0
A106: SES | B106: CW12_096TOT_PR24 | C106: Water quality improvements - Addressing raw water quality deterioration (grey solutions); ; enhancement totex - Total | D106: £m | E106: Price Review 2024 | F106: 0 | G106: 0 | M106: 0
A107: SES | B107: CW12_099TOT_PR24 | C107: Water quality improvements - Addressing raw water quality deterioration (green solutions); enhancement totex - Total | D107: £m | E107: Price Review 2024 | F107: 0 | G107: 0 | M107: 0
A108: SES | B108: CW17_096TOT_PR24 | C108: Water quality improvements - Addressing raw water quality deterioration (grey solutions); ; enhancement totex - Total | D108: £m | E108: Price Review 2024 | F108: 0 | G108: 0 | H108: 0 | I108: 0 | J108: 0 | K108: 0 | L108: 0 | M108: 0
A109: SES | B109: CW17_099TOT_PR24 | C109: Water quality improvements - Addressing raw water quality deterioration (green solutions); enhancement totex - Total | D109: £m | E109: Price Review 2024 | F109: 0 | G109: 0 | H109: 0 | I109: 0 | J109: 0 | K109: 0 | L109: 0 | M109: 0

Sheet F_Inputs SDEff
A1: =RIGHT(CELL("filename", $A$1), LEN(CELL("filename", $A$1)) - SEARCH("]", CELL("filename", $A$1))) -> F_Inputs SDEff
C2: Shallow dive efficiency - Run 11 | E2: Run on 14 Nov 2024 8:13
A4: Company Acronym | B4: Item Code | C4: Item Description | D4: Item Unit | E4: Item Table Suite | F4: 2025-26 | G4: 2026-27 | H4: 2027-28 | I4: 2028-29 | J4: 2029-30
A5: Company Acronym | B5: Item Code | C5: Item Description | D5: Item Unit | E5: Item Table Suite | F5: Price Review 2024 | G5: Price Review 2024 | H5: Price Review 2024 | I5: Price Review 2024 | J5: Price Review 2024
A6: Company Acronym | B6: Item Code | C6: Item Description | D6: Item Unit | E6: Item Table Suite | F6: Run 11 - PR24 FD Data | G6: Run 11 - PR24 FD Data | H6: Run 11 - PR24 FD Data | I6: Run 11 - PR24 FD Data | J6: Run 11 - PR24 FD Data
A7: Company Acronym | B7: Item Code | C7: Item Description | D7: Item Unit | E7: Item Table Suite | F7: Latest | G7: Latest | H7: Latest | I7: Latest | J7: Latest
A8: ANH | B8: C_PR24ENHW_SHALLOW_EFF | C8: Shallow dive company efficiency factor - enhancement - water | D8: % | E8: Price Review 2024 | F8: 0.02 | G8: 0.02 | H8: 0.02 | I8: 0.02 | J8: 0.02 | K8: =AVERAGE(F8:J8) -> 0.02
A9: WSH | B9: C_PR24ENHW_SHALLOW_EFF | C9: Shallow dive company efficiency factor - enhancement - water | D9: % | E9: Price Review 2024 | F9: 0.01 | G9: 0.01 | H9: 0.01 | I9: 0.01 | J9: 0.01 | K9: =AVERAGE(F9:J9) -> 0.01
A10: HDD | B10: C_PR24ENHW_SHALLOW_EFF | C10: Shallow dive company efficiency factor - enhancement - water | D10: % | E10: Price Review 2024 | F10: 0 | G10: 0 | H10: 0 | I10: 0 | J10: 0 | K10: 0
A11: NES | B11: C_PR24ENHW_SHALLOW_EFF | C11: Shallow dive company efficiency factor - enhancement - water | D11: % | E11: Price Review 2024 | F11: 0 | G11: 0 | H11: 0 | I11: 0 | J11: 0 | K11: 0
A12: SVE | B12: C_PR24ENHW_SHALLOW_EFF | C12: Shallow dive company efficiency factor - enhancement - water | D12: % | E12: Price Review 2024 | F12: 0 | G12: 0 | H12: 0 | I12: 0 | J12: 0 | K12: 0
A13: SWB | B13: C_PR24ENHW_SHALLOW_EFF | C13: Shallow dive company efficiency factor - enhancement - water | D13: % | E13: Price Review 2024 | F13: 0.1 | G13: 0.1 | H13: 0.1 | I13: 0.1 | J13: 0.1 | K13: 0.1
A14: SRN | B14: C_PR24ENHW_SHALLOW_EFF | C14: Shallow dive company efficiency factor - enhancement - water | D14: % | E14: Price Review 2024 | F14: 0.1 | G14: 0.1 | H14: 0.1 | I14: 0.1 | J14: 0.1 | K14: 0.1
A15: TMS | B15: C_PR24ENHW_SHALLOW_EFF | C15: Shallow dive company efficiency factor - enhancement - water | D15: % | E15: Price Review 2024 | F15: 0 | G15: 0 | H15: 0 | I15: 0 | J15: 0 | K15: 0
A16: NWT | B16: C_PR24ENHW_SHALLOW_EFF | C16: Shallow dive company efficiency factor - enhancement - water | D16: % | E16: Price Review 2024 | F16: 0 | G16: 0 | H16: 0 | I16: 0 | J16: 0 | K16: 0
A17: WSX | B17: C_PR24ENHW_SHALLOW_EFF | C17: Shallow dive company efficiency factor - enhancement - water | D17: % | E17: Price Review 2024 | F17: 0.07 | G17: 0.07 | H17: 0.07 | I17: 0.07 | J17: 0.07 | K17: 0.07
A18: YKY | B18: C_PR24ENHW_SHALLOW_EFF | C18: Shallow dive company efficiency factor - enhancement - water | D18: % | E18: Price Review 2024 | F18: 0 | G18: 0 | H18: 0 | I18: 0 | J18: 0 | K18: 0
A19: AFW | B19: C_PR24ENHW_SHALLOW_EFF | C19: Shallow dive company efficiency factor - enhancement - water | D19: % | E19: Price Review 2024 | F19: 0.03 | G19: 0.03 | H19: 0.03 | I19: 0.03 | J19: 0.03 | K19: 0.03
A20: BRL | B20: C_PR24ENHW_SHALLOW_EFF | C20: Shallow dive company efficiency factor - enhancement - water | D20: % | E20: Price Review 2024 | F20: 0.06 | G20: 0.06 | H20: 0.06 | I20: 0.06 | J20: 0.06 | K20: 0.06
A21: PRT | B21: C_PR24ENHW_SHALLOW_EFF | C21: Shallow dive company efficiency factor - enhancement - water | D21: % | E21: Price Review 2024 | F21: 0.07 | G21: 0.07 | H21: 0.07 | I21: 0.07 | J21: 0.07 | K21: 0.07
A22: SEW | B22: C_PR24ENHW_SHALLOW_EFF | C22: Shallow dive company efficiency factor - enhancement - water | D22: % | E22: Price Review 2024 | F22: 0.1 | G22: 0.1 | H22: 0.1 | I22: 0.1 | J22: 0.1 | K22: 0.1
A23: SSC | B23: C_PR24ENHW_SHALLOW_EFF | C23: Shallow dive company efficiency factor - enhancement - water | D23: % | E23: Price Review 2024 | F23: 0 | G23: 0 | H23: 0 | I23: 0 | J23: 0 | K23: 0
A24: SES | B24: C_PR24ENHW_SHALLOW_EFF | C24: Shallow dive company efficiency factor - enhancement - water | D24: % | E24: Price Review 2024 | F24: 0.1 | G24: 0.1 | H24: 0.1 | I24: 0.1 | J24: 0.1 | K24: 0.1

Sheet Water_totex
A1: =RIGHT(CELL("filename", $A$1), LEN(CELL("filename", $A$1)) - SEARCH("]", CELL("filename", $A$1))) -> Water_totex
C2: Water TOTEX Run11 | E2: Run on 04 Sep 2024 11:32
A4: Company Acronym | B4: Item Code | C4: Item Description | D4: Item Unit | E4: Item Table Suite | F4: Constant
A5: Company Acronym | B5: Item Code | C5: Item Description | D5: Item Unit | E5: Item Table Suite | F5: Price Review 2024
A6: Company Acronym | B6: Item Code | C6: Item Description | D6: Item Unit | E6: Item Table Suite | F6: Run 11 - PR24 FD Data
A7: Company Acronym | B7: Item Code | C7: Item Description | D7: Item Unit | E7: Item Table Suite | F7: Latest
A8: ANH | B8: PR24_NETTOTEX_WATER | C8: PR24 BP Net totex - Total inc. accelerated & transition costs | D8: £m | E8: Price Review 2024 | F8: 4187.353839
A9: WSH | B9: PR24_NETTOTEX_WATER | C9: PR24 BP Net totex - Total inc. accelerated & transition costs | D9: £m | E9: Price Review 2024 | F9: 2365.636
A10: HDD | B10: PR24_NETTOTEX_WATER | C10: PR24 BP Net totex - Total inc. accelerated & transition costs | D10: £m | E10: Price Review 2024 | F10: 202.9929059
A11: NES | B11: PR24_NETTOTEX_WATER | C11: PR24 BP Net totex - Total inc. accelerated & transition costs | D11: £m | E11: Price Review 2024 | F11: 3081.858466
A12: SVE | B12: PR24_NETTOTEX_WATER | C12: PR24 BP Net totex - Total inc. accelerated & transition costs | D12: £m | E12: Price Review 2024 | F12: 5623.042444
A13: SWB | B13: PR24_NETTOTEX_WATER | C13: PR24 BP Net totex - Total inc. accelerated & transition costs | D13: £m | E13: Price Review 2024 | F13: 1570.211528
A14: SRN | B14: PR24_NETTOTEX_WATER | C14: PR24 BP Net totex - Total inc. accelerated & transition costs | D14: £m | E14: Price Review 2024 | F14: 3614.763
A15: TMS | B15: PR24_NETTOTEX_WATER | C15: PR24 BP Net totex - Total inc. accelerated & transition costs | D15: £m | E15: Price Review 2024 | F15: 10162.16273
A16: NWT | B16: PR24_NETTOTEX_WATER | C16: PR24 BP Net totex - Total inc. accelerated & transition costs | D16: £m | E16: Price Review 2024 | F16: 4204.144554
A17: WSX | B17: PR24_NETTOTEX_WATER | C17: PR24 BP Net totex - Total inc. accelerated & transition costs | D17: £m | E17: Price Review 2024 | F17: 1136.356395
A18: YKY | B18: PR24_NETTOTEX_WATER | C18: PR24 BP Net totex - Total inc. accelerated & transition costs | D18: £m | E18: Price Review 2024 | F18: 3120.05052
A19: AFW | B19: PR24_NETTOTEX_WATER | C19: PR24 BP Net totex - Total inc. accelerated & transition costs | D19: £m | E19: Price Review 2024 | F19: 2157.018576
A20: BRL | B20: PR24_NETTOTEX_WATER | C20: PR24 BP Net totex - Total inc. accelerated & transition costs | D20: £m | E20: Price Review 2024 | F20: 688.9547248
A21: PRT | B21: PR24_NETTOTEX_WATER | C21: PR24 BP Net totex - Total inc. accelerated & transition costs | D21: £m | E21: Price Review 2024 | F21: 341.6692826
A22: SEW | B22: PR24_NETTOTEX_WATER | C22: PR24 BP Net totex - Total inc. accelerated & transition costs | D22: £m | E22: Price Review 2024 | F22: 1862.837225
A23: SSC | B23: PR24_NETTOTEX_WATER | C23: PR24 BP Net totex - Total inc. accelerated & transition costs | D23: £m | E23: Price Review 2024 | F23: 737.9594339
A24: SES | B24: PR24_NETTOTEX_WATER | C24: PR24 BP Net totex - Total inc. accelerated & transition costs | D24: £m | E24: Price Review 2024 | F24: 377.6353912

Sheet F_Input Override
A1: =RIGHT(CELL("filename", $A$1), LEN(CELL("filename", $A$1)) - SEARCH("]", CELL("filename", $A$1))) -> F_Input Override
A4: Acronym | B4: Reference | C4: Item Description | D4: Unit | E4: 2023-24 | F4: 2024-25 | G4: 2025-26 | H4: 2026-27 | I4: 2027-28 | J4: 2028-29 | K4: 2029-30 | L4: AMP8 Total | M4: Comments | N4: Total Reallocation
A5: ANH | B5: ='F_Inputs BP'!B8 -> CW3_099TOT_PR24 | C5: Water quality improvements - Addressing raw water quality deterioration (grey solutions); ; enhancement totex - Total | D5: £m | G5: ='F_Inputs BP'!H8+12.985 -> 19.865 | H5: ='F_Inputs BP'!I8+24.285 -> 46.342 | I5: ='F_Inputs BP'!J8+35.472 -> 63.262 | J5: ='F_Inputs BP'!K8+28.443 -> 59.832 | K5: ='F_Inputs BP'!L8+19.442 -> 36.1 | L5: =SUM(Table2[[#This Row],[2025-26]:[2029-30]]) -> 225.401 | M5: Reallocation of PFAS from CW3.132-133 £120.627m | N5: 120.627
A6: ANH | B6: ='F_Inputs BP'!B9 -> CW3_102TOT_PR24 | C6: Water quality improvements - Addressing raw water quality deterioration (green solutions); enhancement totex - Total | D6: £m | L6: =SUM(Table2[[#This Row],[2025-26]:[2029-30]]) -> 0 | M6: No Reallocations
A7: ANH | B7: ='F_Inputs BP'!B10 -> CW12_096TOT_PR24 | C7: Water quality improvements - Addressing raw water quality deterioration (grey solutions); ; enhancement totex - Total | D7: £m | L7: =SUM(Table2[[#This Row],[2025-26]:[2029-30]]) -> 0 | M7: No Reallocations
A8: ANH | B8: ='F_Inputs BP'!B11 -> CW12_099TOT_PR24 | C8: Water quality improvements - Addressing raw water quality deterioration (green solutions); enhancement totex - Total | D8: £m | L8: =SUM(Table2[[#This Row],[2025-26]:[2029-30]]) -> 0 | M8: No Reallocations
A9: ANH | B9: ='F_Inputs BP'!B12 -> CW17_096TOT_PR24 | C9: Water quality improvements - Addressing raw water quality deterioration (grey solutions); ; enhancement totex - Total | D9: £m | L9: =SUM(Table2[[#This Row],[2025-26]:[2029-30]]) -> 0 | M9: No Reallocations
A10: ANH | B10: ='F_Inputs BP'!B13 -> CW17_099TOT_PR24 | C10: Water quality improvements - Addressing raw water quality deterioration (green solutions); enhancement totex - Total | D10: £m | L10: =SUM(Table2[[#This Row],[2025-26]:[2029-30]]) -> 0 | M10: No Reallocations
A11: WSH | B11: ='F_Inputs BP'!B14 -> CW3_099TOT_PR24 | C11: Water quality improvements - Addressing raw water quality deterioration (grey solutions); ; enhancement totex - Total | D11: £m | L11: =SUM(Table2[[#This Row],[2025-26]:[2029-30]]) -> 0 | M11: No Reallocations
A12: WSH | B12: ='F_Inputs BP'!B15 -> CW3_102TOT_PR24 | C12: Water quality improvements - Addressing raw water quality deterioration (green solutions); enhancement totex - Total | D12: £m | L12: =SUM(Table2[[#This Row],[2025-26]:[2029-30]]) -> 0 | M12: No Reallocations
A13: WSH | B13: ='F_Inputs BP'!B16 -> CW12_096TOT_PR24 | C13: Water quality improvements - Addressing raw water quality deterioration (grey solutions); ; enhancement totex - Total | D13: £m | L13: =SUM(Table2[[#This Row],[2025-26]:[2029-30]]) -> 0 | M13: No Reallocations
A14: WSH | B14: ='F_Inputs BP'!B17 -> CW12_099TOT_PR24 | C14: Water quality improvements - Addressing raw water quality deterioration (green solutions); enhancement totex - Total | D14: £m | L14: =SUM(Table2[[#This Row],[2025-26]:[2029-30]]) -> 0 | M14: No Reallocations
A15: WSH | B15: ='F_Inputs BP'!B18 -> CW17_096TOT_PR24 | C15: Water quality improvements - Addressing raw water quality deterioration (grey solutions); ; enhancement totex - Total | D15: £m | L15: =SUM(Table2[[#This Row],[2025-26]:[2029-30]]) -> 0 | M15: No Reallocations
A16: WSH | B16: ='F_Inputs BP'!B19 -> CW17_099TOT_PR24 | C16: Water quality improvements - Addressing raw water quality deterioration (green solutions); enhancement totex - Total | D16: £m | L16: =SUM(Table2[[#This Row],[2025-26]:[2029-30]]) -> 0 | M16: No Reallocations
A17: HDD | B17: ='F_Inputs BP'!B20 -> CW3_099TOT_PR24 | C17: Water quality improvements - Addressing raw water quality deterioration (grey solutions); ; enhancement totex - Total | D17: £m | L17: =SUM(Table2[[#This Row],[2025-26]:[2029-30]]) -> 0 | M17: No Reallocations
A18: HDD | B18: ='F_Inputs BP'!B21 -> CW3_102TOT_PR24 | C18: Water quality improvements - Addressing raw water quality deterioration (green solutions); enhancement totex - Total | D18: £m | L18: =SUM(Table2[[#This Row],[2025-26]:[2029-30]]) -> 0 | M18: No Reallocations
A19: HDD | B19: ='F_Inputs BP'!B22 -> CW12_096TOT_PR24 | C19: Water quality improvements - Addressing raw water quality deterioration (grey solutions); ; enhancement totex - Total | D19: £m | L19: =SUM(Table2[[#This Row],[2025-26]:[2029-30]]) -> 0 | M19: No Reallocations
A20: HDD | B20: ='F_Inputs BP'!B23 -> CW12_099TOT_PR24 | C20: Water quality improvements - Addressing raw water quality deterioration (green solutions); enhancement totex - Total | D20: £m | L20: =SUM(Table2[[#This Row],[2025-26]:[2029-30]]) -> 0 | M20: No Reallocations
A21: HDD | B21: ='F_Inputs BP'!B24 -> CW17_096TOT_PR24 | C21: Water quality improvements - Addressing raw water quality deterioration (grey solutions); ; enhancement totex - Total | D21: £m | L21: =SUM(Table2[[#This Row],[2025-26]:[2029-30]]) -> 0 | M21: No Reallocations
A22: HDD | B22: ='F_Inputs BP'!B25 -> CW17_099TOT_PR24 | C22: Water quality improvements - Addressing raw water quality deterioration (green solutions); enhancement totex - Total | D22: £m | L22: =SUM(Table2[[#This Row],[2025-26]:[2029-30]]) -> 0 | M22: No Reallocations
A23: NES | B23: ='F_Inputs BP'!B26 -> CW3_099TOT_PR24 | C23: Water quality improvements - Addressing raw water quality deterioration (grey solutions); ; enhancement totex - Total | D23: £m | L23: =SUM(Table2[[#This Row],[2025-26]:[2029-30]]) -> 0 | M23: No Reallocations
A24: NES | B24: ='F_Inputs BP'!B27 -> CW3_102TOT_PR24 | C24: Water quality improvements - Addressing raw water quality deterioration (green solutions); enhancement totex - Total | D24: £m | L24: =SUM(Table2[[#This Row],[2025-26]:[2029-30]]) -> 0 | M24: No Reallocations
A25: NES | B25: ='F_Inputs BP'!B28 -> CW12_096TOT_PR24 | C25: Water quality improvements - Addressing raw water quality deterioration (grey solutions); ; enhancement totex - Total | D25: £m | L25: =SUM(Table2[[#This Row],[2025-26]:[2029-30]]) -> 0 | M25: No Reallocations
A26: NES | B26: ='F_Inputs BP'!B29 -> CW12_099TOT_PR24 | C26: Water quality improvements - Addressing raw water quality deterioration (green solutions); enhancement totex - Total | D26: £m | L26: =SUM(Table2[[#This Row],[2025-26]:[2029-30]]) -> 0 | M26: No Reallocations
A27: NES | B27: ='F_Inputs BP'!B30 -> CW17_096TOT_PR24 | C27: Water quality improvements - Addressing raw water quality deterioration (grey solutions); ; enhancement totex - Total | D27: £m | L27: =SUM(Table2[[#This Row],[2025-26]:[2029-30]]) -> 0 | M27: No Reallocations
A28: NES | B28: ='F_Inputs BP'!B31 -> CW17_099TOT_PR24 | C28: Water quality improvements - Addressing raw water quality deterioration (green solutions); enhancement totex - Total | D28: £m | L28: =SUM(Table2[[#This Row],[2025-26]:[2029-30]]) -> 0 | M28: No Reallocations
A29: SVE | B29: ='F_Inputs BP'!B32 -> CW3_099TOT_PR24 | C29: Water quality improvements - Addressing raw water quality deterioration (grey solutions); ; enhancement totex - Total | D29: £m | L29: =SUM(Table2[[#This Row],[2025-26]:[2029-30]]) -> 0 | M29: No Reallocations
A30: SVE | B30: ='F_Inputs BP'!B33 -> CW3_102TOT_PR24 | C30: Water quality improvements - Addressing raw water quality deterioration (green solutions); enhancement totex - Total | D30: £m | L30: =SUM(Table2[[#This Row],[2025-26]:[2029-30]]) -> 0 | M30: No Reallocations
A31: SVE | B31: ='F_Inputs BP'!B34 -> CW12_096TOT_PR24 | C31: Water quality improvements - Addressing raw water quality deterioration (grey solutions); ; enhancement totex - Total | D31: £m | L31: =SUM(Table2[[#This Row],[2025-26]:[2029-30]]) -> 0 | M31: No Reallocations
A32: SVE | B32: ='F_Inputs BP'!B35 -> CW12_099TOT_PR24 | C32: Water quality improvements - Addressing raw water quality deterioration (green solutions); enhancement totex - Total | D32: £m | L32: =SUM(Table2[[#This Row],[2025-26]:[2029-30]]) -> 0 | M32: No Reallocations
A33: SVE | B33: ='F_Inputs BP'!B36 -> CW17_096TOT_PR24 | C33: Water quality improvements - Addressing raw water quality deterioration (grey solutions); ; enhancement totex - Total | D33: £m | L33: =SUM(Table2[[#This Row],[2025-26]:[2029-30]]) -> 0 | M33: No Reallocations
A34: SVE | B34: ='F_Inputs BP'!B37 -> CW17_099TOT_PR24 | C34: Water quality improvements - Addressing raw water quality deterioration (green solutions); enhancement totex - Total | D34: £m | L34: =SUM(Table2[[#This Row],[2025-26]:[2029-30]]) -> 0 | M34: No Reallocations
A35: SWB | B35: ='F_Inputs BP'!B38 -> CW3_099TOT_PR24 | C35: Water quality improvements - Addressing raw water quality deterioration (grey solutions); ; enhancement totex - Total | D35: £m | L35: =SUM(Table2[[#This Row],[2025-26]:[2029-30]]) -> 0 | M35: 6.352 reallocated from CW3.120, split equally per year | N35: Take into account at DD
A36: SWB | B36: ='F_Inputs BP'!B39 -> CW3_102TOT_PR24 | C36: Water quality improvements - Addressing raw water quality deterioration (green solutions); enhancement totex - Total | D36: £m | L36: =SUM(Table2[[#This Row],[2025-26]:[2029-30]]) -> 0 | M36: No Reallocations
A37: SWB | B37: ='F_Inputs BP'!B40 -> CW12_096TOT_PR24 | C37: Water quality improvements - Addressing raw water quality deterioration (grey solutions); ; enhancement totex - Total | D37: £m | L37: =SUM(Table2[[#This Row],[2025-26]:[2029-30]]) -> 0 | M37: No Reallocations
A38: SWB | B38: ='F_Inputs BP'!B41 -> CW12_099TOT_PR24 | C38: Water quality improvements - Addressing raw water quality deterioration (green solutions); enhancement totex - Total | D38: £m | L38: =SUM(Table2[[#This Row],[2025-26]:[2029-30]]) -> 0 | M38: No Reallocations
A39: SWB | B39: ='F_Inputs BP'!B42 -> CW17_096TOT_PR24 | C39: Water quality improvements - Addressing raw water quality deterioration (grey solutions); ; enhancement totex - Total | D39: £m | L39: =SUM(Table2[[#This Row],[2025-26]:[2029-30]]) -> 0 | M39: No Reallocations
A40: SWB | B40: ='F_Inputs BP'!B43 -> CW17_099TOT_PR24 | C40: Water quality improvements - Addressing raw water quality deterioration (green solutions); enhancement totex - Total | D40: £m | L40: =SUM(Table2[[#This Row],[2025-26]:[2029-30]]) -> 0 | M40: No Reallocations
A41: SRN | B41: ='F_Inputs BP'!B44 -> CW3_099TOT_PR24 | C41: Water quality improvements - Addressing raw water quality deterioration (grey solutions); ; enhancement totex - Total | D41: £m | L41: =SUM(Table2[[#This Row],[2025-26]:[2029-30]]) -> 0 | M41: Reallocation of £47.193m from CW3.120, and 3.887m from CW3.132 | N41: Take into account at DD
A42: SRN | B42: ='F_Inputs BP'!B45 -> CW3_102TOT_PR24 | C42: Water quality improvements - Addressing raw water quality deterioration (green solutions); enhancement totex - Total | D42: £m | L42: =SUM(Table2[[#This Row],[2025-26]:[2029-30]]) -> 0 | M42: No Reallocations
A43: SRN | B43: ='F_Inputs BP'!B46 -> CW12_096TOT_PR24 | C43: Water quality improvements - Addressing raw water quality deterioration (grey solutions); ; enhancement totex - Total | D43: £m | L43: =SUM(Table2[[#This Row],[2025-26]:[2029-30]]) -> 0 | M43: No Reallocations
A44: SRN | B44: ='F_Inputs BP'!B47 -> CW12_099TOT_PR24 | C44: Water quality improvements - Addressing raw water quality deterioration (green solutions); enhancement totex - Total | D44: £m | L44: =SUM(Table2[[#This Row],[2025-26]:[2029-30]]) -> 0 | M44: No Reallocations
A45: SRN | B45: ='F_Inputs BP'!B48 -> CW17_096TOT_PR24 | C45: Water quality improvements - Addressing raw water quality deterioration (grey solutions); ; enhancement totex - Total | D45: £m | L45: =SUM(Table2[[#This Row],[2025-26]:[2029-30]]) -> 0 | M45: No Reallocations
A46: SRN | B46: ='F_Inputs BP'!B49 -> CW17_099TOT_PR24 | C46: Water quality improvements - Addressing raw water quality deterioration (green solutions); enhancement totex - Total | D46: £m | L46: =SUM(Table2[[#This Row],[2025-26]:[2029-30]]) -> 0 | M46: No Reallocations
A47: TMS | B47: ='F_Inputs BP'!B50 -> CW3_099TOT_PR24 | C47: Water quality improvements - Addressing raw water quality deterioration (grey solutions); ; enhancement totex - Total | D47: £m | G47: ='F_Inputs BP'!H50+33.311 -> 33.311 | H47: ='F_Inputs BP'!I50+48.595 -> 48.595 | I47: ='F_Inputs BP'!J50+54.129 -> 54.129 | J47: ='F_Inputs BP'!K50+31.776 -> 31.776 | K47: ='F_Inputs BP'!L50+11.305 -> 11.305 | L47: =SUM(Table2[[#This Row],[2025-26]:[2029-30]]) -> 179.116 | M47: Reallocation of £179.116m from CW3.130-131 | N47: 179.116
A48: TMS | B48: ='F_Inputs BP'!B51 -> CW3_102TOT_PR24 | C48: Water quality improvements - Addressing raw water quality deterioration (green solutions); enhancement totex - Total | D48: £m | L48: =SUM(Table2[[#This Row],[2025-26]:[2029-30]]) -> 0 | M48: No Reallocations
A49: TMS | B49: ='F_Inputs BP'!B52 -> CW12_096TOT_PR24 | C49: Water quality improvements - Addressing raw water quality deterioration (grey solutions); ; enhancement totex - Total | D49: £m | L49: =SUM(Table2[[#This Row],[2025-26]:[2029-30]]) -> 0 | M49: No Reallocations
A50: TMS | B50: ='F_Inputs BP'!B53 -> CW12_099TOT_PR24 | C50: Water quality improvements - Addressing raw water quality deterioration (green solutions); enhancement totex - Total | D50: £m | L50: =SUM(Table2[[#This Row],[2025-26]:[2029-30]]) -> 0 | M50: No Reallocations
A51: TMS | B51: ='F_Inputs BP'!B54 -> CW17_096TOT_PR24 | C51: Water quality improvements - Addressing raw water quality deterioration (grey solutions); ; enhancement totex - Total | D51: £m | L51: =SUM(Table2[[#This Row],[2025-26]:[2029-30]]) -> 0 | M51: No Reallocations
A52: TMS | B52: ='F_Inputs BP'!B55 -> CW17_099TOT_PR24 | C52: Water quality improvements - Addressing raw water quality deterioration (green solutions); enhancement totex - Total | D52: £m | L52: =SUM(Table2[[#This Row],[2025-26]:[2029-30]]) -> 0 | M52: No Reallocations
A53: NWT | B53: ='F_Inputs BP'!B56 -> CW3_099TOT_PR24 | C53: Water quality improvements - Addressing raw water quality deterioration (grey solutions); ; enhancement totex - Total | D53: £m | L53: =SUM(Table2[[#This Row],[2025-26]:[2029-30]]) -> 0 | M53: No Reallocations
A54: NWT | B54: ='F_Inputs BP'!B57 -> CW3_102TOT_PR24 | C54: Water quality improvements - Addressing raw water quality deterioration (green solutions); enhancement totex - Total | D54: £m | L54: =SUM(Table2[[#This Row],[2025-26]:[2029-30]]) -> 0 | M54: No Reallocations
A55: NWT | B55: ='F_Inputs BP'!B58 -> CW12_096TOT_PR24 | C55: Water quality improvements - Addressing raw water quality deterioration (grey solutions); ; enhancement totex - Total | D55: £m | L55: =SUM(Table2[[#This Row],[2025-26]:[2029-30]]) -> 0 | M55: No Reallocations
A56: NWT | B56: ='F_Inputs BP'!B59 -> CW12_099TOT_PR24 | C56: Water quality improvements - Addressing raw water quality deterioration (green solutions); enhancement totex - Total | D56: £m | L56: =SUM(Table2[[#This Row],[2025-26]:[2029-30]]) -> 0 | M56: No Reallocations
A57: NWT | B57: ='F_Inputs BP'!B60 -> CW17_096TOT_PR24 | C57: Water quality improvements - Addressing raw water quality deterioration (grey solutions); ; enhancement totex - Total | D57: £m | L57: =SUM(Table2[[#This Row],[2025-26]:[2029-30]]) -> 0 | M57: No Reallocations
A58: NWT | B58: ='F_Inputs BP'!B61 -> CW17_099TOT_PR24 | C58: Water quality improvements - Addressing raw water quality deterioration (green solutions); enhancement totex - Total | D58: £m | L58: =SUM(Table2[[#This Row],[2025-26]:[2029-30]]) -> 0 | M58: No Reallocations
A59: WSX | B59: ='F_Inputs BP'!B62 -> CW3_099TOT_PR24 | C59: Water quality improvements - Addressing raw water quality deterioration (grey solutions); ; enhancement totex - Total | D59: £m | L59: =SUM(Table2[[#This Row],[2025-26]:[2029-30]]) -> 0 | M59: No Reallocations
A60: WSX | B60: ='F_Inputs BP'!B63 -> CW3_102TOT_PR24 | C60: Water quality improvements - Addressing raw water quality deterioration (green solutions); enhancement totex - Total | D60: £m | L60: =SUM(Table2[[#This Row],[2025-26]:[2029-30]]) -> 0 | M60: No Reallocations
A61: WSX | B61: ='F_Inputs BP'!B64 -> CW12_096TOT_PR24 | C61: Water quality improvements - Addressing raw water quality deterioration (grey solutions); ; enhancement totex - Total | D61: £m | L61: =SUM(Table2[[#This Row],[2025-26]:[2029-30]]) -> 0 | M61: No Reallocations
A62: WSX | B62: ='F_Inputs BP'!B65 -> CW12_099TOT_PR24 | C62: Water quality improvements - Addressing raw water quality deterioration (green solutions); enhancement totex - Total | D62: £m | L62: =SUM(Table2[[#This Row],[2025-26]:[2029-30]]) -> 0 | M62: No Reallocations
A63: WSX | B63: ='F_Inputs BP'!B66 -> CW17_096TOT_PR24 | C63: Water quality improvements - Addressing raw water quality deterioration (grey solutions); ; enhancement totex - Total | D63: £m | L63: =SUM(Table2[[#This Row],[2025-26]:[2029-30]]) -> 0 | M63: No Reallocations
A64: WSX | B64: ='F_Inputs BP'!B67 -> CW17_099TOT_PR24 | C64: Water quality improvements - Addressing raw water quality deterioration (green solutions); enhancement totex - Total | D64: £m | L64: =SUM(Table2[[#This Row],[2025-26]:[2029-30]]) -> 0 | M64: No Reallocations
A65: YKY | B65: ='F_Inputs BP'!B68 -> CW3_099TOT_PR24 | C65: Water quality improvements - Addressing raw water quality deterioration (grey solutions); ; enhancement totex - Total | D65: £m | L65: =SUM(Table2[[#This Row],[2025-26]:[2029-30]]) -> 0 | M65: No Reallocations
A66: YKY | B66: ='F_Inputs BP'!B69 -> CW3_102TOT_PR24 | C66: Water quality improvements - Addressing raw water quality deterioration (green solutions); enhancement totex - Total | D66: £m | L66: =SUM(Table2[[#This Row],[2025-26]:[2029-30]]) -> 0 | M66: No Reallocations
A67: YKY | B67: ='F_Inputs BP'!B70 -> CW12_096TOT_PR24 | C67: Water quality improvements - Addressing raw water quality deterioration (grey solutions); ; enhancement totex - Total | D67: £m | L67: =SUM(Table2[[#This Row],[2025-26]:[2029-30]]) -> 0 | M67: No Reallocations
A68: YKY | B68: ='F_Inputs BP'!B71 -> CW12_099TOT_PR24 | C68: Water quality improvements - Addressing raw water quality deterioration (green solutions); enhancement totex - Total | D68: £m | L68: =SUM(Table2[[#This Row],[2025-26]:[2029-30]]) -> 0 | M68: No Reallocations
A69: YKY | B69: ='F_Inputs BP'!B72 -> CW17_096TOT_PR24 | C69: Water quality improvements - Addressing raw water quality deterioration (grey solutions); ; enhancement totex - Total | D69: £m | L69: =SUM(Table2[[#This Row],[2025-26]:[2029-30]]) -> 0 | M69: No Reallocations
A70: YKY | B70: ='F_Inputs BP'!B73 -> CW17_099TOT_PR24 | C70: Water quality improvements - Addressing raw water quality deterioration (green solutions); enhancement totex - Total | D70: £m | L70: =SUM(Table2[[#This Row],[2025-26]:[2029-30]]) -> 0 | M70: No Reallocations
A71: AFW | B71: ='F_Inputs BP'!B74 -> CW3_099TOT_PR24 | C71: Water quality improvements - Addressing raw water quality deterioration (grey solutions); ; enhancement totex - Total | D71: £m | L71: =SUM(Table2[[#This Row],[2025-26]:[2029-30]]) -> 0 | M71: No Reallocations
A72: AFW | B72: ='F_Inputs BP'!B75 -> CW3_102TOT_PR24 | C72: Water quality improvements - Addressing raw water quality deterioration (green solutions); enhancement totex - Total | D72: £m | L72: =SUM(Table2[[#This Row],[2025-26]:[2029-30]]) -> 0 | M72: No Reallocations
A73: AFW | B73: ='F_Inputs BP'!B76 -> CW12_096TOT_PR24 | C73: Water quality improvements - Addressing raw water quality deterioration (grey solutions); ; enhancement totex - Total | D73: £m | L73: =SUM(Table2[[#This Row],[2025-26]:[2029-30]]) -> 0 | M73: No Reallocations
A74: AFW | B74: ='F_Inputs BP'!B77 -> CW12_099TOT_PR24 | C74: Water quality improvements - Addressing raw water quality deterioration (green solutions); enhancement totex - Total | D74: £m | L74: =SUM(Table2[[#This Row],[2025-26]:[2029-30]]) -> 0 | M74: No Reallocations
A75: AFW | B75: ='F_Inputs BP'!B78 -> CW17_096TOT_PR24 | C75: Water quality improvements - Addressing raw water quality deterioration (grey solutions); ; enhancement totex - Total | D75: £m | L75: =SUM(Table2[[#This Row],[2025-26]:[2029-30]]) -> 0 | M75: No Reallocations
A76: AFW | B76: ='F_Inputs BP'!B79 -> CW17_099TOT_PR24 | C76: Water quality improvements - Addressing raw water quality deterioration (green solutions); enhancement totex - Total | D76: £m | L76: =SUM(Table2[[#This Row],[2025-26]:[2029-30]]) -> 0 | M76: No Reallocations
A77: BRL | B77: ='F_Inputs BP'!B80 -> CW3_099TOT_PR24 | C77: Water quality improvements - Addressing raw water quality deterioration (grey solutions); ; enhancement totex - Total | D77: £m | L77: =SUM(Table2[[#This Row],[2025-26]:[2029-30]]) -> 0 | M77: Reallocation of £30.693m from line CW3.120 for Stowey WTW and Littleton WTW | N77: Take into account at DD
A78: BRL | B78: ='F_Inputs BP'!B81 -> CW3_102TOT_PR24 | C78: Water quality improvements - Addressing raw water quality deterioration (green solutions); enhancement totex - Total | D78: £m | L78: =SUM(Table2[[#This Row],[2025-26]:[2029-30]]) -> 0 | M78: No Reallocations
A79: BRL | B79: ='F_Inputs BP'!B82 -> CW12_096TOT_PR24 | C79: Water quality improvements - Addressing raw water quality deterioration (grey solutions); ; enhancement totex - Total | D79: £m | G79: ='F_Inputs BP'!H82 ->  | H79: ='F_Inputs BP'!I82 ->  | I79: ='F_Inputs BP'!J82 ->  | J79: ='F_Inputs BP'!K82 ->  | K79: ='F_Inputs BP'!L82 ->  | L79: =SUM(Table2[[#This Row],[2025-26]:[2029-30]]) -> 0 | M79: No Reallocations
A80: BRL | B80: ='F_Inputs BP'!B83 -> CW12_099TOT_PR24 | C80: Water quality improvements - Addressing raw water quality deterioration (green solutions); enhancement totex - Total | D80: £m | L80: =SUM(Table2[[#This Row],[2025-26]:[2029-30]]) -> 0 | M80: No Reallocations
A81: BRL | B81: ='F_Inputs BP'!B84 -> CW17_096TOT_PR24 | C81: Water quality improvements - Addressing raw water quality deterioration (grey solutions); ; enhancement totex - Total | D81: £m | L81: =SUM(Table2[[#This Row],[2025-26]:[2029-30]]) -> 0 | M81: No Reallocations
A82: BRL | B82: ='F_Inputs BP'!B85 -> CW17_099TOT_PR24 | C82: Water quality improvements - Addressing raw water quality deterioration (green solutions); enhancement totex - Total | D82: £m | L82: =SUM(Table2[[#This Row],[2025-26]:[2029-30]]) -> 0 | M82: No Reallocations
A83: PRT | B83: ='F_Inputs BP'!B86 -> CW3_099TOT_PR24 | C83: Water quality improvements - Addressing raw water quality deterioration (grey solutions); ; enhancement totex - Total | D83: £m | G83: ='F_Inputs BP'!H86+0.991 -> 4.6809 | H83: ='F_Inputs BP'!I86+1.844 -> 13.33638 | I83: ='F_Inputs BP'!J86+5.804 -> 13.74407 | J83: ='F_Inputs BP'!K86+0.234 -> 5.53376 | K83: ='F_Inputs BP'!L86+0.234 -> 1.38085 | L83: =SUM(Table2[[#This Row],[2025-26]:[2029-30]]) -> 38.67596 | M83: Reallocation of £9.107m from CW3.130-131 | N83: 9.107
A84: PRT | B84: ='F_Inputs BP'!B87 -> CW3_102TOT_PR24 | C84: Water quality improvements - Addressing raw water quality deterioration (green solutions); enhancement totex - Total | D84: £m | L84: =SUM(Table2[[#This Row],[2025-26]:[2029-30]]) -> 0
A85: PRT | B85: ='F_Inputs BP'!B88 -> CW12_096TOT_PR24 | C85: Water quality improvements - Addressing raw water quality deterioration (grey solutions); ; enhancement totex - Total | D85: £m | L85: =SUM(Table2[[#This Row],[2025-26]:[2029-30]]) -> 0 | M85: No Reallocations
A86: PRT | B86: ='F_Inputs BP'!B89 -> CW12_099TOT_PR24 | C86: Water quality improvements - Addressing raw water quality deterioration (green solutions); enhancement totex - Total | D86: £m | L86: =SUM(Table2[[#This Row],[2025-26]:[2029-30]]) -> 0 | M86: No Reallocations
A87: PRT | B87: ='F_Inputs BP'!B90 -> CW17_096TOT_PR24 | C87: Water quality improvements - Addressing raw water quality deterioration (grey solutions); ; enhancement totex - Total | D87: £m | L87: =SUM(Table2[[#This Row],[2025-26]:[2029-30]]) -> 0 | M87: No Reallocations
A88: PRT | B88: ='F_Inputs BP'!B91 -> CW17_099TOT_PR24 | C88: Water quality improvements - Addressing raw water quality deterioration (green solutions); enhancement totex - Total | D88: £m | L88: =SUM(Table2[[#This Row],[2025-26]:[2029-30]]) -> 0 | M88: No Reallocations
A89: SEW | B89: ='F_Inputs BP'!B92 -> CW3_099TOT_PR24 | C89: Water quality improvements - Addressing raw water quality deterioration (grey solutions); ; enhancement totex - Total | D89: £m | L89: =SUM(Table2[[#This Row],[2025-26]:[2029-30]]) -> 0 | M89: No Reallocations
A90: SEW | B90: ='F_Inputs BP'!B93 -> CW3_102TOT_PR24 | C90: Water quality improvements - Addressing raw water quality deterioration (green solutions); enhancement totex - Total | D90: £m | L90: =SUM(Table2[[#This Row],[2025-26]:[2029-30]]) -> 0 | M90: No Reallocations
A91: SEW | B91: ='F_Inputs BP'!B94 -> CW12_096TOT_PR24 | C91: Water quality improvements - Addressing raw water quality deterioration (grey solutions); ; enhancement totex - Total | D91: £m | L91: =SUM(Table2[[#This Row],[2025-26]:[2029-30]]) -> 0 | M91: No Reallocations
A92: SEW | B92: ='F_Inputs BP'!B95 -> CW12_099TOT_PR24 | C92: Water quality improvements - Addressing raw water quality deterioration (green solutions); enhancement totex - Total | D92: £m | L92: =SUM(Table2[[#This Row],[2025-26]:[2029-30]]) -> 0 | M92: No Reallocations
A93: SEW | B93: ='F_Inputs BP'!B96 -> CW17_096TOT_PR24 | C93: Water quality improvements - Addressing raw water quality deterioration (grey solutions); ; enhancement totex - Total | D93: £m | L93: =SUM(Table2[[#This Row],[2025-26]:[2029-30]]) -> 0 | M93: No Reallocations
A94: SEW | B94: ='F_Inputs BP'!B97 -> CW17_099TOT_PR24 | C94: Water quality improvements - Addressing raw water quality deterioration (green solutions); enhancement totex - Total | D94: £m | L94: =SUM(Table2[[#This Row],[2025-26]:[2029-30]]) -> 0 | M94: No Reallocations
A95: SSC | B95: ='F_Inputs BP'!B98 -> CW3_099TOT_PR24 | C95: Water quality improvements - Addressing raw water quality deterioration (grey solutions); ; enhancement totex - Total | D95: £m | L95: =SUM(Table2[[#This Row],[2025-26]:[2029-30]]) -> 0 | M95: No Reallocations
A96: SSC | B96: ='F_Inputs BP'!B99 -> CW3_102TOT_PR24 | C96: Water quality improvements - Addressing raw water quality deterioration (green solutions); enhancement totex - Total | D96: £m | L96: =SUM(Table2[[#This Row],[2025-26]:[2029-30]]) -> 0 | M96: No Reallocations
A97: SSC | B97: ='F_Inputs BP'!B100 -> CW12_096TOT_PR24 | C97: Water quality improvements - Addressing raw water quality deterioration (grey solutions); ; enhancement totex - Total | D97: £m | L97: =SUM(Table2[[#This Row],[2025-26]:[2029-30]]) -> 0 | M97: No Reallocations
A98: SSC | B98: ='F_Inputs BP'!B101 -> CW12_099TOT_PR24 | C98: Water quality improvements - Addressing raw water quality deterioration (green solutions); enhancement totex - Total | D98: £m | L98: =SUM(Table2[[#This Row],[2025-26]:[2029-30]]) -> 0 | M98: No Reallocations
A99: SSC | B99: ='F_Inputs BP'!B102 -> CW17_096TOT_PR24 | C99: Water quality improvements - Addressing raw water quality deterioration (grey solutions); ; enhancement totex - Total | D99: £m | L99: =SUM(Table2[[#This Row],[2025-26]:[2029-30]]) -> 0 | M99: No Reallocations
A100: SSC | B100: ='F_Inputs BP'!B103 -> CW17_099TOT_PR24 | C100: Water quality improvements - Addressing raw water quality deterioration (green solutions); enhancement totex - Total | D100: £m | L100: =SUM(Table2[[#This Row],[2025-26]:[2029-30]]) -> 0 | M100: No Reallocations
A101: SES | B101: ='F_Inputs BP'!B104 -> CW3_099TOT_PR24 | C101: Water quality improvements - Addressing raw water quality deterioration (grey solutions); ; enhancement totex - Total | D101: £m | L101: =SUM(Table2[[#This Row],[2025-26]:[2029-30]]) -> 0 | M101: No Reallocations
A102: SES | B102: ='F_Inputs BP'!B105 -> CW3_102TOT_PR24 | C102: Water quality improvements - Addressing raw water quality deterioration (green solutions); enhancement totex - Total | D102: £m | L102: =SUM(Table2[[#This Row],[2025-26]:[2029-30]]) -> 0 | M102: No Reallocations
A103: SES | B103: ='F_Inputs BP'!B106 -> CW12_096TOT_PR24 | C103: Water quality improvements - Addressing raw water quality deterioration (grey solutions); ; enhancement totex - Total | D103: £m | L103: =SUM(Table2[[#This Row],[2025-26]:[2029-30]]) -> 0 | M103: No Reallocations
A104: SES | B104: ='F_Inputs BP'!B107 -> CW12_099TOT_PR24 | C104: Water quality improvements - Addressing raw water quality deterioration (green solutions); enhancement totex - Total | D104: £m | L104: =SUM(Table2[[#This Row],[2025-26]:[2029-30]]) -> 0 | M104: No Reallocations
A105: SES | B105: ='F_Inputs BP'!B108 -> CW17_096TOT_PR24 | C105: Water quality improvements - Addressing raw water quality deterioration (grey solutions); ; enhancement totex - Total | D105: £m | L105: =SUM(Table2[[#This Row],[2025-26]:[2029-30]]) -> 0 | M105: No Reallocations
A106: SES | B106: ='F_Inputs BP'!B109 -> CW17_099TOT_PR24 | C106: Water quality improvements - Addressing raw water quality deterioration (green solutions); enhancement totex - Total | D106: £m | L106: =SUM(Table2[[#This Row],[2025-26]:[2029-30]]) -> 0 | M106: No Reallocations

Sheet Consolidated Input
A1: =RIGHT(CELL("filename", $A$1), LEN(CELL("filename", $A$1)) - SEARCH("]", CELL("filename", $A$1))) -> Consolidated Input
A2: Removed CW3 allocations for 2023-2024
A4: Acronym | B4: Reference | C4: Item Description | D4: Unit | E4: 2023-24 | F4: 2024-25 | G4: 2025-26 | H4: 2026-27 | I4: 2027-28 | J4: 2028-29 | K4: 2029-30
A5: ANH | B5: ='F_Inputs BP'!B8 -> CW3_099TOT_PR24 | C5: Water quality improvements - Addressing raw water quality deterioration (grey solutions); ; enhancement totex - Total | D5: £m | G5: =IF(ISNUMBER(Table2[[#This Row],[2025-26]]),Table2[[#This Row],[2025-26]],'F_Inputs BP'!H8) -> 19.865 | H5: =IF(ISNUMBER(Table2[[#This Row],[2026-27]]),Table2[[#This Row],[2026-27]],'F_Inputs BP'!I8) -> 46.342 | I5: =IF(ISNUMBER(Table2[[#This Row],[2027-28]]),Table2[[#This Row],[2027-28]],'F_Inputs BP'!J8) -> 63.262 | J5: =IF(ISNUMBER(Table2[[#This Row],[2028-29]]),Table2[[#This Row],[2028-29]],'F_Inputs BP'!K8) -> 59.832 | K5: =IF(ISNUMBER(Table2[[#This Row],[2029-30]]),Table2[[#This Row],[2029-30]],'F_Inputs BP'!L8) -> 36.1
A6: ANH | B6: ='F_Inputs BP'!B9 -> CW3_102TOT_PR24 | C6: Water quality improvements - Addressing raw water quality deterioration (green solutions); enhancement totex - Total | D6: £m | G6: =IF(ISNUMBER(Table2[[#This Row],[2025-26]]),Table2[[#This Row],[2025-26]],'F_Inputs BP'!H9) -> 0 | H6: =IF(ISNUMBER(Table2[[#This Row],[2026-27]]),Table2[[#This Row],[2026-27]],'F_Inputs BP'!I9) -> 0 | I6: =IF(ISNUMBER(Table2[[#This Row],[2027-28]]),Table2[[#This Row],[2027-28]],'F_Inputs BP'!J9) -> 0 | J6: =IF(ISNUMBER(Table2[[#This Row],[2028-29]]),Table2[[#This Row],[2028-29]],'F_Inputs BP'!K9) -> 0 | K6: =IF(ISNUMBER(Table2[[#This Row],[2029-30]]),Table2[[#This Row],[2029-30]],'F_Inputs BP'!L9) -> 0
A7: ANH | B7: ='F_Inputs BP'!B10 -> CW12_096TOT_PR24 | C7: Water quality improvements - Addressing raw water quality deterioration (grey solutions); ; enhancement totex - Total | D7: £m | E7: =IF(ISNUMBER(SEARCH("CW3",Consolidated_Input[[#This Row],[Reference]])),0,'F_Inputs BP'!F10) -> 0 | F7: =IF(ISNUMBER(SEARCH("CW3",Consolidated_Input[[#This Row],[Reference]])),0,'F_Inputs BP'!G10) -> 0
A8: ANH | B8: ='F_Inputs BP'!B11 -> CW12_099TOT_PR24 | C8: Water quality improvements - Addressing raw water quality deterioration (green solutions); enhancement totex - Total | D8: £m | E8: =IF(ISNUMBER(SEARCH("CW3",Consolidated_Input[[#This Row],[Reference]])),0,'F_Inputs BP'!F11) -> 0 | F8: =IF(ISNUMBER(SEARCH("CW3",Consolidated_Input[[#This Row],[Reference]])),0,'F_Inputs BP'!G11) -> 0
A9: ANH | B9: ='F_Inputs BP'!B12 -> CW17_096TOT_PR24 | C9: Water quality improvements - Addressing raw water quality deterioration (grey solutions); ; enhancement totex - Total | D9: £m | E9: =IF(ISNUMBER(SEARCH("CW3",Consolidated_Input[[#This Row],[Reference]])),0,'F_Inputs BP'!F12) -> 0 | F9: =IF(ISNUMBER(SEARCH("CW3",Consolidated_Input[[#This Row],[Reference]])),0,'F_Inputs BP'!G12) -> 0
A10: ANH | B10: ='F_Inputs BP'!B13 -> CW17_099TOT_PR24 | C10: Water quality improvements - Addressing raw water quality deterioration (green solutions); enhancement totex - Total | D10: £m | E10: =IF(ISNUMBER(SEARCH("CW3",Consolidated_Input[[#This Row],[Reference]])),0,'F_Inputs BP'!F13) -> 0 | F10: =IF(ISNUMBER(SEARCH("CW3",Consolidated_Input[[#This Row],[Reference]])),0,'F_Inputs BP'!G13) -> 0
A11: WSH | B11: ='F_Inputs BP'!B14 -> CW3_099TOT_PR24 | C11: Water quality improvements - Addressing raw water quality deterioration (grey solutions); ; enhancement totex - Total | D11: £m | G11: =IF(ISNUMBER(Table2[[#This Row],[2025-26]]),Table2[[#This Row],[2025-26]],'F_Inputs BP'!H14) -> 10.456 | H11: =IF(ISNUMBER(Table2[[#This Row],[2026-27]]),Table2[[#This Row],[2026-27]],'F_Inputs BP'!I14) -> 12.066 | I11: =IF(ISNUMBER(Table2[[#This Row],[2027-28]]),Table2[[#This Row],[2027-28]],'F_Inputs BP'!J14) -> 10.712 | J11: =IF(ISNUMBER(Table2[[#This Row],[2028-29]]),Table2[[#This Row],[2028-29]],'F_Inputs BP'!K14) -> 9.027 | K11: =IF(ISNUMBER(Table2[[#This Row],[2029-30]]),Table2[[#This Row],[2029-30]],'F_Inputs BP'!L14) -> 3.677
A12: WSH | B12: ='F_Inputs BP'!B15 -> CW3_102TOT_PR24 | C12: Water quality improvements - Addressing raw water quality deterioration (green solutions); enhancement totex - Total | D12: £m | G12: =IF(ISNUMBER(Table2[[#This Row],[2025-26]]),Table2[[#This Row],[2025-26]],'F_Inputs BP'!H15) -> 1.304 | H12: =IF(ISNUMBER(Table2[[#This Row],[2026-27]]),Table2[[#This Row],[2026-27]],'F_Inputs BP'!I15) -> 1.283 | I12: =IF(ISNUMBER(Table2[[#This Row],[2027-28]]),Table2[[#This Row],[2027-28]],'F_Inputs BP'!J15) -> 1.285 | J12: =IF(ISNUMBER(Table2[[#This Row],[2028-29]]),Table2[[#This Row],[2028-29]],'F_Inputs BP'!K15) -> 1.294 | K12: =IF(ISNUMBER(Table2[[#This Row],[2029-30]]),Table2[[#This Row],[2029-30]],'F_Inputs BP'!L15) -> 1.31
A13: WSH | B13: ='F_Inputs BP'!B16 -> CW12_096TOT_PR24 | C13: Water quality improvements - Addressing raw water quality deterioration (grey solutions); ; enhancement totex - Total | D13: £m | E13: =IF(ISNUMBER(SEARCH("CW3",Consolidated_Input[[#This Row],[Reference]])),0,'F_Inputs BP'!F16) -> 0 | F13: =IF(ISNUMBER(SEARCH("CW3",Consolidated_Input[[#This Row],[Reference]])),0,'F_Inputs BP'!G16) -> 0
A14: WSH | B14: ='F_Inputs BP'!B17 -> CW12_099TOT_PR24 | C14: Water quality improvements - Addressing raw water quality deterioration (green solutions); enhancement totex - Total | D14: £m | E14: =IF(ISNUMBER(SEARCH("CW3",Consolidated_Input[[#This Row],[Reference]])),0,'F_Inputs BP'!F17) -> 0 | F14: =IF(ISNUMBER(SEARCH("CW3",Consolidated_Input[[#This Row],[Reference]])),0,'F_Inputs BP'!G17) -> 0
A15: WSH | B15: ='F_Inputs BP'!B18 -> CW17_096TOT_PR24 | C15: Water quality improvements - Addressing raw water quality deterioration (grey solutions); ; enhancement totex - Total | D15: £m | E15: =IF(ISNUMBER(SEARCH("CW3",Consolidated_Input[[#This Row],[Reference]])),0,'F_Inputs BP'!F18) -> 0 | F15: =IF(ISNUMBER(SEARCH("CW3",Consolidated_Input[[#This Row],[Reference]])),0,'F_Inputs BP'!G18) -> 0
A16: WSH | B16: ='F_Inputs BP'!B19 -> CW17_099TOT_PR24 | C16: Water quality improvements - Addressing raw water quality deterioration (green solutions); enhancement totex - Total | D16: £m | E16: =IF(ISNUMBER(SEARCH("CW3",Consolidated_Input[[#This Row],[Reference]])),0,'F_Inputs BP'!F19) -> 0 | F16: =IF(ISNUMBER(SEARCH("CW3",Consolidated_Input[[#This Row],[Reference]])),0,'F_Inputs BP'!G19) -> 0
A17: HDD | B17: ='F_Inputs BP'!B20 -> CW3_099TOT_PR24 | C17: Water quality improvements - Addressing raw water quality deterioration (grey solutions); ; enhancement totex - Total | D17: £m | G17: =IF(ISNUMBER(Table2[[#This Row],[2025-26]]),Table2[[#This Row],[2025-26]],'F_Inputs BP'!H20) -> 0 | H17: =IF(ISNUMBER(Table2[[#This Row],[2026-27]]),Table2[[#This Row],[2026-27]],'F_Inputs BP'!I20) -> 0 | I17: =IF(ISNUMBER(Table2[[#This Row],[2027-28]]),Table2[[#This Row],[2027-28]],'F_Inputs BP'!J20) -> 0 | J17: =IF(ISNUMBER(Table2[[#This Row],[2028-29]]),Table2[[#This Row],[2028-29]],'F_Inputs BP'!K20) -> 0 | K17: =IF(ISNUMBER(Table2[[#This Row],[2029-30]]),Table2[[#This Row],[2029-30]],'F_Inputs BP'!L20) -> 0
A18: HDD | B18: ='F_Inputs BP'!B21 -> CW3_102TOT_PR24 | C18: Water quality improvements - Addressing raw water quality deterioration (green solutions); enhancement totex - Total | D18: £m | G18: =IF(ISNUMBER(Table2[[#This Row],[2025-26]]),Table2[[#This Row],[2025-26]],'F_Inputs BP'!H21) -> 0 | H18: =IF(ISNUMBER(Table2[[#This Row],[2026-27]]),Table2[[#This Row],[2026-27]],'F_Inputs BP'!I21) -> 0 | I18: =IF(ISNUMBER(Table2[[#This Row],[2027-28]]),Table2[[#This Row],[2027-28]],'F_Inputs BP'!J21) -> 0 | J18: =IF(ISNUMBER(Table2[[#This Row],[2028-29]]),Table2[[#This Row],[2028-29]],'F_Inputs BP'!K21) -> 0 | K18: =IF(ISNUMBER(Table2[[#This Row],[2029-30]]),Table2[[#This Row],[2029-30]],'F_Inputs BP'!L21) -> 0
A19: HDD | B19: ='F_Inputs BP'!B22 -> CW12_096TOT_PR24 | C19: Water quality improvements - Addressing raw water quality deterioration (grey solutions); ; enhancement totex - Total | D19: £m | E19: =IF(ISNUMBER(SEARCH("CW3",Consolidated_Input[[#This Row],[Reference]])),0,'F_Inputs BP'!F22) -> 0 | F19: =IF(ISNUMBER(SEARCH("CW3",Consolidated_Input[[#This Row],[Reference]])),0,'F_Inputs BP'!G22) -> 0
A20: HDD | B20: ='F_Inputs BP'!B23 -> CW12_099TOT_PR24 | C20: Water quality improvements - Addressing raw water quality deterioration (green solutions); enhancement totex - Total | D20: £m | E20: =IF(ISNUMBER(SEARCH("CW3",Consolidated_Input[[#This Row],[Reference]])),0,'F_Inputs BP'!F23) -> 0 | F20: =IF(ISNUMBER(SEARCH("CW3",Consolidated_Input[[#This Row],[Reference]])),0,'F_Inputs BP'!G23) -> 0
A21: HDD | B21: ='F_Inputs BP'!B24 -> CW17_096TOT_PR24 | C21: Water quality improvements - Addressing raw water quality deterioration (grey solutions); ; enhancement totex - Total | D21: £m | E21: =IF(ISNUMBER(SEARCH("CW3",Consolidated_Input[[#This Row],[Reference]])),0,'F_Inputs BP'!F24) -> 0 | F21: =IF(ISNUMBER(SEARCH("CW3",Consolidated_Input[[#This Row],[Reference]])),0,'F_Inputs BP'!G24) -> 0
A22: HDD | B22: ='F_Inputs BP'!B25 -> CW17_099TOT_PR24 | C22: Water quality improvements - Addressing raw water quality deterioration (green solutions); enhancement totex - Total | D22: £m | E22: =IF(ISNUMBER(SEARCH("CW3",Consolidated_Input[[#This Row],[Reference]])),0,'F_Inputs BP'!F25) -> 0 | F22: =IF(ISNUMBER(SEARCH("CW3",Consolidated_Input[[#This Row],[Reference]])),0,'F_Inputs BP'!G25) -> 0
A23: NES | B23: ='F_Inputs BP'!B26 -> CW3_099TOT_PR24 | C23: Water quality improvements - Addressing raw water quality deterioration (grey solutions); ; enhancement totex - Total | D23: £m | G23: =IF(ISNUMBER(Table2[[#This Row],[2025-26]]),Table2[[#This Row],[2025-26]],'F_Inputs BP'!H26) -> 3.43 | H23: =IF(ISNUMBER(Table2[[#This Row],[2026-27]]),Table2[[#This Row],[2026-27]],'F_Inputs BP'!I26) -> 3.43 | I23: =IF(ISNUMBER(Table2[[#This Row],[2027-28]]),Table2[[#This Row],[2027-28]],'F_Inputs BP'!J26) -> 0.397 | J23: =IF(ISNUMBER(Table2[[#This Row],[2028-29]]),Table2[[#This Row],[2028-29]],'F_Inputs BP'!K26) -> 0.397 | K23: =IF(ISNUMBER(Table2[[#This Row],[2029-30]]),Table2[[#This Row],[2029-30]],'F_Inputs BP'!L26) -> 0.397
A24: NES | B24: ='F_Inputs BP'!B27 -> CW3_102TOT_PR24 | C24: Water quality improvements - Addressing raw water quality deterioration (green solutions); enhancement totex - Total | D24: £m | G24: =IF(ISNUMBER(Table2[[#This Row],[2025-26]]),Table2[[#This Row],[2025-26]],'F_Inputs BP'!H27) -> 0 | H24: =IF(ISNUMBER(Table2[[#This Row],[2026-27]]),Table2[[#This Row],[2026-27]],'F_Inputs BP'!I27) -> 0 | I24: =IF(ISNUMBER(Table2[[#This Row],[2027-28]]),Table2[[#This Row],[2027-28]],'F_Inputs BP'!J27) -> 0 | J24: =IF(ISNUMBER(Table2[[#This Row],[2028-29]]),Table2[[#This Row],[2028-29]],'F_Inputs BP'!K27) -> 0 | K24: =IF(ISNUMBER(Table2[[#This Row],[2029-30]]),Table2[[#This Row],[2029-30]],'F_Inputs BP'!L27) -> 0
A25: NES | B25: ='F_Inputs BP'!B28 -> CW12_096TOT_PR24 | C25: Water quality improvements - Addressing raw water quality deterioration (grey solutions); ; enhancement totex - Total | D25: £m | E25: =IF(ISNUMBER(SEARCH("CW3",Consolidated_Input[[#This Row],[Reference]])),0,'F_Inputs BP'!F28) -> 0 | F25: =IF(ISNUMBER(SEARCH("CW3",Consolidated_Input[[#This Row],[Reference]])),0,'F_Inputs BP'!G28) -> 0
A26: NES | B26: ='F_Inputs BP'!B29 -> CW12_099TOT_PR24 | C26: Water quality improvements - Addressing raw water quality deterioration (green solutions); enhancement totex - Total | D26: £m | E26: =IF(ISNUMBER(SEARCH("CW3",Consolidated_Input[[#This Row],[Reference]])),0,'F_Inputs BP'!F29) -> 0 | F26: =IF(ISNUMBER(SEARCH("CW3",Consolidated_Input[[#This Row],[Reference]])),0,'F_Inputs BP'!G29) -> 0
A27: NES | B27: ='F_Inputs BP'!B30 -> CW17_096TOT_PR24 | C27: Water quality improvements - Addressing raw water quality deterioration (grey solutions); ; enhancement totex - Total | D27: £m | E27: =IF(ISNUMBER(SEARCH("CW3",Consolidated_Input[[#This Row],[Reference]])),0,'F_Inputs BP'!F30) -> 0 | F27: =IF(ISNUMBER(SEARCH("CW3",Consolidated_Input[[#This Row],[Reference]])),0,'F_Inputs BP'!G30) -> 0
A28: NES | B28: ='F_Inputs BP'!B31 -> CW17_099TOT_PR24 | C28: Water quality improvements - Addressing raw water quality deterioration (green solutions); enhancement totex - Total | D28: £m | E28: =IF(ISNUMBER(SEARCH("CW3",Consolidated_Input[[#This Row],[Reference]])),0,'F_Inputs BP'!F31) -> 0 | F28: =IF(ISNUMBER(SEARCH("CW3",Consolidated_Input[[#This Row],[Reference]])),0,'F_Inputs BP'!G31) -> 0
A29: SVE | B29: ='F_Inputs BP'!B32 -> CW3_099TOT_PR24 | C29: Water quality improvements - Addressing raw water quality deterioration (grey solutions); ; enhancement totex - Total | D29: £m | G29: =IF(ISNUMBER(Table2[[#This Row],[2025-26]]),Table2[[#This Row],[2025-26]],'F_Inputs BP'!H32) -> 42.7984125 | H29: =IF(ISNUMBER(Table2[[#This Row],[2026-27]]),Table2[[#This Row],[2026-27]],'F_Inputs BP'!I32) -> 40.32453277 | I29: =IF(ISNUMBER(Table2[[#This Row],[2027-28]]),Table2[[#This Row],[2027-28]],'F_Inputs BP'!J32) -> 113.0104954 | J29: =IF(ISNUMBER(Table2[[#This Row],[2028-29]]),Table2[[#This Row],[2028-29]],'F_Inputs BP'!K32) -> 120.3234156 | K29: =IF(ISNUMBER(Table2[[#This Row],[2029-30]]),Table2[[#This Row],[2029-30]],'F_Inputs BP'!L32) -> 112.9296508
A30: SVE | B30: ='F_Inputs BP'!B33 -> CW3_102TOT_PR24 | C30: Water quality improvements - Addressing raw water quality deterioration (green solutions); enhancement totex - Total | D30: £m | G30: =IF(ISNUMBER(Table2[[#This Row],[2025-26]]),Table2[[#This Row],[2025-26]],'F_Inputs BP'!H33) -> 3.887081326 | H30: =IF(ISNUMBER(Table2[[#This Row],[2026-27]]),Table2[[#This Row],[2026-27]],'F_Inputs BP'!I33) -> 3.911372479 | I30: =IF(ISNUMBER(Table2[[#This Row],[2027-28]]),Table2[[#This Row],[2027-28]],'F_Inputs BP'!J33) -> 3.991472933 | J30: =IF(ISNUMBER(Table2[[#This Row],[2028-29]]),Table2[[#This Row],[2028-29]],'F_Inputs BP'!K33) -> 4.07251604 | K30: =IF(ISNUMBER(Table2[[#This Row],[2029-30]]),Table2[[#This Row],[2029-30]],'F_Inputs BP'!L33) -> 4.097286671
A31: SVE | B31: ='F_Inputs BP'!B34 -> CW12_096TOT_PR24 | C31: Water quality improvements - Addressing raw water quality deterioration (grey solutions); ; enhancement totex - Total | D31: £m | E31: =IF(ISNUMBER(SEARCH("CW3",Consolidated_Input[[#This Row],[Reference]])),0,'F_Inputs BP'!F34) -> 0 | F31: =IF(ISNUMBER(SEARCH("CW3",Consolidated_Input[[#This Row],[Reference]])),0,'F_Inputs BP'!G34) -> 13.078
A32: SVE | B32: ='F_Inputs BP'!B35 -> CW12_099TOT_PR24 | C32: Water quality improvements - Addressing raw water quality deterioration (green solutions); enhancement totex - Total | D32: £m | E32: =IF(ISNUMBER(SEARCH("CW3",Consolidated_Input[[#This Row],[Reference]])),0,'F_Inputs BP'!F35) -> 0 | F32: =IF(ISNUMBER(SEARCH("CW3",Consolidated_Input[[#This Row],[Reference]])),0,'F_Inputs BP'!G35) -> 0.2727510946
A33: SVE | B33: ='F_Inputs BP'!B36 -> CW17_096TOT_PR24 | C33: Water quality improvements - Addressing raw water quality deterioration (grey solutions); ; enhancement totex - Total | D33: £m | E33: =IF(ISNUMBER(SEARCH("CW3",Consolidated_Input[[#This Row],[Reference]])),0,'F_Inputs BP'!F36) -> 0 | F33: =IF(ISNUMBER(SEARCH("CW3",Consolidated_Input[[#This Row],[Reference]])),0,'F_Inputs BP'!G36) -> 0
A34: SVE | B34: ='F_Inputs BP'!B37 -> CW17_099TOT_PR24 | C34: Water quality improvements - Addressing raw water quality deterioration (green solutions); enhancement totex - Total | D34: £m | E34: =IF(ISNUMBER(SEARCH("CW3",Consolidated_Input[[#This Row],[Reference]])),0,'F_Inputs BP'!F37) -> 0 | F34: =IF(ISNUMBER(SEARCH("CW3",Consolidated_Input[[#This Row],[Reference]])),0,'F_Inputs BP'!G37) -> 0
A35: SWB | B35: ='F_Inputs BP'!B38 -> CW3_099TOT_PR24 | C35: Water quality improvements - Addressing raw water quality deterioration (grey solutions); ; enhancement totex - Total | D35: £m | G35: =IF(ISNUMBER(Table2[[#This Row],[2025-26]]),Table2[[#This Row],[2025-26]],'F_Inputs BP'!H38) -> 20.620788 | H35: =IF(ISNUMBER(Table2[[#This Row],[2026-27]]),Table2[[#This Row],[2026-27]],'F_Inputs BP'!I38) -> 14.055048 | I35: =IF(ISNUMBER(Table2[[#This Row],[2027-28]]),Table2[[#This Row],[2027-28]],'F_Inputs BP'!J38) -> 5.791971 | J35: =IF(ISNUMBER(Table2[[#This Row],[2028-29]]),Table2[[#This Row],[2028-29]],'F_Inputs BP'!K38) -> 6.772279 | K35: =IF(ISNUMBER(Table2[[#This Row],[2029-30]]),Table2[[#This Row],[2029-30]],'F_Inputs BP'!L38) -> 6.772279
A36: SWB | B36: ='F_Inputs BP'!B39 -> CW3_102TOT_PR24 | C36: Water quality improvements - Addressing raw water quality deterioration (green solutions); enhancement totex - Total | D36: £m | G36: =IF(ISNUMBER(Table2[[#This Row],[2025-26]]),Table2[[#This Row],[2025-26]],'F_Inputs BP'!H39) -> 0 | H36: =IF(ISNUMBER(Table2[[#This Row],[2026-27]]),Table2[[#This Row],[2026-27]],'F_Inputs BP'!I39) -> 0 | I36: =IF(ISNUMBER(Table2[[#This Row],[2027-28]]),Table2[[#This Row],[2027-28]],'F_Inputs BP'!J39) -> 0 | J36: =IF(ISNUMBER(Table2[[#This Row],[2028-29]]),Table2[[#This Row],[2028-29]],'F_Inputs BP'!K39) -> 0 | K36: =IF(ISNUMBER(Table2[[#This Row],[2029-30]]),Table2[[#This Row],[2029-30]],'F_Inputs BP'!L39) -> 0
A37: SWB | B37: ='F_Inputs BP'!B40 -> CW12_096TOT_PR24 | C37: Water quality improvements - Addressing raw water quality deterioration (grey solutions); ; enhancement totex - Total | D37: £m | E37: =IF(ISNUMBER(SEARCH("CW3",Consolidated_Input[[#This Row],[Reference]])),0,'F_Inputs BP'!F40) -> 0 | F37: =IF(ISNUMBER(SEARCH("CW3",Consolidated_Input[[#This Row],[Reference]])),0,'F_Inputs BP'!G40) -> 0
A38: SWB | B38: ='F_Inputs BP'!B41 -> CW12_099TOT_PR24 | C38: Water quality improvements - Addressing raw water quality deterioration (green solutions); enhancement totex - Total | D38: £m | E38: =IF(ISNUMBER(SEARCH("CW3",Consolidated_Input[[#This Row],[Reference]])),0,'F_Inputs BP'!F41) -> 0 | F38: =IF(ISNUMBER(SEARCH("CW3",Consolidated_Input[[#This Row],[Reference]])),0,'F_Inputs BP'!G41) -> 0
A39: SWB | B39: ='F_Inputs BP'!B42 -> CW17_096TOT_PR24 | C39: Water quality improvements - Addressing raw water quality deterioration (grey solutions); ; enhancement totex - Total | D39: £m | E39: =IF(ISNUMBER(SEARCH("CW3",Consolidated_Input[[#This Row],[Reference]])),0,'F_Inputs BP'!F42) -> 0 | F39: =IF(ISNUMBER(SEARCH("CW3",Consolidated_Input[[#This Row],[Reference]])),0,'F_Inputs BP'!G42) -> 0
A40: SWB | B40: ='F_Inputs BP'!B43 -> CW17_099TOT_PR24 | C40: Water quality improvements - Addressing raw water quality deterioration (green solutions); enhancement totex - Total | D40: £m | E40: =IF(ISNUMBER(SEARCH("CW3",Consolidated_Input[[#This Row],[Reference]])),0,'F_Inputs BP'!F43) -> 0 | F40: =IF(ISNUMBER(SEARCH("CW3",Consolidated_Input[[#This Row],[Reference]])),0,'F_Inputs BP'!G43) -> 0
A41: SRN | B41: ='F_Inputs BP'!B44 -> CW3_099TOT_PR24 | C41: Water quality improvements - Addressing raw water quality deterioration (grey solutions); ; enhancement totex - Total | D41: £m | G41: =IF(ISNUMBER(Table2[[#This Row],[2025-26]]),Table2[[#This Row],[2025-26]],'F_Inputs BP'!H44) -> 5.47 | H41: =IF(ISNUMBER(Table2[[#This Row],[2026-27]]),Table2[[#This Row],[2026-27]],'F_Inputs BP'!I44) -> 30.002 | I41: =IF(ISNUMBER(Table2[[#This Row],[2027-28]]),Table2[[#This Row],[2027-28]],'F_Inputs BP'!J44) -> 30.08 | J41: =IF(ISNUMBER(Table2[[#This Row],[2028-29]]),Table2[[#This Row],[2028-29]],'F_Inputs BP'!K44) -> 20.442 | K41: =IF(ISNUMBER(Table2[[#This Row],[2029-30]]),Table2[[#This Row],[2029-30]],'F_Inputs BP'!L44) -> 4.13
A42: SRN | B42: ='F_Inputs BP'!B45 -> CW3_102TOT_PR24 | C42: Water quality improvements - Addressing raw water quality deterioration (green solutions); enhancement totex - Total | D42: £m | G42: =IF(ISNUMBER(Table2[[#This Row],[2025-26]]),Table2[[#This Row],[2025-26]],'F_Inputs BP'!H45) -> 0 | H42: =IF(ISNUMBER(Table2[[#This Row],[2026-27]]),Table2[[#This Row],[2026-27]],'F_Inputs BP'!I45) -> 0 | I42: =IF(ISNUMBER(Table2[[#This Row],[2027-28]]),Table2[[#This Row],[2027-28]],'F_Inputs BP'!J45) -> 0 | J42: =IF(ISNUMBER(Table2[[#This Row],[2028-29]]),Table2[[#This Row],[2028-29]],'F_Inputs BP'!K45) -> 0 | K42: =IF(ISNUMBER(Table2[[#This Row],[2029-30]]),Table2[[#This Row],[2029-30]],'F_Inputs BP'!L45) -> 0
A43: SRN | B43: ='F_Inputs BP'!B46 -> CW12_096TOT_PR24 | C43: Water quality improvements - Addressing raw water quality deterioration (grey solutions); ; enhancement totex - Total | D43: £m | E43: =IF(ISNUMBER(SEARCH("CW3",Consolidated_Input[[#This Row],[Reference]])),0,'F_Inputs BP'!F46) -> 0 | F43: =IF(ISNUMBER(SEARCH("CW3",Consolidated_Input[[#This Row],[Reference]])),0,'F_Inputs BP'!G46) -> 0
A44: SRN | B44: ='F_Inputs BP'!B47 -> CW12_099TOT_PR24 | C44: Water quality improvements - Addressing raw water quality deterioration (green solutions); enhancement totex - Total | D44: £m | E44: =IF(ISNUMBER(SEARCH("CW3",Consolidated_Input[[#This Row],[Reference]])),0,'F_Inputs BP'!F47) -> 0 | F44: =IF(ISNUMBER(SEARCH("CW3",Consolidated_Input[[#This Row],[Reference]])),0,'F_Inputs BP'!G47) -> 0
A45: SRN | B45: ='F_Inputs BP'!B48 -> CW17_096TOT_PR24 | C45: Water quality improvements - Addressing raw water quality deterioration (grey solutions); ; enhancement totex - Total | D45: £m | E45: =IF(ISNUMBER(SEARCH("CW3",Consolidated_Input[[#This Row],[Reference]])),0,'F_Inputs BP'!F48) -> 0 | F45: =IF(ISNUMBER(SEARCH("CW3",Consolidated_Input[[#This Row],[Reference]])),0,'F_Inputs BP'!G48) -> 0
A46: SRN | B46: ='F_Inputs BP'!B49 -> CW17_099TOT_PR24 | C46: Water quality improvements - Addressing raw water quality deterioration (green solutions); enhancement totex - Total | D46: £m | E46: =IF(ISNUMBER(SEARCH("CW3",Consolidated_Input[[#This Row],[Reference]])),0,'F_Inputs BP'!F49) -> 0 | F46: =IF(ISNUMBER(SEARCH("CW3",Consolidated_Input[[#This Row],[Reference]])),0,'F_Inputs BP'!G49) -> 0
A47: TMS | B47: ='F_Inputs BP'!B50 -> CW3_099TOT_PR24 | C47: Water quality improvements - Addressing raw water quality deterioration (grey solutions); ; enhancement totex - Total | D47: £m | G47: =IF(ISNUMBER(Table2[[#This Row],[2025-26]]),Table2[[#This Row],[2025-26]],'F_Inputs BP'!H50) -> 33.311 | H47: =IF(ISNUMBER(Table2[[#This Row],[2026-27]]),Table2[[#This Row],[2026-27]],'F_Inputs BP'!I50) -> 48.595 | I47: =IF(ISNUMBER(Table2[[#This Row],[2027-28]]),Table2[[#This Row],[2027-28]],'F_Inputs BP'!J50) -> 54.129 | J47: =IF(ISNUMBER(Table2[[#This Row],[2028-29]]),Table2[[#This Row],[2028-29]],'F_Inputs BP'!K50) -> 31.776 | K47: =IF(ISNUMBER(Table2[[#This Row],[2029-30]]),Table2[[#This Row],[2029-30]],'F_Inputs BP'!L50) -> 11.305
A48: TMS | B48: ='F_Inputs BP'!B51 -> CW3_102TOT_PR24 | C48: Water quality improvements - Addressing raw water quality deterioration (green solutions); enhancement totex - Total | D48: £m | G48: =IF(ISNUMBER(Table2[[#This Row],[2025-26]]),Table2[[#This Row],[2025-26]],'F_Inputs BP'!H51) -> 0 | H48: =IF(ISNUMBER(Table2[[#This Row],[2026-27]]),Table2[[#This Row],[2026-27]],'F_Inputs BP'!I51) -> 0 | I48: =IF(ISNUMBER(Table2[[#This Row],[2027-28]]),Table2[[#This Row],[2027-28]],'F_Inputs BP'!J51) -> 0 | J48: =IF(ISNUMBER(Table2[[#This Row],[2028-29]]),Table2[[#This Row],[2028-29]],'F_Inputs BP'!K51) -> 0 | K48: =IF(ISNUMBER(Table2[[#This Row],[2029-30]]),Table2[[#This Row],[2029-30]],'F_Inputs BP'!L51) -> 0
A49: TMS | B49: ='F_Inputs BP'!B52 -> CW12_096TOT_PR24 | C49: Water quality improvements - Addressing raw water quality deterioration (grey solutions); ; enhancement totex - Total | D49: £m | E49: =IF(ISNUMBER(SEARCH("CW3",Consolidated_Input[[#This Row],[Reference]])),0,'F_Inputs BP'!F52) -> 0 | F49: =IF(ISNUMBER(SEARCH("CW3",Consolidated_Input[[#This Row],[Reference]])),0,'F_Inputs BP'!G52) -> 0
A50: TMS | B50: ='F_Inputs BP'!B53 -> CW12_099TOT_PR24 | C50: Water quality improvements - Addressing raw water quality deterioration (green solutions); enhancement totex - Total | D50: £m | E50: =IF(ISNUMBER(SEARCH("CW3",Consolidated_Input[[#This Row],[Reference]])),0,'F_Inputs BP'!F53) -> 0 | F50: =IF(ISNUMBER(SEARCH("CW3",Consolidated_Input[[#This Row],[Reference]])),0,'F_Inputs BP'!G53) -> 0
A51: TMS | B51: ='F_Inputs BP'!B54 -> CW17_096TOT_PR24 | C51: Water quality improvements - Addressing raw water quality deterioration (grey solutions); ; enhancement totex - Total | D51: £m | E51: =IF(ISNUMBER(SEARCH("CW3",Consolidated_Input[[#This Row],[Reference]])),0,'F_Inputs BP'!F54) -> 0 | F51: =IF(ISNUMBER(SEARCH("CW3",Consolidated_Input[[#This Row],[Reference]])),0,'F_Inputs BP'!G54) -> 0
A52: TMS | B52: ='F_Inputs BP'!B55 -> CW17_099TOT_PR24 | C52: Water quality improvements - Addressing raw water quality deterioration (green solutions); enhancement totex - Total | D52: £m | E52: =IF(ISNUMBER(SEARCH("CW3",Consolidated_Input[[#This Row],[Reference]])),0,'F_Inputs BP'!F55) -> 0 | F52: =IF(ISNUMBER(SEARCH("CW3",Consolidated_Input[[#This Row],[Reference]])),0,'F_Inputs BP'!G55) -> 0
A53: NWT | B53: ='F_Inputs BP'!B56 -> CW3_099TOT_PR24 | C53: Water quality improvements - Addressing raw water quality deterioration (grey solutions); ; enhancement totex - Total | D53: £m | G53: =IF(ISNUMBER(Table2[[#This Row],[2025-26]]),Table2[[#This Row],[2025-26]],'F_Inputs BP'!H56) -> 6.754842253 | H53: =IF(ISNUMBER(Table2[[#This Row],[2026-27]]),Table2[[#This Row],[2026-27]],'F_Inputs BP'!I56) -> 7.674438891 | I53: =IF(ISNUMBER(Table2[[#This Row],[2027-28]]),Table2[[#This Row],[2027-28]],'F_Inputs BP'!J56) -> 37.02252081 | J53: =IF(ISNUMBER(Table2[[#This Row],[2028-29]]),Table2[[#This Row],[2028-29]],'F_Inputs BP'!K56) -> 32.06492185 | K53: =IF(ISNUMBER(Table2[[#This Row],[2029-30]]),Table2[[#This Row],[2029-30]],'F_Inputs BP'!L56) -> 8.233377755
A54: NWT | B54: ='F_Inputs BP'!B57 -> CW3_102TOT_PR24 | C54: Water quality improvements - Addressing raw water quality deterioration (green solutions); enhancement totex - Total | D54: £m | G54: =IF(ISNUMBER(Table2[[#This Row],[2025-26]]),Table2[[#This Row],[2025-26]],'F_Inputs BP'!H57) -> 0 | H54: =IF(ISNUMBER(Table2[[#This Row],[2026-27]]),Table2[[#This Row],[2026-27]],'F_Inputs BP'!I57) -> 0 | I54: =IF(ISNUMBER(Table2[[#This Row],[2027-28]]),Table2[[#This Row],[2027-28]],'F_Inputs BP'!J57) -> 0 | J54: =IF(ISNUMBER(Table2[[#This Row],[2028-29]]),Table2[[#This Row],[2028-29]],'F_Inputs BP'!K57) -> 0 | K54: =IF(ISNUMBER(Table2[[#This Row],[2029-30]]),Table2[[#This Row],[2029-30]],'F_Inputs BP'!L57) -> 0
A55: NWT | B55: ='F_Inputs BP'!B58 -> CW12_096TOT_PR24 | C55: Water quality improvements - Addressing raw water quality deterioration (grey solutions); ; enhancement totex - Total | D55: £m | E55: =IF(ISNUMBER(SEARCH("CW3",Consolidated_Input[[#This Row],[Reference]])),0,'F_Inputs BP'!F58) -> 0 | F55: =IF(ISNUMBER(SEARCH("CW3",Consolidated_Input[[#This Row],[Reference]])),0,'F_Inputs BP'!G58) -> 0
A56: NWT | B56: ='F_Inputs BP'!B59 -> CW12_099TOT_PR24 | C56: Water quality improvements - Addressing raw water quality deterioration (green solutions); enhancement totex - Total | D56: £m | E56: =IF(ISNUMBER(SEARCH("CW3",Consolidated_Input[[#This Row],[Reference]])),0,'F_Inputs BP'!F59) -> 0 | F56: =IF(ISNUMBER(SEARCH("CW3",Consolidated_Input[[#This Row],[Reference]])),0,'F_Inputs BP'!G59) -> 0
A57: NWT | B57: ='F_Inputs BP'!B60 -> CW17_096TOT_PR24 | C57: Water quality improvements - Addressing raw water quality deterioration (grey solutions); ; enhancement totex - Total | D57: £m | E57: =IF(ISNUMBER(SEARCH("CW3",Consolidated_Input[[#This Row],[Reference]])),0,'F_Inputs BP'!F60) -> 0 | F57: =IF(ISNUMBER(SEARCH("CW3",Consolidated_Input[[#This Row],[Reference]])),0,'F_Inputs BP'!G60) -> 0
A58: NWT | B58: ='F_Inputs BP'!B61 -> CW17_099TOT_PR24 | C58: Water quality improvements - Addressing raw water quality deterioration (green solutions); enhancement totex - Total | D58: £m | E58: =IF(ISNUMBER(SEARCH("CW3",Consolidated_Input[[#This Row],[Reference]])),0,'F_Inputs BP'!F61) -> 0 | F58: =IF(ISNUMBER(SEARCH("CW3",Consolidated_Input[[#This Row],[Reference]])),0,'F_Inputs BP'!G61) -> 0
A59: WSX | B59: ='F_Inputs BP'!B62 -> CW3_099TOT_PR24 | C59: Water quality improvements - Addressing raw water quality deterioration (grey solutions); ; enhancement totex - Total | D59: £m | G59: =IF(ISNUMBER(Table2[[#This Row],[2025-26]]),Table2[[#This Row],[2025-26]],'F_Inputs BP'!H62) -> 2.609437 | H59: =IF(ISNUMBER(Table2[[#This Row],[2026-27]]),Table2[[#This Row],[2026-27]],'F_Inputs BP'!I62) -> 7.18656 | I59: =IF(ISNUMBER(Table2[[#This Row],[2027-28]]),Table2[[#This Row],[2027-28]],'F_Inputs BP'!J62) -> 15.972182 | J59: =IF(ISNUMBER(Table2[[#This Row],[2028-29]]),Table2[[#This Row],[2028-29]],'F_Inputs BP'!K62) -> 7.268071 | K59: =IF(ISNUMBER(Table2[[#This Row],[2029-30]]),Table2[[#This Row],[2029-30]],'F_Inputs BP'!L62) -> 4.455742
A60: WSX | B60: ='F_Inputs BP'!B63 -> CW3_102TOT_PR24 | C60: Water quality improvements - Addressing raw water quality deterioration (green solutions); enhancement totex - Total | D60: £m | G60: =IF(ISNUMBER(Table2[[#This Row],[2025-26]]),Table2[[#This Row],[2025-26]],'F_Inputs BP'!H63) -> 0.344 | H60: =IF(ISNUMBER(Table2[[#This Row],[2026-27]]),Table2[[#This Row],[2026-27]],'F_Inputs BP'!I63) -> 0.537778 | I60: =IF(ISNUMBER(Table2[[#This Row],[2027-28]]),Table2[[#This Row],[2027-28]],'F_Inputs BP'!J63) -> 0.566893 | J60: =IF(ISNUMBER(Table2[[#This Row],[2028-29]]),Table2[[#This Row],[2028-29]],'F_Inputs BP'!K63) -> 0.343252 | K60: =IF(ISNUMBER(Table2[[#This Row],[2029-30]]),Table2[[#This Row],[2029-30]],'F_Inputs BP'!L63) -> 0.331075
A61: WSX | B61: ='F_Inputs BP'!B64 -> CW12_096TOT_PR24 | C61: Water quality improvements - Addressing raw water quality deterioration (grey solutions); ; enhancement totex - Total | D61: £m | E61: =IF(ISNUMBER(SEARCH("CW3",Consolidated_Input[[#This Row],[Reference]])),0,'F_Inputs BP'!F64) -> 0.081001 | F61: =IF(ISNUMBER(SEARCH("CW3",Consolidated_Input[[#This Row],[Reference]])),0,'F_Inputs BP'!G64) -> 0.388067
A62: WSX | B62: ='F_Inputs BP'!B65 -> CW12_099TOT_PR24 | C62: Water quality improvements - Addressing raw water quality deterioration (green solutions); enhancement totex - Total | D62: £m | E62: =IF(ISNUMBER(SEARCH("CW3",Consolidated_Input[[#This Row],[Reference]])),0,'F_Inputs BP'!F65) -> 0.000999 | F62: =IF(ISNUMBER(SEARCH("CW3",Consolidated_Input[[#This Row],[Reference]])),0,'F_Inputs BP'!G65) -> 0.004217
A63: WSX | B63: ='F_Inputs BP'!B66 -> CW17_096TOT_PR24 | C63: Water quality improvements - Addressing raw water quality deterioration (grey solutions); ; enhancement totex - Total | D63: £m | E63: =IF(ISNUMBER(SEARCH("CW3",Consolidated_Input[[#This Row],[Reference]])),0,'F_Inputs BP'!F66) -> 0 | F63: =IF(ISNUMBER(SEARCH("CW3",Consolidated_Input[[#This Row],[Reference]])),0,'F_Inputs BP'!G66) -> 0
A64: WSX | B64: ='F_Inputs BP'!B67 -> CW17_099TOT_PR24 | C64: Water quality improvements - Addressing raw water quality deterioration (green solutions); enhancement totex - Total | D64: £m | E64: =IF(ISNUMBER(SEARCH("CW3",Consolidated_Input[[#This Row],[Reference]])),0,'F_Inputs BP'!F67) -> 0 | F64: =IF(ISNUMBER(SEARCH("CW3",Consolidated_Input[[#This Row],[Reference]])),0,'F_Inputs BP'!G67) -> 0
A65: YKY | B65: ='F_Inputs BP'!B68 -> CW3_099TOT_PR24 | C65: Water quality improvements - Addressing raw water quality deterioration (grey solutions); ; enhancement totex - Total | D65: £m | G65: =IF(ISNUMBER(Table2[[#This Row],[2025-26]]),Table2[[#This Row],[2025-26]],'F_Inputs BP'!H68) -> 2.4025344 | H65: =IF(ISNUMBER(Table2[[#This Row],[2026-27]]),Table2[[#This Row],[2026-27]],'F_Inputs BP'!I68) -> 8.989824 | I65: =IF(ISNUMBER(Table2[[#This Row],[2027-28]]),Table2[[#This Row],[2027-28]],'F_Inputs BP'!J68) -> 14.3774208 | J65: =IF(ISNUMBER(Table2[[#This Row],[2028-29]]),Table2[[#This Row],[2028-29]],'F_Inputs BP'!K68) -> 8.5395456 | K65: =IF(ISNUMBER(Table2[[#This Row],[2029-30]]),Table2[[#This Row],[2029-30]],'F_Inputs BP'!L68) -> 6.1747968
A66: YKY | B66: ='F_Inputs BP'!B69 -> CW3_102TOT_PR24 | C66: Water quality improvements - Addressing raw water quality deterioration (green solutions); enhancement totex - Total | D66: £m | G66: =IF(ISNUMBER(Table2[[#This Row],[2025-26]]),Table2[[#This Row],[2025-26]],'F_Inputs BP'!H69) -> 0 | H66: =IF(ISNUMBER(Table2[[#This Row],[2026-27]]),Table2[[#This Row],[2026-27]],'F_Inputs BP'!I69) -> 0 | I66: =IF(ISNUMBER(Table2[[#This Row],[2027-28]]),Table2[[#This Row],[2027-28]],'F_Inputs BP'!J69) -> 0 | J66: =IF(ISNUMBER(Table2[[#This Row],[2028-29]]),Table2[[#This Row],[2028-29]],'F_Inputs BP'!K69) -> 0 | K66: =IF(ISNUMBER(Table2[[#This Row],[2029-30]]),Table2[[#This Row],[2029-30]],'F_Inputs BP'!L69) -> 0
A67: YKY | B67: ='F_Inputs BP'!B70 -> CW12_096TOT_PR24 | C67: Water quality improvements - Addressing raw water quality deterioration (grey solutions); ; enhancement totex - Total | D67: £m | E67: =IF(ISNUMBER(SEARCH("CW3",Consolidated_Input[[#This Row],[Reference]])),0,'F_Inputs BP'!F70) -> 0.066 | F67: =IF(ISNUMBER(SEARCH("CW3",Consolidated_Input[[#This Row],[Reference]])),0,'F_Inputs BP'!G70) -> 1.623
A68: YKY | B68: ='F_Inputs BP'!B71 -> CW12_099TOT_PR24 | C68: Water quality improvements - Addressing raw water quality deterioration (green solutions); enhancement totex - Total | D68: £m | E68: =IF(ISNUMBER(SEARCH("CW3",Consolidated_Input[[#This Row],[Reference]])),0,'F_Inputs BP'!F71) -> 0 | F68: =IF(ISNUMBER(SEARCH("CW3",Consolidated_Input[[#This Row],[Reference]])),0,'F_Inputs BP'!G71) -> 0
A69: YKY | B69: ='F_Inputs BP'!B72 -> CW17_096TOT_PR24 | C69: Water quality improvements - Addressing raw water quality deterioration (grey solutions); ; enhancement totex - Total | D69: £m | E69: =IF(ISNUMBER(SEARCH("CW3",Consolidated_Input[[#This Row],[Reference]])),0,'F_Inputs BP'!F72) -> 0 | F69: =IF(ISNUMBER(SEARCH("CW3",Consolidated_Input[[#This Row],[Reference]])),0,'F_Inputs BP'!G72) -> 0
A70: YKY | B70: ='F_Inputs BP'!B73 -> CW17_099TOT_PR24 | C70: Water quality improvements - Addressing raw water quality deterioration (green solutions); enhancement totex - Total | D70: £m | E70: =IF(ISNUMBER(SEARCH("CW3",Consolidated_Input[[#This Row],[Reference]])),0,'F_Inputs BP'!F73) -> 0 | F70: =IF(ISNUMBER(SEARCH("CW3",Consolidated_Input[[#This Row],[Reference]])),0,'F_Inputs BP'!G73) -> 0
A71: AFW | B71: ='F_Inputs BP'!B74 -> CW3_099TOT_PR24 | C71: Water quality improvements - Addressing raw water quality deterioration (grey solutions); ; enhancement totex - Total | D71: £m | G71: =IF(ISNUMBER(Table2[[#This Row],[2025-26]]),Table2[[#This Row],[2025-26]],'F_Inputs BP'!H74) -> 57.668 | H71: =IF(ISNUMBER(Table2[[#This Row],[2026-27]]),Table2[[#This Row],[2026-27]],'F_Inputs BP'!I74) -> 67.287 | I71: =IF(ISNUMBER(Table2[[#This Row],[2027-28]]),Table2[[#This Row],[2027-28]],'F_Inputs BP'!J74) -> 55.558 | J71: =IF(ISNUMBER(Table2[[#This Row],[2028-29]]),Table2[[#This Row],[2028-29]],'F_Inputs BP'!K74) -> 45.831 | K71: =IF(ISNUMBER(Table2[[#This Row],[2029-30]]),Table2[[#This Row],[2029-30]],'F_Inputs BP'!L74) -> 11.278
A72: AFW | B72: ='F_Inputs BP'!B75 -> CW3_102TOT_PR24 | C72: Water quality improvements - Addressing raw water quality deterioration (green solutions); enhancement totex - Total | D72: £m | G72: =IF(ISNUMBER(Table2[[#This Row],[2025-26]]),Table2[[#This Row],[2025-26]],'F_Inputs BP'!H75) -> 0 | H72: =IF(ISNUMBER(Table2[[#This Row],[2026-27]]),Table2[[#This Row],[2026-27]],'F_Inputs BP'!I75) -> 0 | I72: =IF(ISNUMBER(Table2[[#This Row],[2027-28]]),Table2[[#This Row],[2027-28]],'F_Inputs BP'!J75) -> 0 | J72: =IF(ISNUMBER(Table2[[#This Row],[2028-29]]),Table2[[#This Row],[2028-29]],'F_Inputs BP'!K75) -> 0 | K72: =IF(ISNUMBER(Table2[[#This Row],[2029-30]]),Table2[[#This Row],[2029-30]],'F_Inputs BP'!L75) -> 0
A73: AFW | B73: ='F_Inputs BP'!B76 -> CW12_096TOT_PR24 | C73: Water quality improvements - Addressing raw water quality deterioration (grey solutions); ; enhancement totex - Total | D73: £m | E73: =IF(ISNUMBER(SEARCH("CW3",Consolidated_Input[[#This Row],[Reference]])),0,'F_Inputs BP'!F76) -> 1.3 | F73: =IF(ISNUMBER(SEARCH("CW3",Consolidated_Input[[#This Row],[Reference]])),0,'F_Inputs BP'!G76) -> 1.865
A74: AFW | B74: ='F_Inputs BP'!B77 -> CW12_099TOT_PR24 | C74: Water quality improvements - Addressing raw water quality deterioration (green solutions); enhancement totex - Total | D74: £m | E74: =IF(ISNUMBER(SEARCH("CW3",Consolidated_Input[[#This Row],[Reference]])),0,'F_Inputs BP'!F77) -> 0 | F74: =IF(ISNUMBER(SEARCH("CW3",Consolidated_Input[[#This Row],[Reference]])),0,'F_Inputs BP'!G77) -> 0
A75: AFW | B75: ='F_Inputs BP'!B78 -> CW17_096TOT_PR24 | C75: Water quality improvements - Addressing raw water quality deterioration (grey solutions); ; enhancement totex - Total | D75: £m | E75: =IF(ISNUMBER(SEARCH("CW3",Consolidated_Input[[#This Row],[Reference]])),0,'F_Inputs BP'!F78) -> 2.083 | F75: =IF(ISNUMBER(SEARCH("CW3",Consolidated_Input[[#This Row],[Reference]])),0,'F_Inputs BP'!G78) -> 0.637
A76: AFW | B76: ='F_Inputs BP'!B79 -> CW17_099TOT_PR24 | C76: Water quality improvements - Addressing raw water quality deterioration (green solutions); enhancement totex - Total | D76: £m | E76: =IF(ISNUMBER(SEARCH("CW3",Consolidated_Input[[#This Row],[Reference]])),0,'F_Inputs BP'!F79) -> 0 | F76: =IF(ISNUMBER(SEARCH("CW3",Consolidated_Input[[#This Row],[Reference]])),0,'F_Inputs BP'!G79) -> 0
A77: BRL | B77: ='F_Inputs BP'!B80 -> CW3_099TOT_PR24 | C77: Water quality improvements - Addressing raw water quality deterioration (grey solutions); ; enhancement totex - Total | D77: £m | G77: =IF(ISNUMBER(Table2[[#This Row],[2025-26]]),Table2[[#This Row],[2025-26]],'F_Inputs BP'!H80) -> 6.58344 | H77: =IF(ISNUMBER(Table2[[#This Row],[2026-27]]),Table2[[#This Row],[2026-27]],'F_Inputs BP'!I80) -> 12.82352 | I77: =IF(ISNUMBER(Table2[[#This Row],[2027-28]]),Table2[[#This Row],[2027-28]],'F_Inputs BP'!J80) -> 22.271163 | J77: =IF(ISNUMBER(Table2[[#This Row],[2028-29]]),Table2[[#This Row],[2028-29]],'F_Inputs BP'!K80) -> 21.261044 | K77: =IF(ISNUMBER(Table2[[#This Row],[2029-30]]),Table2[[#This Row],[2029-30]],'F_Inputs BP'!L80) -> 21.261044
A78: BRL | B78: ='F_Inputs BP'!B81 -> CW3_102TOT_PR24 | C78: Water quality improvements - Addressing raw water quality deterioration (green solutions); enhancement totex - Total | D78: £m | G78: =IF(ISNUMBER(Table2[[#This Row],[2025-26]]),Table2[[#This Row],[2025-26]],'F_Inputs BP'!H81) -> 0 | H78: =IF(ISNUMBER(Table2[[#This Row],[2026-27]]),Table2[[#This Row],[2026-27]],'F_Inputs BP'!I81) -> 0 | I78: =IF(ISNUMBER(Table2[[#This Row],[2027-28]]),Table2[[#This Row],[2027-28]],'F_Inputs BP'!J81) -> 0 | J78: =IF(ISNUMBER(Table2[[#This Row],[2028-29]]),Table2[[#This Row],[2028-29]],'F_Inputs BP'!K81) -> 0 | K78: =IF(ISNUMBER(Table2[[#This Row],[2029-30]]),Table2[[#This Row],[2029-30]],'F_Inputs BP'!L81) -> 0
A79: BRL | B79: ='F_Inputs BP'!B82 -> CW12_096TOT_PR24 | C79: Water quality improvements - Addressing raw water quality deterioration (grey solutions); ; enhancement totex - Total | D79: £m | E79: =IF(ISNUMBER(SEARCH("CW3",Consolidated_Input[[#This Row],[Reference]])),0,'F_Inputs BP'!F82) -> 0 | F79: =IF(ISNUMBER(SEARCH("CW3",Consolidated_Input[[#This Row],[Reference]])),0,'F_Inputs BP'!G82) -> 0
A80: BRL | B80: ='F_Inputs BP'!B83 -> CW12_099TOT_PR24 | C80: Water quality improvements - Addressing raw water quality deterioration (green solutions); enhancement totex - Total | D80: £m | E80: =IF(ISNUMBER(SEARCH("CW3",Consolidated_Input[[#This Row],[Reference]])),0,'F_Inputs BP'!F83) -> 0 | F80: =IF(ISNUMBER(SEARCH("CW3",Consolidated_Input[[#This Row],[Reference]])),0,'F_Inputs BP'!G83) -> 0
A81: BRL | B81: ='F_Inputs BP'!B84 -> CW17_096TOT_PR24 | C81: Water quality improvements - Addressing raw water quality deterioration (grey solutions); ; enhancement totex - Total | D81: £m | E81: =IF(ISNUMBER(SEARCH("CW3",Consolidated_Input[[#This Row],[Reference]])),0,'F_Inputs BP'!F84) -> 0 | F81: =IF(ISNUMBER(SEARCH("CW3",Consolidated_Input[[#This Row],[Reference]])),0,'F_Inputs BP'!G84) -> 0
A82: BRL | B82: ='F_Inputs BP'!B85 -> CW17_099TOT_PR24 | C82: Water quality improvements - Addressing raw water quality deterioration (green solutions); enhancement totex - Total | D82: £m | E82: =IF(ISNUMBER(SEARCH("CW3",Consolidated_Input[[#This Row],[Reference]])),0,'F_Inputs BP'!F85) -> 0 | F82: =IF(ISNUMBER(SEARCH("CW3",Consolidated_Input[[#This Row],[Reference]])),0,'F_Inputs BP'!G85) -> 0
A83: PRT | B83: ='F_Inputs BP'!B86 -> CW3_099TOT_PR24 | C83: Water quality improvements - Addressing raw water quality deterioration (grey solutions); ; enhancement totex - Total | D83: £m | G83: =IF(ISNUMBER(Table2[[#This Row],[2025-26]]),Table2[[#This Row],[2025-26]],'F_Inputs BP'!H86) -> 4.6809 | H83: =IF(ISNUMBER(Table2[[#This Row],[2026-27]]),Table2[[#This Row],[2026-27]],'F_Inputs BP'!I86) -> 13.33638 | I83: =IF(ISNUMBER(Table2[[#This Row],[2027-28]]),Table2[[#This Row],[2027-28]],'F_Inputs BP'!J86) -> 13.74407 | J83: =IF(ISNUMBER(Table2[[#This Row],[2028-29]]),Table2[[#This Row],[2028-29]],'F_Inputs BP'!K86) -> 5.53376 | K83: =IF(ISNUMBER(Table2[[#This Row],[2029-30]]),Table2[[#This Row],[2029-30]],'F_Inputs BP'!L86) -> 1.38085
A84: PRT | B84: ='F_Inputs BP'!B87 -> CW3_102TOT_PR24 | C84: Water quality improvements - Addressing raw water quality deterioration (green solutions); enhancement totex - Total | D84: £m | G84: =IF(ISNUMBER(Table2[[#This Row],[2025-26]]),Table2[[#This Row],[2025-26]],'F_Inputs BP'!H87) -> 0 | H84: =IF(ISNUMBER(Table2[[#This Row],[2026-27]]),Table2[[#This Row],[2026-27]],'F_Inputs BP'!I87) -> 0 | I84: =IF(ISNUMBER(Table2[[#This Row],[2027-28]]),Table2[[#This Row],[2027-28]],'F_Inputs BP'!J87) -> 0 | J84: =IF(ISNUMBER(Table2[[#This Row],[2028-29]]),Table2[[#This Row],[2028-29]],'F_Inputs BP'!K87) -> 0 | K84: =IF(ISNUMBER(Table2[[#This Row],[2029-30]]),Table2[[#This Row],[2029-30]],'F_Inputs BP'!L87) -> 0
A85: PRT | B85: ='F_Inputs BP'!B88 -> CW12_096TOT_PR24 | C85: Water quality improvements - Addressing raw water quality deterioration (grey solutions); ; enhancement totex - Total | D85: £m | E85: =IF(ISNUMBER(SEARCH("CW3",Consolidated_Input[[#This Row],[Reference]])),0,'F_Inputs BP'!F88) -> 0 | F85: =IF(ISNUMBER(SEARCH("CW3",Consolidated_Input[[#This Row],[Reference]])),0,'F_Inputs BP'!G88) -> 0.6
A86: PRT | B86: ='F_Inputs BP'!B89 -> CW12_099TOT_PR24 | C86: Water quality improvements - Addressing raw water quality deterioration (green solutions); enhancement totex - Total | D86: £m | E86: =IF(ISNUMBER(SEARCH("CW3",Consolidated_Input[[#This Row],[Reference]])),0,'F_Inputs BP'!F89) -> 0 | F86: =IF(ISNUMBER(SEARCH("CW3",Consolidated_Input[[#This Row],[Reference]])),0,'F_Inputs BP'!G89) -> 0
A87: PRT | B87: ='F_Inputs BP'!B90 -> CW17_096TOT_PR24 | C87: Water quality improvements - Addressing raw water quality deterioration (grey solutions); ; enhancement totex - Total | D87: £m | E87: =IF(ISNUMBER(SEARCH("CW3",Consolidated_Input[[#This Row],[Reference]])),0,'F_Inputs BP'!F90) -> 0 | F87: =IF(ISNUMBER(SEARCH("CW3",Consolidated_Input[[#This Row],[Reference]])),0,'F_Inputs BP'!G90) -> 0
A88: PRT | B88: ='F_Inputs BP'!B91 -> CW17_099TOT_PR24 | C88: Water quality improvements - Addressing raw water quality deterioration (green solutions); enhancement totex - Total | D88: £m | E88: =IF(ISNUMBER(SEARCH("CW3",Consolidated_Input[[#This Row],[Reference]])),0,'F_Inputs BP'!F91) -> 0 | F88: =IF(ISNUMBER(SEARCH("CW3",Consolidated_Input[[#This Row],[Reference]])),0,'F_Inputs BP'!G91) -> 0
A89: SEW | B89: ='F_Inputs BP'!B92 -> CW3_099TOT_PR24 | C89: Water quality improvements - Addressing raw water quality deterioration (grey solutions); ; enhancement totex - Total | D89: £m | G89: =IF(ISNUMBER(Table2[[#This Row],[2025-26]]),Table2[[#This Row],[2025-26]],'F_Inputs BP'!H92) -> 12.84411369 | H89: =IF(ISNUMBER(Table2[[#This Row],[2026-27]]),Table2[[#This Row],[2026-27]],'F_Inputs BP'!I92) -> 14.84389449 | I89: =IF(ISNUMBER(Table2[[#This Row],[2027-28]]),Table2[[#This Row],[2027-28]],'F_Inputs BP'!J92) -> 6.547955022 | J89: =IF(ISNUMBER(Table2[[#This Row],[2028-29]]),Table2[[#This Row],[2028-29]],'F_Inputs BP'!K92) -> 2.665784437 | K89: =IF(ISNUMBER(Table2[[#This Row],[2029-30]]),Table2[[#This Row],[2029-30]],'F_Inputs BP'!L92) -> 1.670384437
A90: SEW | B90: ='F_Inputs BP'!B93 -> CW3_102TOT_PR24 | C90: Water quality improvements - Addressing raw water quality deterioration (green solutions); enhancement totex - Total | D90: £m | G90: =IF(ISNUMBER(Table2[[#This Row],[2025-26]]),Table2[[#This Row],[2025-26]],'F_Inputs BP'!H93) -> 10.95390276 | H90: =IF(ISNUMBER(Table2[[#This Row],[2026-27]]),Table2[[#This Row],[2026-27]],'F_Inputs BP'!I93) -> 4.132173162 | I90: =IF(ISNUMBER(Table2[[#This Row],[2027-28]]),Table2[[#This Row],[2027-28]],'F_Inputs BP'!J93) -> 3.007576793 | J90: =IF(ISNUMBER(Table2[[#This Row],[2028-29]]),Table2[[#This Row],[2028-29]],'F_Inputs BP'!K93) -> 3.321392393 | K90: =IF(ISNUMBER(Table2[[#This Row],[2029-30]]),Table2[[#This Row],[2029-30]],'F_Inputs BP'!L93) -> 3.218605915
A91: SEW | B91: ='F_Inputs BP'!B94 -> CW12_096TOT_PR24 | C91: Water quality improvements - Addressing raw water quality deterioration (grey solutions); ; enhancement totex - Total | D91: £m | E91: =IF(ISNUMBER(SEARCH("CW3",Consolidated_Input[[#This Row],[Reference]])),0,'F_Inputs BP'!F94) -> 0.019476 | F91: =IF(ISNUMBER(SEARCH("CW3",Consolidated_Input[[#This Row],[Reference]])),0,'F_Inputs BP'!G94) -> 0.851221468
A92: SEW | B92: ='F_Inputs BP'!B95 -> CW12_099TOT_PR24 | C92: Water quality improvements - Addressing raw water quality deterioration (green solutions); enhancement totex - Total | D92: £m | E92: =IF(ISNUMBER(SEARCH("CW3",Consolidated_Input[[#This Row],[Reference]])),0,'F_Inputs BP'!F95) -> 0 | F92: =IF(ISNUMBER(SEARCH("CW3",Consolidated_Input[[#This Row],[Reference]])),0,'F_Inputs BP'!G95) -> 0
A93: SEW | B93: ='F_Inputs BP'!B96 -> CW17_096TOT_PR24 | C93: Water quality improvements - Addressing raw water quality deterioration (grey solutions); ; enhancement totex - Total | D93: £m | E93: =IF(ISNUMBER(SEARCH("CW3",Consolidated_Input[[#This Row],[Reference]])),0,'F_Inputs BP'!F96) -> 0 | F93: =IF(ISNUMBER(SEARCH("CW3",Consolidated_Input[[#This Row],[Reference]])),0,'F_Inputs BP'!G96) -> 0
A94: SEW | B94: ='F_Inputs BP'!B97 -> CW17_099TOT_PR24 | C94: Water quality improvements - Addressing raw water quality deterioration (green solutions); enhancement totex - Total | D94: £m | E94: =IF(ISNUMBER(SEARCH("CW3",Consolidated_Input[[#This Row],[Reference]])),0,'F_Inputs BP'!F97) -> 0 | F94: =IF(ISNUMBER(SEARCH("CW3",Consolidated_Input[[#This Row],[Reference]])),0,'F_Inputs BP'!G97) -> 0
A95: SSC | B95: ='F_Inputs BP'!B98 -> CW3_099TOT_PR24 | C95: Water quality improvements - Addressing raw water quality deterioration (grey solutions); ; enhancement totex - Total | D95: £m | G95: =IF(ISNUMBER(Table2[[#This Row],[2025-26]]),Table2[[#This Row],[2025-26]],'F_Inputs BP'!H98) -> 4.52502054 | H95: =IF(ISNUMBER(Table2[[#This Row],[2026-27]]),Table2[[#This Row],[2026-27]],'F_Inputs BP'!I98) -> 10.87583925 | I95: =IF(ISNUMBER(Table2[[#This Row],[2027-28]]),Table2[[#This Row],[2027-28]],'F_Inputs BP'!J98) -> 5.58231458 | J95: =IF(ISNUMBER(Table2[[#This Row],[2028-29]]),Table2[[#This Row],[2028-29]],'F_Inputs BP'!K98) -> 2.91113045 | K95: =IF(ISNUMBER(Table2[[#This Row],[2029-30]]),Table2[[#This Row],[2029-30]],'F_Inputs BP'!L98) -> 2.47457139
A96: SSC | B96: ='F_Inputs BP'!B99 -> CW3_102TOT_PR24 | C96: Water quality improvements - Addressing raw water quality deterioration (green solutions); enhancement totex - Total | D96: £m | G96: =IF(ISNUMBER(Table2[[#This Row],[2025-26]]),Table2[[#This Row],[2025-26]],'F_Inputs BP'!H99) -> 0 | H96: =IF(ISNUMBER(Table2[[#This Row],[2026-27]]),Table2[[#This Row],[2026-27]],'F_Inputs BP'!I99) -> 0 | I96: =IF(ISNUMBER(Table2[[#This Row],[2027-28]]),Table2[[#This Row],[2027-28]],'F_Inputs BP'!J99) -> 0 | J96: =IF(ISNUMBER(Table2[[#This Row],[2028-29]]),Table2[[#This Row],[2028-29]],'F_Inputs BP'!K99) -> 0 | K96: =IF(ISNUMBER(Table2[[#This Row],[2029-30]]),Table2[[#This Row],[2029-30]],'F_Inputs BP'!L99) -> 0
A97: SSC | B97: ='F_Inputs BP'!B100 -> CW12_096TOT_PR24 | C97: Water quality improvements - Addressing raw water quality deterioration (grey solutions); ; enhancement totex - Total | D97: £m | E97: =IF(ISNUMBER(SEARCH("CW3",Consolidated_Input[[#This Row],[Reference]])),0,'F_Inputs BP'!F100) -> 0 | F97: =IF(ISNUMBER(SEARCH("CW3",Consolidated_Input[[#This Row],[Reference]])),0,'F_Inputs BP'!G100) -> 0
A98: SSC | B98: ='F_Inputs BP'!B101 -> CW12_099TOT_PR24 | C98: Water quality improvements - Addressing raw water quality deterioration (green solutions); enhancement totex - Total | D98: £m | E98: =IF(ISNUMBER(SEARCH("CW3",Consolidated_Input[[#This Row],[Reference]])),0,'F_Inputs BP'!F101) -> 0 | F98: =IF(ISNUMBER(SEARCH("CW3",Consolidated_Input[[#This Row],[Reference]])),0,'F_Inputs BP'!G101) -> 0
A99: SSC | B99: ='F_Inputs BP'!B102 -> CW17_096TOT_PR24 | C99: Water quality improvements - Addressing raw water quality deterioration (grey solutions); ; enhancement totex - Total | D99: £m | E99: =IF(ISNUMBER(SEARCH("CW3",Consolidated_Input[[#This Row],[Reference]])),0,'F_Inputs BP'!F102) -> 0 | F99: =IF(ISNUMBER(SEARCH("CW3",Consolidated_Input[[#This Row],[Reference]])),0,'F_Inputs BP'!G102) -> 0
A100: SSC | B100: ='F_Inputs BP'!B103 -> CW17_099TOT_PR24 | C100: Water quality improvements - Addressing raw water quality deterioration (green solutions); enhancement totex - Total | D100: £m | E100: =IF(ISNUMBER(SEARCH("CW3",Consolidated_Input[[#This Row],[Reference]])),0,'F_Inputs BP'!F103) -> 0 | F100: =IF(ISNUMBER(SEARCH("CW3",Consolidated_Input[[#This Row],[Reference]])),0,'F_Inputs BP'!G103) -> 0
A101: SES | B101: ='F_Inputs BP'!B104 -> CW3_099TOT_PR24 | C101: Water quality improvements - Addressing raw water quality deterioration (grey solutions); ; enhancement totex - Total | D101: £m | G101: =IF(ISNUMBER(Table2[[#This Row],[2025-26]]),Table2[[#This Row],[2025-26]],'F_Inputs BP'!H104) -> 0 | H101: =IF(ISNUMBER(Table2[[#This Row],[2026-27]]),Table2[[#This Row],[2026-27]],'F_Inputs BP'!I104) -> 2.535 | I101: =IF(ISNUMBER(Table2[[#This Row],[2027-28]]),Table2[[#This Row],[2027-28]],'F_Inputs BP'!J104) -> 2.535 | J101: =IF(ISNUMBER(Table2[[#This Row],[2028-29]]),Table2[[#This Row],[2028-29]],'F_Inputs BP'!K104) -> 0.07 | K101: =IF(ISNUMBER(Table2[[#This Row],[2029-30]]),Table2[[#This Row],[2029-30]],'F_Inputs BP'!L104) -> 0.07
A102: SES | B102: ='F_Inputs BP'!B105 -> CW3_102TOT_PR24 | C102: Water quality improvements - Addressing raw water quality deterioration (green solutions); enhancement totex - Total | D102: £m | G102: =IF(ISNUMBER(Table2[[#This Row],[2025-26]]),Table2[[#This Row],[2025-26]],'F_Inputs BP'!H105) -> 0 | H102: =IF(ISNUMBER(Table2[[#This Row],[2026-27]]),Table2[[#This Row],[2026-27]],'F_Inputs BP'!I105) -> 0 | I102: =IF(ISNUMBER(Table2[[#This Row],[2027-28]]),Table2[[#This Row],[2027-28]],'F_Inputs BP'!J105) -> 0 | J102: =IF(ISNUMBER(Table2[[#This Row],[2028-29]]),Table2[[#This Row],[2028-29]],'F_Inputs BP'!K105) -> 0 | K102: =IF(ISNUMBER(Table2[[#This Row],[2029-30]]),Table2[[#This Row],[2029-30]],'F_Inputs BP'!L105) -> 0
A103: SES | B103: ='F_Inputs BP'!B106 -> CW12_096TOT_PR24 | C103: Water quality improvements - Addressing raw water quality deterioration (grey solutions); ; enhancement totex - Total | D103: £m | E103: =IF(ISNUMBER(SEARCH("CW3",Consolidated_Input[[#This Row],[Reference]])),0,'F_Inputs BP'!F106) -> 0 | F103: =IF(ISNUMBER(SEARCH("CW3",Consolidated_Input[[#This Row],[Reference]])),0,'F_Inputs BP'!G106) -> 0
A104: SES | B104: ='F_Inputs BP'!B107 -> CW12_099TOT_PR24 | C104: Water quality improvements - Addressing raw water quality deterioration (green solutions); enhancement totex - Total | D104: £m | E104: =IF(ISNUMBER(SEARCH("CW3",Consolidated_Input[[#This Row],[Reference]])),0,'F_Inputs BP'!F107) -> 0 | F104: =IF(ISNUMBER(SEARCH("CW3",Consolidated_Input[[#This Row],[Reference]])),0,'F_Inputs BP'!G107) -> 0
A105: SES | B105: ='F_Inputs BP'!B108 -> CW17_096TOT_PR24 | C105: Water quality improvements - Addressing raw water quality deterioration (grey solutions); ; enhancement totex - Total | D105: £m | E105: =IF(ISNUMBER(SEARCH("CW3",Consolidated_Input[[#This Row],[Reference]])),0,'F_Inputs BP'!F108) -> 0 | F105: =IF(ISNUMBER(SEARCH("CW3",Consolidated_Input[[#This Row],[Reference]])),0,'F_Inputs BP'!G108) -> 0
A106: SES | B106: ='F_Inputs BP'!B109 -> CW17_099TOT_PR24 | C106: Water quality improvements - Addressing raw water quality deterioration (green solutions); enhancement totex - Total | D106: £m | E106: =IF(ISNUMBER(SEARCH("CW3",Consolidated_Input[[#This Row],[Reference]])),0,'F_Inputs BP'!F109) -> 0 | F106: =IF(ISNUMBER(SEARCH("CW3",Consolidated_Input[[#This Row],[Reference]])),0,'F_Inputs BP'!G109) -> 0

Sheet Final Input
A1: =RIGHT(CELL("filename", $A$1), LEN(CELL("filename", $A$1)) - SEARCH("]", CELL("filename", $A$1))) -> Final Input
A4: Acronym | B4: Reference | C4: Item Description | D4: Unit | E4: 2023-24 | F4: 2024-25 | G4: 2025-26 | H4: 2026-27 | I4: 2027-28 | J4: 2028-29 | K4: 2029-30 | L4: Total | M4: Number
A5: ANH | B5: ='F_Inputs BP'!B8 -> CW3_099TOT_PR24 | C5: Water quality improvements - Addressing raw water quality deterioration (grey solutions); ; enhancement totex - Total | D5: £m | E5: =Consolidated_Input[[#This Row],[2023-24]] -> 0 | F5: =Consolidated_Input[[#This Row],[2024-25]] -> 0 | G5: =Consolidated_Input[[#This Row],[2025-26]] -> 19.865 | H5: =Consolidated_Input[[#This Row],[2026-27]] -> 46.342 | I5: =Consolidated_Input[[#This Row],[2027-28]] -> 63.262 | J5: =Consolidated_Input[[#This Row],[2028-29]] -> 59.832 | K5: =Consolidated_Input[[#This Row],[2029-30]] -> 36.1 | L5: =SUM(Final_Input[[#This Row],[2023-24]:[2029-30]]) -> 225.401 | M5: =IF(L5>0,"Line Amount Requested (£m)","") -> Line Amount Requested (£m)
A6: ANH | B6: ='F_Inputs BP'!B9 -> CW3_102TOT_PR24 | C6: Water quality improvements - Addressing raw water quality deterioration (green solutions); enhancement totex - Total | D6: £m | E6: =Consolidated_Input[[#This Row],[2023-24]] -> 0 | F6: =Consolidated_Input[[#This Row],[2024-25]] -> 0 | G6: =Consolidated_Input[[#This Row],[2025-26]] -> 0 | H6: =Consolidated_Input[[#This Row],[2026-27]] -> 0 | I6: =Consolidated_Input[[#This Row],[2027-28]] -> 0 | J6: =Consolidated_Input[[#This Row],[2028-29]] -> 0 | K6: =Consolidated_Input[[#This Row],[2029-30]] -> 0 | L6: =SUM(Final_Input[[#This Row],[2023-24]:[2029-30]]) -> 0
A7: ANH | B7: ='F_Inputs BP'!B10 -> CW12_096TOT_PR24 | C7: Water quality improvements - Addressing raw water quality deterioration (grey solutions); ; enhancement totex - Total | D7: £m | E7: =Consolidated_Input[[#This Row],[2023-24]] -> 0 | F7: =Consolidated_Input[[#This Row],[2024-25]] -> 0 | G7: =Consolidated_Input[[#This Row],[2025-26]] -> 0 | H7: =Consolidated_Input[[#This Row],[2026-27]] -> 0 | I7: =Consolidated_Input[[#This Row],[2027-28]] -> 0 | J7: =Consolidated_Input[[#This Row],[2028-29]] -> 0 | K7: =Consolidated_Input[[#This Row],[2029-30]] -> 0 | L7: =SUM(Final_Input[[#This Row],[2023-24]:[2029-30]]) -> 0
A8: ANH | B8: ='F_Inputs BP'!B11 -> CW12_099TOT_PR24 | C8: Water quality improvements - Addressing raw water quality deterioration (green solutions); enhancement totex - Total | D8: £m | E8: =Consolidated_Input[[#This Row],[2023-24]] -> 0 | F8: =Consolidated_Input[[#This Row],[2024-25]] -> 0 | G8: =Consolidated_Input[[#This Row],[2025-26]] -> 0 | H8: =Consolidated_Input[[#This Row],[2026-27]] -> 0 | I8: =Consolidated_Input[[#This Row],[2027-28]] -> 0 | J8: =Consolidated_Input[[#This Row],[2028-29]] -> 0 | K8: =Consolidated_Input[[#This Row],[2029-30]] -> 0 | L8: =SUM(Final_Input[[#This Row],[2023-24]:[2029-30]]) -> 0
A9: ANH | B9: ='F_Inputs BP'!B12 -> CW17_096TOT_PR24 | C9: Water quality improvements - Addressing raw water quality deterioration (grey solutions); ; enhancement totex - Total | D9: £m | E9: =Consolidated_Input[[#This Row],[2023-24]] -> 0 | F9: =Consolidated_Input[[#This Row],[2024-25]] -> 0 | G9: =Consolidated_Input[[#This Row],[2025-26]] -> 0 | H9: =Consolidated_Input[[#This Row],[2026-27]] -> 0 | I9: =Consolidated_Input[[#This Row],[2027-28]] -> 0 | J9: =Consolidated_Input[[#This Row],[2028-29]] -> 0 | K9: =Consolidated_Input[[#This Row],[2029-30]] -> 0 | L9: =SUM(Final_Input[[#This Row],[2023-24]:[2029-30]]) -> 0
A10: ANH | B10: ='F_Inputs BP'!B13 -> CW17_099TOT_PR24 | C10: Water quality improvements - Addressing raw water quality deterioration (green solutions); enhancement totex - Total | D10: £m | E10: =Consolidated_Input[[#This Row],[2023-24]] -> 0 | F10: =Consolidated_Input[[#This Row],[2024-25]] -> 0 | G10: =Consolidated_Input[[#This Row],[2025-26]] -> 0 | H10: =Consolidated_Input[[#This Row],[2026-27]] -> 0 | I10: =Consolidated_Input[[#This Row],[2027-28]] -> 0 | J10: =Consolidated_Input[[#This Row],[2028-29]] -> 0 | K10: =Consolidated_Input[[#This Row],[2029-30]] -> 0 | L10: =SUM(Final_Input[[#This Row],[2023-24]:[2029-30]]) -> 0
A11: WSH | B11: ='F_Inputs BP'!B14 -> CW3_099TOT_PR24 | C11: Water quality improvements - Addressing raw water quality deterioration (grey solutions); ; enhancement totex - Total | D11: £m | E11: =Consolidated_Input[[#This Row],[2023-24]] -> 0 | F11: =Consolidated_Input[[#This Row],[2024-25]] -> 0 | G11: =Consolidated_Input[[#This Row],[2025-26]] -> 10.456 | H11: =Consolidated_Input[[#This Row],[2026-27]] -> 12.066 | I11: =Consolidated_Input[[#This Row],[2027-28]] -> 10.712 | J11: =Consolidated_Input[[#This Row],[2028-29]] -> 9.027 | K11: =Consolidated_Input[[#This Row],[2029-30]] -> 3.677 | L11: =SUM(Final_Input[[#This Row],[2023-24]:[2029-30]]) -> 45.938 | M11: Line Amount Requested (£m)
A12: WSH | B12: ='F_Inputs BP'!B15 -> CW3_102TOT_PR24 | C12: Water quality improvements - Addressing raw water quality deterioration (green solutions); enhancement totex - Total | D12: £m | E12: =Consolidated_Input[[#This Row],[2023-24]] -> 0 | F12: =Consolidated_Input[[#This Row],[2024-25]] -> 0 | G12: =Consolidated_Input[[#This Row],[2025-26]] -> 1.304 | H12: =Consolidated_Input[[#This Row],[2026-27]] -> 1.283 | I12: =Consolidated_Input[[#This Row],[2027-28]] -> 1.285 | J12: =Consolidated_Input[[#This Row],[2028-29]] -> 1.294 | K12: =Consolidated_Input[[#This Row],[2029-30]] -> 1.31 | L12: =SUM(Final_Input[[#This Row],[2023-24]:[2029-30]]) -> 6.476 | M12: Line Amount Requested (£m)
A13: WSH | B13: ='F_Inputs BP'!B16 -> CW12_096TOT_PR24 | C13: Water quality improvements - Addressing raw water quality deterioration (grey solutions); ; enhancement totex - Total | D13: £m | E13: =Consolidated_Input[[#This Row],[2023-24]] -> 0 | F13: =Consolidated_Input[[#This Row],[2024-25]] -> 0 | G13: =Consolidated_Input[[#This Row],[2025-26]] -> 0 | H13: =Consolidated_Input[[#This Row],[2026-27]] -> 0 | I13: =Consolidated_Input[[#This Row],[2027-28]] -> 0 | J13: =Consolidated_Input[[#This Row],[2028-29]] -> 0 | K13: =Consolidated_Input[[#This Row],[2029-30]] -> 0 | L13: =SUM(Final_Input[[#This Row],[2023-24]:[2029-30]]) -> 0
A14: WSH | B14: ='F_Inputs BP'!B17 -> CW12_099TOT_PR24 | C14: Water quality improvements - Addressing raw water quality deterioration (green solutions); enhancement totex - Total | D14: £m | E14: =Consolidated_Input[[#This Row],[2023-24]] -> 0 | F14: =Consolidated_Input[[#This Row],[2024-25]] -> 0 | G14: =Consolidated_Input[[#This Row],[2025-26]] -> 0 | H14: =Consolidated_Input[[#This Row],[2026-27]] -> 0 | I14: =Consolidated_Input[[#This Row],[2027-28]] -> 0 | J14: =Consolidated_Input[[#This Row],[2028-29]] -> 0 | K14: =Consolidated_Input[[#This Row],[2029-30]] -> 0 | L14: =SUM(Final_Input[[#This Row],[2023-24]:[2029-30]]) -> 0
A15: WSH | B15: ='F_Inputs BP'!B18 -> CW17_096TOT_PR24 | C15: Water quality improvements - Addressing raw water quality deterioration (grey solutions); ; enhancement totex - Total | D15: £m | E15: =Consolidated_Input[[#This Row],[2023-24]] -> 0 | F15: =Consolidated_Input[[#This Row],[2024-25]] -> 0 | G15: =Consolidated_Input[[#This Row],[2025-26]] -> 0 | H15: =Consolidated_Input[[#This Row],[2026-27]] -> 0 | I15: =Consolidated_Input[[#This Row],[2027-28]] -> 0 | J15: =Consolidated_Input[[#This Row],[2028-29]] -> 0 | K15: =Consolidated_Input[[#This Row],[2029-30]] -> 0 | L15: =SUM(Final_Input[[#This Row],[2023-24]:[2029-30]]) -> 0
A16: WSH | B16: ='F_Inputs BP'!B19 -> CW17_099TOT_PR24 | C16: Water quality improvements - Addressing raw water quality deterioration (green solutions); enhancement totex - Total | D16: £m | E16: =Consolidated_Input[[#This Row],[2023-24]] -> 0 | F16: =Consolidated_Input[[#This Row],[2024-25]] -> 0 | G16: =Consolidated_Input[[#This Row],[2025-26]] -> 0 | H16: =Consolidated_Input[[#This Row],[2026-27]] -> 0 | I16: =Consolidated_Input[[#This Row],[2027-28]] -> 0 | J16: =Consolidated_Input[[#This Row],[2028-29]] -> 0 | K16: =Consolidated_Input[[#This Row],[2029-30]] -> 0 | L16: =SUM(Final_Input[[#This Row],[2023-24]:[2029-30]]) -> 0
A17: HDD | B17: ='F_Inputs BP'!B20 -> CW3_099TOT_PR24 | C17: Water quality improvements - Addressing raw water quality deterioration (grey solutions); ; enhancement totex - Total | D17: £m | E17: =Consolidated_Input[[#This Row],[2023-24]] -> 0 | F17: =Consolidated_Input[[#This Row],[2024-25]] -> 0 | G17: =Consolidated_Input[[#This Row],[2025-26]] -> 0 | H17: =Consolidated_Input[[#This Row],[2026-27]] -> 0 | I17: =Consolidated_Input[[#This Row],[2027-28]] -> 0 | J17: =Consolidated_Input[[#This Row],[2028-29]] -> 0 | K17: =Consolidated_Input[[#This Row],[2029-30]] -> 0 | L17: =SUM(Final_Input[[#This Row],[2023-24]:[2029-30]]) -> 0
A18: HDD | B18: ='F_Inputs BP'!B21 -> CW3_102TOT_PR24 | C18: Water quality improvements - Addressing raw water quality deterioration (green solutions); enhancement totex - Total | D18: £m | E18: =Consolidated_Input[[#This Row],[2023-24]] -> 0 | F18: =Consolidated_Input[[#This Row],[2024-25]] -> 0 | G18: =Consolidated_Input[[#This Row],[2025-26]] -> 0 | H18: =Consolidated_Input[[#This Row],[2026-27]] -> 0 | I18: =Consolidated_Input[[#This Row],[2027-28]] -> 0 | J18: =Consolidated_Input[[#This Row],[2028-29]] -> 0 | K18: =Consolidated_Input[[#This Row],[2029-30]] -> 0 | L18: =SUM(Final_Input[[#This Row],[2023-24]:[2029-30]]) -> 0
A19: HDD | B19: ='F_Inputs BP'!B22 -> CW12_096TOT_PR24 | C19: Water quality improvements - Addressing raw water quality deterioration (grey solutions); ; enhancement totex - Total | D19: £m | E19: =Consolidated_Input[[#This Row],[2023-24]] -> 0 | F19: =Consolidated_Input[[#This Row],[2024-25]] -> 0 | G19: =Consolidated_Input[[#This Row],[2025-26]] -> 0 | H19: =Consolidated_Input[[#This Row],[2026-27]] -> 0 | I19: =Consolidated_Input[[#This Row],[2027-28]] -> 0 | J19: =Consolidated_Input[[#This Row],[2028-29]] -> 0 | K19: =Consolidated_Input[[#This Row],[2029-30]] -> 0 | L19: =SUM(Final_Input[[#This Row],[2023-24]:[2029-30]]) -> 0
A20: HDD | B20: ='F_Inputs BP'!B23 -> CW12_099TOT_PR24 | C20: Water quality improvements - Addressing raw water quality deterioration (green solutions); enhancement totex - Total | D20: £m | E20: =Consolidated_Input[[#This Row],[2023-24]] -> 0 | F20: =Consolidated_Input[[#This Row],[2024-25]] -> 0 | G20: =Consolidated_Input[[#This Row],[2025-26]] -> 0 | H20: =Consolidated_Input[[#This Row],[2026-27]] -> 0 | I20: =Consolidated_Input[[#This Row],[2027-28]] -> 0 | J20: =Consolidated_Input[[#This Row],[2028-29]] -> 0 | K20: =Consolidated_Input[[#This Row],[2029-30]] -> 0 | L20: =SUM(Final_Input[[#This Row],[2023-24]:[2029-30]]) -> 0
A21: HDD | B21: ='F_Inputs BP'!B24 -> CW17_096TOT_PR24 | C21: Water quality improvements - Addressing raw water quality deterioration (grey solutions); ; enhancement totex - Total | D21: £m | E21: =Consolidated_Input[[#This Row],[2023-24]] -> 0 | F21: =Consolidated_Input[[#This Row],[2024-25]] -> 0 | G21: =Consolidated_Input[[#This Row],[2025-26]] -> 0 | H21: =Consolidated_Input[[#This Row],[2026-27]] -> 0 | I21: =Consolidated_Input[[#This Row],[2027-28]] -> 0 | J21: =Consolidated_Input[[#This Row],[2028-29]] -> 0 | K21: =Consolidated_Input[[#This Row],[2029-30]] -> 0 | L21: =SUM(Final_Input[[#This Row],[2023-24]:[2029-30]]) -> 0
A22: HDD | B22: ='F_Inputs BP'!B25 -> CW17_099TOT_PR24 | C22: Water quality improvements - Addressing raw water quality deterioration (green solutions); enhancement totex - Total | D22: £m | E22: =Consolidated_Input[[#This Row],[2023-24]] -> 0 | F22: =Consolidated_Input[[#This Row],[2024-25]] -> 0 | G22: =Consolidated_Input[[#This Row],[2025-26]] -> 0 | H22: =Consolidated_Input[[#This Row],[2026-27]] -> 0 | I22: =Consolidated_Input[[#This Row],[2027-28]] -> 0 | J22: =Consolidated_Input[[#This Row],[2028-29]] -> 0 | K22: =Consolidated_Input[[#This Row],[2029-30]] -> 0 | L22: =SUM(Final_Input[[#This Row],[2023-24]:[2029-30]]) -> 0
A23: NES | B23: ='F_Inputs BP'!B26 -> CW3_099TOT_PR24 | C23: Water quality improvements - Addressing raw water quality deterioration (grey solutions); ; enhancement totex - Total | D23: £m | E23: =Consolidated_Input[[#This Row],[2023-24]] -> 0 | F23: =Consolidated_Input[[#This Row],[2024-25]] -> 0 | G23: =Consolidated_Input[[#This Row],[2025-26]] -> 3.43 | H23: =Consolidated_Input[[#This Row],[2026-27]] -> 3.43 | I23: =Consolidated_Input[[#This Row],[2027-28]] -> 0.397 | J23: =Consolidated_Input[[#This Row],[2028-29]] -> 0.397 | K23: =Consolidated_Input[[#This Row],[2029-30]] -> 0.397 | L23: =SUM(Final_Input[[#This Row],[2023-24]:[2029-30]]) -> 8.051 | M23: Line Amount Requested (£m)
A24: NES | B24: ='F_Inputs BP'!B27 -> CW3_102TOT_PR24 | C24: Water quality improvements - Addressing raw water quality deterioration (green solutions); enhancement totex - Total | D24: £m | E24: =Consolidated_Input[[#This Row],[2023-24]] -> 0 | F24: =Consolidated_Input[[#This Row],[2024-25]] -> 0 | G24: =Consolidated_Input[[#This Row],[2025-26]] -> 0 | H24: =Consolidated_Input[[#This Row],[2026-27]] -> 0 | I24: =Consolidated_Input[[#This Row],[2027-28]] -> 0 | J24: =Consolidated_Input[[#This Row],[2028-29]] -> 0 | K24: =Consolidated_Input[[#This Row],[2029-30]] -> 0 | L24: =SUM(Final_Input[[#This Row],[2023-24]:[2029-30]]) -> 0
A25: NES | B25: ='F_Inputs BP'!B28 -> CW12_096TOT_PR24 | C25: Water quality improvements - Addressing raw water quality deterioration (grey solutions); ; enhancement totex - Total | D25: £m | E25: =Consolidated_Input[[#This Row],[2023-24]] -> 0 | F25: =Consolidated_Input[[#This Row],[2024-25]] -> 0 | G25: =Consolidated_Input[[#This Row],[2025-26]] -> 0 | H25: =Consolidated_Input[[#This Row],[2026-27]] -> 0 | I25: =Consolidated_Input[[#This Row],[2027-28]] -> 0 | J25: =Consolidated_Input[[#This Row],[2028-29]] -> 0 | K25: =Consolidated_Input[[#This Row],[2029-30]] -> 0 | L25: =SUM(Final_Input[[#This Row],[2023-24]:[2029-30]]) -> 0
A26: NES | B26: ='F_Inputs BP'!B29 -> CW12_099TOT_PR24 | C26: Water quality improvements - Addressing raw water quality deterioration (green solutions); enhancement totex - Total | D26: £m | E26: =Consolidated_Input[[#This Row],[2023-24]] -> 0 | F26: =Consolidated_Input[[#This Row],[2024-25]] -> 0 | G26: =Consolidated_Input[[#This Row],[2025-26]] -> 0 | H26: =Consolidated_Input[[#This Row],[2026-27]] -> 0 | I26: =Consolidated_Input[[#This Row],[2027-28]] -> 0 | J26: =Consolidated_Input[[#This Row],[2028-29]] -> 0 | K26: =Consolidated_Input[[#This Row],[2029-30]] -> 0 | L26: =SUM(Final_Input[[#This Row],[2023-24]:[2029-30]]) -> 0
A27: NES | B27: ='F_Inputs BP'!B30 -> CW17_096TOT_PR24 | C27: Water quality improvements - Addressing raw water quality deterioration (grey solutions); ; enhancement totex - Total | D27: £m | E27: =Consolidated_Input[[#This Row],[2023-24]] -> 0 | F27: =Consolidated_Input[[#This Row],[2024-25]] -> 0 | G27: =Consolidated_Input[[#This Row],[2025-26]] -> 0 | H27: =Consolidated_Input[[#This Row],[2026-27]] -> 0 | I27: =Consolidated_Input[[#This Row],[2027-28]] -> 0 | J27: =Consolidated_Input[[#This Row],[2028-29]] -> 0 | K27: =Consolidated_Input[[#This Row],[2029-30]] -> 0 | L27: =SUM(Final_Input[[#This Row],[2023-24]:[2029-30]]) -> 0
A28: NES | B28: ='F_Inputs BP'!B31 -> CW17_099TOT_PR24 | C28: Water quality improvements - Addressing raw water quality deterioration (green solutions); enhancement totex - Total | D28: £m | E28: =Consolidated_Input[[#This Row],[2023-24]] -> 0 | F28: =Consolidated_Input[[#This Row],[2024-25]] -> 0 | G28: =Consolidated_Input[[#This Row],[2025-26]] -> 0 | H28: =Consolidated_Input[[#This Row],[2026-27]] -> 0 | I28: =Consolidated_Input[[#This Row],[2027-28]] -> 0 | J28: =Consolidated_Input[[#This Row],[2028-29]] -> 0 | K28: =Consolidated_Input[[#This Row],[2029-30]] -> 0 | L28: =SUM(Final_Input[[#This Row],[2023-24]:[2029-30]]) -> 0
A29: SVE | B29: ='F_Inputs BP'!B32 -> CW3_099TOT_PR24 | C29: Water quality improvements - Addressing raw water quality deterioration (grey solutions); ; enhancement totex - Total | D29: £m | E29: =Consolidated_Input[[#This Row],[2023-24]] -> 0 | F29: =Consolidated_Input[[#This Row],[2024-25]] -> 0 | G29: =Consolidated_Input[[#This Row],[2025-26]] -> 42.7984125 | H29: =Consolidated_Input[[#This Row],[2026-27]] -> 40.32453277 | I29: =Consolidated_Input[[#This Row],[2027-28]] -> 113.0104954 | J29: =Consolidated_Input[[#This Row],[2028-29]] -> 120.3234156 | K29: =Consolidated_Input[[#This Row],[2029-30]] -> 112.9296508 | L29: =SUM(Final_Input[[#This Row],[2023-24]:[2029-30]]) -> 429.3865071 | M29: Line Amount Requested (£m)
A30: SVE | B30: ='F_Inputs BP'!B33 -> CW3_102TOT_PR24 | C30: Water quality improvements - Addressing raw water quality deterioration (green solutions); enhancement totex - Total | D30: £m | E30: =Consolidated_Input[[#This Row],[2023-24]] -> 0 | F30: =Consolidated_Input[[#This Row],[2024-25]] -> 0 | G30: =Consolidated_Input[[#This Row],[2025-26]] -> 3.887081326 | H30: =Consolidated_Input[[#This Row],[2026-27]] -> 3.911372479 | I30: =Consolidated_Input[[#This Row],[2027-28]] -> 3.991472933 | J30: =Consolidated_Input[[#This Row],[2028-29]] -> 4.07251604 | K30: =Consolidated_Input[[#This Row],[2029-30]] -> 4.097286671 | L30: =SUM(Final_Input[[#This Row],[2023-24]:[2029-30]]) -> 19.95972945 | M30: Line Amount Requested (£m)
A31: SVE | B31: ='F_Inputs BP'!B34 -> CW12_096TOT_PR24 | C31: Water quality improvements - Addressing raw water quality deterioration (grey solutions); ; enhancement totex - Total | D31: £m | E31: =Consolidated_Input[[#This Row],[2023-24]] -> 0 | F31: =Consolidated_Input[[#This Row],[2024-25]] -> 13.078 | G31: =Consolidated_Input[[#This Row],[2025-26]] -> 0 | H31: =Consolidated_Input[[#This Row],[2026-27]] -> 0 | I31: =Consolidated_Input[[#This Row],[2027-28]] -> 0 | J31: =Consolidated_Input[[#This Row],[2028-29]] -> 0 | K31: =Consolidated_Input[[#This Row],[2029-30]] -> 0 | L31: =SUM(Final_Input[[#This Row],[2023-24]:[2029-30]]) -> 13.078 | M31: Line Amount Requested (£m)
A32: SVE | B32: ='F_Inputs BP'!B35 -> CW12_099TOT_PR24 | C32: Water quality improvements - Addressing raw water quality deterioration (green solutions); enhancement totex - Total | D32: £m | E32: =Consolidated_Input[[#This Row],[2023-24]] -> 0 | F32: =Consolidated_Input[[#This Row],[2024-25]] -> 0.2727510946 | G32: =Consolidated_Input[[#This Row],[2025-26]] -> 0 | H32: =Consolidated_Input[[#This Row],[2026-27]] -> 0 | I32: =Consolidated_Input[[#This Row],[2027-28]] -> 0 | J32: =Consolidated_Input[[#This Row],[2028-29]] -> 0 | K32: =Consolidated_Input[[#This Row],[2029-30]] -> 0 | L32: =SUM(Final_Input[[#This Row],[2023-24]:[2029-30]]) -> 0.2727510946 | M32: Line Amount Requested (£m)
A33: SVE | B33: ='F_Inputs BP'!B36 -> CW17_096TOT_PR24 | C33: Water quality improvements - Addressing raw water quality deterioration (grey solutions); ; enhancement totex - Total | D33: £m | E33: =Consolidated_Input[[#This Row],[2023-24]] -> 0 | F33: =Consolidated_Input[[#This Row],[2024-25]] -> 0 | G33: =Consolidated_Input[[#This Row],[2025-26]] -> 0 | H33: =Consolidated_Input[[#This Row],[2026-27]] -> 0 | I33: =Consolidated_Input[[#This Row],[2027-28]] -> 0 | J33: =Consolidated_Input[[#This Row],[2028-29]] -> 0 | K33: =Consolidated_Input[[#This Row],[2029-30]] -> 0 | L33: =SUM(Final_Input[[#This Row],[2023-24]:[2029-30]]) -> 0
A34: SVE | B34: ='F_Inputs BP'!B37 -> CW17_099TOT_PR24 | C34: Water quality improvements - Addressing raw water quality deterioration (green solutions); enhancement totex - Total | D34: £m | E34: =Consolidated_Input[[#This Row],[2023-24]] -> 0 | F34: =Consolidated_Input[[#This Row],[2024-25]] -> 0 | G34: =Consolidated_Input[[#This Row],[2025-26]] -> 0 | H34: =Consolidated_Input[[#This Row],[2026-27]] -> 0 | I34: =Consolidated_Input[[#This Row],[2027-28]] -> 0 | J34: =Consolidated_Input[[#This Row],[2028-29]] -> 0 | K34: =Consolidated_Input[[#This Row],[2029-30]] -> 0 | L34: =SUM(Final_Input[[#This Row],[2023-24]:[2029-30]]) -> 0
A35: SWB | B35: ='F_Inputs BP'!B38 -> CW3_099TOT_PR24 | C35: Water quality improvements - Addressing raw water quality deterioration (grey solutions); ; enhancement totex - Total | D35: £m | E35: =Consolidated_Input[[#This Row],[2023-24]] -> 0 | F35: =Consolidated_Input[[#This Row],[2024-25]] -> 0 | G35: =Consolidated_Input[[#This Row],[2025-26]] -> 20.620788 | H35: =Consolidated_Input[[#This Row],[2026-27]] -> 14.055048 | I35: =Consolidated_Input[[#This Row],[2027-28]] -> 5.791971 | J35: =Consolidated_Input[[#This Row],[2028-29]] -> 6.772279 | K35: =Consolidated_Input[[#This Row],[2029-30]] -> 6.772279 | L35: =SUM(Final_Input[[#This Row],[2023-24]:[2029-30]]) -> 54.012365 | M35: Line Amount Requested (£m)
A36: SWB | B36: ='F_Inputs BP'!B39 -> CW3_102TOT_PR24 | C36: Water quality improvements - Addressing raw water quality deterioration (green solutions); enhancement totex - Total | D36: £m | E36: =Consolidated_Input[[#This Row],[2023-24]] -> 0 | F36: =Consolidated_Input[[#This Row],[2024-25]] -> 0 | G36: =Consolidated_Input[[#This Row],[2025-26]] -> 0 | H36: =Consolidated_Input[[#This Row],[2026-27]] -> 0 | I36: =Consolidated_Input[[#This Row],[2027-28]] -> 0 | J36: =Consolidated_Input[[#This Row],[2028-29]] -> 0 | K36: =Consolidated_Input[[#This Row],[2029-30]] -> 0 | L36: =SUM(Final_Input[[#This Row],[2023-24]:[2029-30]]) -> 0
A37: SWB | B37: ='F_Inputs BP'!B40 -> CW12_096TOT_PR24 | C37: Water quality improvements - Addressing raw water quality deterioration (grey solutions); ; enhancement totex - Total | D37: £m | E37: =Consolidated_Input[[#This Row],[2023-24]] -> 0 | F37: =Consolidated_Input[[#This Row],[2024-25]] -> 0 | G37: =Consolidated_Input[[#This Row],[2025-26]] -> 0 | H37: =Consolidated_Input[[#This Row],[2026-27]] -> 0 | I37: =Consolidated_Input[[#This Row],[2027-28]] -> 0 | J37: =Consolidated_Input[[#This Row],[2028-29]] -> 0 | K37: =Consolidated_Input[[#This Row],[2029-30]] -> 0 | L37: =SUM(Final_Input[[#This Row],[2023-24]:[2029-30]]) -> 0 | M37: =IF(L37>0,"Line Amount Requested (£m)","") -> 
A38: SWB | B38: ='F_Inputs BP'!B41 -> CW12_099TOT_PR24 | C38: Water quality improvements - Addressing raw water quality deterioration (green solutions); enhancement totex - Total | D38: £m | E38: =Consolidated_Input[[#This Row],[2023-24]] -> 0 | F38: =Consolidated_Input[[#This Row],[2024-25]] -> 0 | G38: =Consolidated_Input[[#This Row],[2025-26]] -> 0 | H38: =Consolidated_Input[[#This Row],[2026-27]] -> 0 | I38: =Consolidated_Input[[#This Row],[2027-28]] -> 0 | J38: =Consolidated_Input[[#This Row],[2028-29]] -> 0 | K38: =Consolidated_Input[[#This Row],[2029-30]] -> 0 | L38: =SUM(Final_Input[[#This Row],[2023-24]:[2029-30]]) -> 0
A39: SWB | B39: ='F_Inputs BP'!B42 -> CW17_096TOT_PR24 | C39: Water quality improvements - Addressing raw water quality deterioration (grey solutions); ; enhancement totex - Total | D39: £m | E39: =Consolidated_Input[[#This Row],[2023-24]] -> 0 | F39: =Consolidated_Input[[#This Row],[2024-25]] -> 0 | G39: =Consolidated_Input[[#This Row],[2025-26]] -> 0 | H39: =Consolidated_Input[[#This Row],[2026-27]] -> 0 | I39: =Consolidated_Input[[#This Row],[2027-28]] -> 0 | J39: =Consolidated_Input[[#This Row],[2028-29]] -> 0 | K39: =Consolidated_Input[[#This Row],[2029-30]] -> 0 | L39: =SUM(Final_Input[[#This Row],[2023-24]:[2029-30]]) -> 0
A40: SWB | B40: ='F_Inputs BP'!B43 -> CW17_099TOT_PR24 | C40: Water quality improvements - Addressing raw water quality deterioration (green solutions); enhancement totex - Total | D40: £m | E40: =Consolidated_Input[[#This Row],[2023-24]] -> 0 | F40: =Consolidated_Input[[#This Row],[2024-25]] -> 0 | G40: =Consolidated_Input[[#This Row],[2025-26]] -> 0 | H40: =Consolidated_Input[[#This Row],[2026-27]] -> 0 | I40: =Consolidated_Input[[#This Row],[2027-28]] -> 0 | J40: =Consolidated_Input[[#This Row],[2028-29]] -> 0 | K40: =Consolidated_Input[[#This Row],[2029-30]] -> 0 | L40: =SUM(Final_Input[[#This Row],[2023-24]:[2029-30]]) -> 0
A41: SRN | B41: ='F_Inputs BP'!B44 -> CW3_099TOT_PR24 | C41: Water quality improvements - Addressing raw water quality deterioration (grey solutions); ; enhancement totex - Total | D41: £m | E41: =Consolidated_Input[[#This Row],[2023-24]] -> 0 | F41: =Consolidated_Input[[#This Row],[2024-25]] -> 0 | G41: =Consolidated_Input[[#This Row],[2025-26]] -> 5.47 | H41: =Consolidated_Input[[#This Row],[2026-27]] -> 30.002 | I41: =Consolidated_Input[[#This Row],[2027-28]] -> 30.08 | J41: =Consolidated_Input[[#This Row],[2028-29]] -> 20.442 | K41: =Consolidated_Input[[#This Row],[2029-30]] -> 4.13 | L41: =SUM(Final_Input[[#This Row],[2023-24]:[2029-30]]) -> 90.124 | M41: Line Amount Requested (£m)
A42: SRN | B42: ='F_Inputs BP'!B45 -> CW3_102TOT_PR24 | C42: Water quality improvements - Addressing raw water quality deterioration (green solutions); enhancement totex - Total | D42: £m | E42: =Consolidated_Input[[#This Row],[2023-24]] -> 0 | F42: =Consolidated_Input[[#This Row],[2024-25]] -> 0 | G42: =Consolidated_Input[[#This Row],[2025-26]] -> 0 | H42: =Consolidated_Input[[#This Row],[2026-27]] -> 0 | I42: =Consolidated_Input[[#This Row],[2027-28]] -> 0 | J42: =Consolidated_Input[[#This Row],[2028-29]] -> 0 | K42: =Consolidated_Input[[#This Row],[2029-30]] -> 0 | L42: =SUM(Final_Input[[#This Row],[2023-24]:[2029-30]]) -> 0
A43: SRN | B43: ='F_Inputs BP'!B46 -> CW12_096TOT_PR24 | C43: Water quality improvements - Addressing raw water quality deterioration (grey solutions); ; enhancement totex - Total | D43: £m | E43: =Consolidated_Input[[#This Row],[2023-24]] -> 0 | F43: =Consolidated_Input[[#This Row],[2024-25]] -> 0 | G43: =Consolidated_Input[[#This Row],[2025-26]] -> 0 | H43: =Consolidated_Input[[#This Row],[2026-27]] -> 0 | I43: =Consolidated_Input[[#This Row],[2027-28]] -> 0 | J43: =Consolidated_Input[[#This Row],[2028-29]] -> 0 | K43: =Consolidated_Input[[#This Row],[2029-30]] -> 0 | L43: =SUM(Final_Input[[#This Row],[2023-24]:[2029-30]]) -> 0
A44: SRN | B44: ='F_Inputs BP'!B47 -> CW12_099TOT_PR24 | C44: Water quality improvements - Addressing raw water quality deterioration (green solutions); enhancement totex - Total | D44: £m | E44: =Consolidated_Input[[#This Row],[2023-24]] -> 0 | F44: =Consolidated_Input[[#This Row],[2024-25]] -> 0 | G44: =Consolidated_Input[[#This Row],[2025-26]] -> 0 | H44: =Consolidated_Input[[#This Row],[2026-27]] -> 0 | I44: =Consolidated_Input[[#This Row],[2027-28]] -> 0 | J44: =Consolidated_Input[[#This Row],[2028-29]] -> 0 | K44: =Consolidated_Input[[#This Row],[2029-30]] -> 0 | L44: =SUM(Final_Input[[#This Row],[2023-24]:[2029-30]]) -> 0
A45: SRN | B45: ='F_Inputs BP'!B48 -> CW17_096TOT_PR24 | C45: Water quality improvements - Addressing raw water quality deterioration (grey solutions); ; enhancement totex - Total | D45: £m | E45: =Consolidated_Input[[#This Row],[2023-24]] -> 0 | F45: =Consolidated_Input[[#This Row],[2024-25]] -> 0 | G45: =Consolidated_Input[[#This Row],[2025-26]] -> 0 | H45: =Consolidated_Input[[#This Row],[2026-27]] -> 0 | I45: =Consolidated_Input[[#This Row],[2027-28]] -> 0 | J45: =Consolidated_Input[[#This Row],[2028-29]] -> 0 | K45: =Consolidated_Input[[#This Row],[2029-30]] -> 0 | L45: =SUM(Final_Input[[#This Row],[2023-24]:[2029-30]]) -> 0
A46: SRN | B46: ='F_Inputs BP'!B49 -> CW17_099TOT_PR24 | C46: Water quality improvements - Addressing raw water quality deterioration (green solutions); enhancement totex - Total | D46: £m | E46: =Consolidated_Input[[#This Row],[2023-24]] -> 0 | F46: =Consolidated_Input[[#This Row],[2024-25]] -> 0 | G46: =Consolidated_Input[[#This Row],[2025-26]] -> 0 | H46: =Consolidated_Input[[#This Row],[2026-27]] -> 0 | I46: =Consolidated_Input[[#This Row],[2027-28]] -> 0 | J46: =Consolidated_Input[[#This Row],[2028-29]] -> 0 | K46: =Consolidated_Input[[#This Row],[2029-30]] -> 0 | L46: =SUM(Final_Input[[#This Row],[2023-24]:[2029-30]]) -> 0
A47: TMS | B47: ='F_Inputs BP'!B50 -> CW3_099TOT_PR24 | C47: Water quality improvements - Addressing raw water quality deterioration (grey solutions); ; enhancement totex - Total | D47: £m | E47: =Consolidated_Input[[#This Row],[2023-24]] -> 0 | F47: =Consolidated_Input[[#This Row],[2024-25]] -> 0 | G47: =Consolidated_Input[[#This Row],[2025-26]] -> 33.311 | H47: =Consolidated_Input[[#This Row],[2026-27]] -> 48.595 | I47: =Consolidated_Input[[#This Row],[2027-28]] -> 54.129 | J47: =Consolidated_Input[[#This Row],[2028-29]] -> 31.776 | K47: =Consolidated_Input[[#This Row],[2029-30]] -> 11.305 | L47: =SUM(Final_Input[[#This Row],[2023-24]:[2029-30]]) -> 179.116 | M47: Line Amount Requested (£m)
A48: TMS | B48: ='F_Inputs BP'!B51 -> CW3_102TOT_PR24 | C48: Water quality improvements - Addressing raw water quality deterioration (green solutions); enhancement totex - Total | D48: £m | E48: =Consolidated_Input[[#This Row],[2023-24]] -> 0 | F48: =Consolidated_Input[[#This Row],[2024-25]] -> 0 | G48: =Consolidated_Input[[#This Row],[2025-26]] -> 0 | H48: =Consolidated_Input[[#This Row],[2026-27]] -> 0 | I48: =Consolidated_Input[[#This Row],[2027-28]] -> 0 | J48: =Consolidated_Input[[#This Row],[2028-29]] -> 0 | K48: =Consolidated_Input[[#This Row],[2029-30]] -> 0 | L48: =SUM(Final_Input[[#This Row],[2023-24]:[2029-30]]) -> 0
A49: TMS | B49: ='F_Inputs BP'!B52 -> CW12_096TOT_PR24 | C49: Water quality improvements - Addressing raw water quality deterioration (grey solutions); ; enhancement totex - Total | D49: £m | E49: =Consolidated_Input[[#This Row],[2023-24]] -> 0 | F49: =Consolidated_Input[[#This Row],[2024-25]] -> 0 | G49: =Consolidated_Input[[#This Row],[2025-26]] -> 0 | H49: =Consolidated_Input[[#This Row],[2026-27]] -> 0 | I49: =Consolidated_Input[[#This Row],[2027-28]] -> 0 | J49: =Consolidated_Input[[#This Row],[2028-29]] -> 0 | K49: =Consolidated_Input[[#This Row],[2029-30]] -> 0 | L49: =SUM(Final_Input[[#This Row],[2023-24]:[2029-30]]) -> 0
A50: TMS | B50: ='F_Inputs BP'!B53 -> CW12_099TOT_PR24 | C50: Water quality improvements - Addressing raw water quality deterioration (green solutions); enhancement totex - Total | D50: £m | E50: =Consolidated_Input[[#This Row],[2023-24]] -> 0 | F50: =Consolidated_Input[[#This Row],[2024-25]] -> 0 | G50: =Consolidated_Input[[#This Row],[2025-26]] -> 0 | H50: =Consolidated_Input[[#This Row],[2026-27]] -> 0 | I50: =Consolidated_Input[[#This Row],[2027-28]] -> 0 | J50: =Consolidated_Input[[#This Row],[2028-29]] -> 0 | K50: =Consolidated_Input[[#This Row],[2029-30]] -> 0 | L50: =SUM(Final_Input[[#This Row],[2023-24]:[2029-30]]) -> 0
A51: TMS | B51: ='F_Inputs BP'!B54 -> CW17_096TOT_PR24 | C51: Water quality improvements - Addressing raw water quality deterioration (grey solutions); ; enhancement totex - Total | D51: £m | E51: =Consolidated_Input[[#This Row],[2023-24]] -> 0 | F51: =Consolidated_Input[[#This Row],[2024-25]] -> 0 | G51: =Consolidated_Input[[#This Row],[2025-26]] -> 0 | H51: =Consolidated_Input[[#This Row],[2026-27]] -> 0 | I51: =Consolidated_Input[[#This Row],[2027-28]] -> 0 | J51: =Consolidated_Input[[#This Row],[2028-29]] -> 0 | K51: =Consolidated_Input[[#This Row],[2029-30]] -> 0 | L51: =SUM(Final_Input[[#This Row],[2023-24]:[2029-30]]) -> 0
A52: TMS | B52: ='F_Inputs BP'!B55 -> CW17_099TOT_PR24 | C52: Water quality improvements - Addressing raw water quality deterioration (green solutions); enhancement totex - Total | D52: £m | E52: =Consolidated_Input[[#This Row],[2023-24]] -> 0 | F52: =Consolidated_Input[[#This Row],[2024-25]] -> 0 | G52: =Consolidated_Input[[#This Row],[2025-26]] -> 0 | H52: =Consolidated_Input[[#This Row],[2026-27]] -> 0 | I52: =Consolidated_Input[[#This Row],[2027-28]] -> 0 | J52: =Consolidated_Input[[#This Row],[2028-29]] -> 0 | K52: =Consolidated_Input[[#This Row],[2029-30]] -> 0 | L52: =SUM(Final_Input[[#This Row],[2023-24]:[2029-30]]) -> 0
A53: NWT | B53: ='F_Inputs BP'!B56 -> CW3_099TOT_PR24 | C53: Water quality improvements - Addressing raw water quality deterioration (grey solutions); ; enhancement totex - Total | D53: £m | E53: =Consolidated_Input[[#This Row],[2023-24]] -> 0 | F53: =Consolidated_Input[[#This Row],[2024-25]] -> 0 | G53: =Consolidated_Input[[#This Row],[2025-26]] -> 6.754842253 | H53: =Consolidated_Input[[#This Row],[2026-27]] -> 7.674438891 | I53: =Consolidated_Input[[#This Row],[2027-28]] -> 37.02252081 | J53: =Consolidated_Input[[#This Row],[2028-29]] -> 32.06492185 | K53: =Consolidated_Input[[#This Row],[2029-30]] -> 8.233377755 | L53: =SUM(Final_Input[[#This Row],[2023-24]:[2029-30]]) -> 91.75010156 | M53: Line Amount Requested (£m)
A54: NWT | B54: ='F_Inputs BP'!B57 -> CW3_102TOT_PR24 | C54: Water quality improvements - Addressing raw water quality deterioration (green solutions); enhancement totex - Total | D54: £m | E54: =Consolidated_Input[[#This Row],[2023-24]] -> 0 | F54: =Consolidated_Input[[#This Row],[2024-25]] -> 0 | G54: =Consolidated_Input[[#This Row],[2025-26]] -> 0 | H54: =Consolidated_Input[[#This Row],[2026-27]] -> 0 | I54: =Consolidated_Input[[#This Row],[2027-28]] -> 0 | J54: =Consolidated_Input[[#This Row],[2028-29]] -> 0 | K54: =Consolidated_Input[[#This Row],[2029-30]] -> 0 | L54: =SUM(Final_Input[[#This Row],[2023-24]:[2029-30]]) -> 0
A55: NWT | B55: ='F_Inputs BP'!B58 -> CW12_096TOT_PR24 | C55: Water quality improvements - Addressing raw water quality deterioration (grey solutions); ; enhancement totex - Total | D55: £m | E55: =Consolidated_Input[[#This Row],[2023-24]] -> 0 | F55: =Consolidated_Input[[#This Row],[2024-25]] -> 0 | G55: =Consolidated_Input[[#This Row],[2025-26]] -> 0 | H55: =Consolidated_Input[[#This Row],[2026-27]] -> 0 | I55: =Consolidated_Input[[#This Row],[2027-28]] -> 0 | J55: =Consolidated_Input[[#This Row],[2028-29]] -> 0 | K55: =Consolidated_Input[[#This Row],[2029-30]] -> 0 | L55: =SUM(Final_Input[[#This Row],[2023-24]:[2029-30]]) -> 0
A56: NWT | B56: ='F_Inputs BP'!B59 -> CW12_099TOT_PR24 | C56: Water quality improvements - Addressing raw water quality deterioration (green solutions); enhancement totex - Total | D56: £m | E56: =Consolidated_Input[[#This Row],[2023-24]] -> 0 | F56: =Consolidated_Input[[#This Row],[2024-25]] -> 0 | G56: =Consolidated_Input[[#This Row],[2025-26]] -> 0 | H56: =Consolidated_Input[[#This Row],[2026-27]] -> 0 | I56: =Consolidated_Input[[#This Row],[2027-28]] -> 0 | J56: =Consolidated_Input[[#This Row],[2028-29]] -> 0 | K56: =Consolidated_Input[[#This Row],[2029-30]] -> 0 | L56: =SUM(Final_Input[[#This Row],[2023-24]:[2029-30]]) -> 0
A57: NWT | B57: ='F_Inputs BP'!B60 -> CW17_096TOT_PR24 | C57: Water quality improvements - Addressing raw water quality deterioration (grey solutions); ; enhancement totex - Total | D57: £m | E57: =Consolidated_Input[[#This Row],[2023-24]] -> 0 | F57: =Consolidated_Input[[#This Row],[2024-25]] -> 0 | G57: =Consolidated_Input[[#This Row],[2025-26]] -> 0 | H57: =Consolidated_Input[[#This Row],[2026-27]] -> 0 | I57: =Consolidated_Input[[#This Row],[2027-28]] -> 0 | J57: =Consolidated_Input[[#This Row],[2028-29]] -> 0 | K57: =Consolidated_Input[[#This Row],[2029-30]] -> 0 | L57: =SUM(Final_Input[[#This Row],[2023-24]:[2029-30]]) -> 0
A58: NWT | B58: ='F_Inputs BP'!B61 -> CW17_099TOT_PR24 | C58: Water quality improvements - Addressing raw water quality deterioration (green solutions); enhancement totex - Total | D58: £m | E58: =Consolidated_Input[[#This Row],[2023-24]] -> 0 | F58: =Consolidated_Input[[#This Row],[2024-25]] -> 0 | G58: =Consolidated_Input[[#This Row],[2025-26]] -> 0 | H58: =Consolidated_Input[[#This Row],[2026-27]] -> 0 | I58: =Consolidated_Input[[#This Row],[2027-28]] -> 0 | J58: =Consolidated_Input[[#This Row],[2028-29]] -> 0 | K58: =Consolidated_Input[[#This Row],[2029-30]] -> 0 | L58: =SUM(Final_Input[[#This Row],[2023-24]:[2029-30]]) -> 0
A59: WSX | B59: ='F_Inputs BP'!B62 -> CW3_099TOT_PR24 | C59: Water quality improvements - Addressing raw water quality deterioration (grey solutions); ; enhancement totex - Total | D59: £m | E59: =Consolidated_Input[[#This Row],[2023-24]] -> 0 | F59: =Consolidated_Input[[#This Row],[2024-25]] -> 0 | G59: =Consolidated_Input[[#This Row],[2025-26]] -> 2.609437 | H59: =Consolidated_Input[[#This Row],[2026-27]] -> 7.18656 | I59: =Consolidated_Input[[#This Row],[2027-28]] -> 15.972182 | J59: =Consolidated_Input[[#This Row],[2028-29]] -> 7.268071 | K59: =Consolidated_Input[[#This Row],[2029-30]] -> 4.455742 | L59: =SUM(Final_Input[[#This Row],[2023-24]:[2029-30]]) -> 37.491992 | M59: Line Amount Requested (£m)
A60: WSX | B60: ='F_Inputs BP'!B63 -> CW3_102TOT_PR24 | C60: Water quality improvements - Addressing raw water quality deterioration (green solutions); enhancement totex - Total | D60: £m | E60: =Consolidated_Input[[#This Row],[2023-24]] -> 0 | F60: =Consolidated_Input[[#This Row],[2024-25]] -> 0 | G60: =Consolidated_Input[[#This Row],[2025-26]] -> 0.344 | H60: =Consolidated_Input[[#This Row],[2026-27]] -> 0.537778 | I60: =Consolidated_Input[[#This Row],[2027-28]] -> 0.566893 | J60: =Consolidated_Input[[#This Row],[2028-29]] -> 0.343252 | K60: =Consolidated_Input[[#This Row],[2029-30]] -> 0.331075 | L60: =SUM(Final_Input[[#This Row],[2023-24]:[2029-30]]) -> 2.122998 | M60: Line Amount Requested (£m)
A61: WSX | B61: ='F_Inputs BP'!B64 -> CW12_096TOT_PR24 | C61: Water quality improvements - Addressing raw water quality deterioration (grey solutions); ; enhancement totex - Total | D61: £m | E61: =Consolidated_Input[[#This Row],[2023-24]] -> 0.081001 | F61: =Consolidated_Input[[#This Row],[2024-25]] -> 0.388067 | G61: =Consolidated_Input[[#This Row],[2025-26]] -> 0 | H61: =Consolidated_Input[[#This Row],[2026-27]] -> 0 | I61: =Consolidated_Input[[#This Row],[2027-28]] -> 0 | J61: =Consolidated_Input[[#This Row],[2028-29]] -> 0 | K61: =Consolidated_Input[[#This Row],[2029-30]] -> 0 | L61: =SUM(Final_Input[[#This Row],[2023-24]:[2029-30]]) -> 0.469068 | M61: Line Amount Requested (£m)
A62: WSX | B62: ='F_Inputs BP'!B65 -> CW12_099TOT_PR24 | C62: Water quality improvements - Addressing raw water quality deterioration (green solutions); enhancement totex - Total | D62: £m | E62: =Consolidated_Input[[#This Row],[2023-24]] -> 0.000999 | F62: =Consolidated_Input[[#This Row],[2024-25]] -> 0.004217 | G62: =Consolidated_Input[[#This Row],[2025-26]] -> 0 | H62: =Consolidated_Input[[#This Row],[2026-27]] -> 0 | I62: =Consolidated_Input[[#This Row],[2027-28]] -> 0 | J62: =Consolidated_Input[[#This Row],[2028-29]] -> 0 | K62: =Consolidated_Input[[#This Row],[2029-30]] -> 0 | L62: =SUM(Final_Input[[#This Row],[2023-24]:[2029-30]]) -> 0.005216 | M62: Line Amount Requested (£m)
A63: WSX | B63: ='F_Inputs BP'!B66 -> CW17_096TOT_PR24 | C63: Water quality improvements - Addressing raw water quality deterioration (grey solutions); ; enhancement totex - Total | D63: £m | E63: =Consolidated_Input[[#This Row],[2023-24]] -> 0 | F63: =Consolidated_Input[[#This Row],[2024-25]] -> 0 | G63: =Consolidated_Input[[#This Row],[2025-26]] -> 0 | H63: =Consolidated_Input[[#This Row],[2026-27]] -> 0 | I63: =Consolidated_Input[[#This Row],[2027-28]] -> 0 | J63: =Consolidated_Input[[#This Row],[2028-29]] -> 0 | K63: =Consolidated_Input[[#This Row],[2029-30]] -> 0 | L63: =SUM(Final_Input[[#This Row],[2023-24]:[2029-30]]) -> 0
A64: WSX | B64: ='F_Inputs BP'!B67 -> CW17_099TOT_PR24 | C64: Water quality improvements - Addressing raw water quality deterioration (green solutions); enhancement totex - Total | D64: £m | E64: =Consolidated_Input[[#This Row],[2023-24]] -> 0 | F64: =Consolidated_Input[[#This Row],[2024-25]] -> 0 | G64: =Consolidated_Input[[#This Row],[2025-26]] -> 0 | H64: =Consolidated_Input[[#This Row],[2026-27]] -> 0 | I64: =Consolidated_Input[[#This Row],[2027-28]] -> 0 | J64: =Consolidated_Input[[#This Row],[2028-29]] -> 0 | K64: =Consolidated_Input[[#This Row],[2029-30]] -> 0 | L64: =SUM(Final_Input[[#This Row],[2023-24]:[2029-30]]) -> 0
A65: YKY | B65: ='F_Inputs BP'!B68 -> CW3_099TOT_PR24 | C65: Water quality improvements - Addressing raw water quality deterioration (grey solutions); ; enhancement totex - Total | D65: £m | E65: =Consolidated_Input[[#This Row],[2023-24]] -> 0 | F65: =Consolidated_Input[[#This Row],[2024-25]] -> 0 | G65: =Consolidated_Input[[#This Row],[2025-26]] -> 2.4025344 | H65: =Consolidated_Input[[#This Row],[2026-27]] -> 8.989824 | I65: =Consolidated_Input[[#This Row],[2027-28]] -> 14.3774208 | J65: =Consolidated_Input[[#This Row],[2028-29]] -> 8.5395456 | K65: =Consolidated_Input[[#This Row],[2029-30]] -> 6.1747968 | L65: =SUM(Final_Input[[#This Row],[2023-24]:[2029-30]]) -> 40.4841216 | M65: Line Amount Requested (£m)
A66: YKY | B66: ='F_Inputs BP'!B69 -> CW3_102TOT_PR24 | C66: Water quality improvements - Addressing raw water quality deterioration (green solutions); enhancement totex - Total | D66: £m | E66: =Consolidated_Input[[#This Row],[2023-24]] -> 0 | F66: =Consolidated_Input[[#This Row],[2024-25]] -> 0 | G66: =Consolidated_Input[[#This Row],[2025-26]] -> 0 | H66: =Consolidated_Input[[#This Row],[2026-27]] -> 0 | I66: =Consolidated_Input[[#This Row],[2027-28]] -> 0 | J66: =Consolidated_Input[[#This Row],[2028-29]] -> 0 | K66: =Consolidated_Input[[#This Row],[2029-30]] -> 0 | L66: =SUM(Final_Input[[#This Row],[2023-24]:[2029-30]]) -> 0
A67: YKY | B67: ='F_Inputs BP'!B70 -> CW12_096TOT_PR24 | C67: Water quality improvements - Addressing raw water quality deterioration (grey solutions); ; enhancement totex - Total | D67: £m | E67: =Consolidated_Input[[#This Row],[2023-24]] -> 0.066 | F67: =Consolidated_Input[[#This Row],[2024-25]] -> 1.623 | G67: =Consolidated_Input[[#This Row],[2025-26]] -> 0 | H67: =Consolidated_Input[[#This Row],[2026-27]] -> 0 | I67: =Consolidated_Input[[#This Row],[2027-28]] -> 0 | J67: =Consolidated_Input[[#This Row],[2028-29]] -> 0 | K67: =Consolidated_Input[[#This Row],[2029-30]] -> 0 | L67: =SUM(Final_Input[[#This Row],[2023-24]:[2029-30]]) -> 1.689 | M67: Line Amount Requested (£m)
A68: YKY | B68: ='F_Inputs BP'!B71 -> CW12_099TOT_PR24 | C68: Water quality improvements - Addressing raw water quality deterioration (green solutions); enhancement totex - Total | D68: £m | E68: =Consolidated_Input[[#This Row],[2023-24]] -> 0 | F68: =Consolidated_Input[[#This Row],[2024-25]] -> 0 | G68: =Consolidated_Input[[#This Row],[2025-26]] -> 0 | H68: =Consolidated_Input[[#This Row],[2026-27]] -> 0 | I68: =Consolidated_Input[[#This Row],[2027-28]] -> 0 | J68: =Consolidated_Input[[#This Row],[2028-29]] -> 0 | K68: =Consolidated_Input[[#This Row],[2029-30]] -> 0 | L68: =SUM(Final_Input[[#This Row],[2023-24]:[2029-30]]) -> 0
A69: YKY | B69: ='F_Inputs BP'!B72 -> CW17_096TOT_PR24 | C69: Water quality improvements - Addressing raw water quality deterioration (grey solutions); ; enhancement totex - Total | D69: £m | E69: =Consolidated_Input[[#This Row],[2023-24]] -> 0 | F69: =Consolidated_Input[[#This Row],[2024-25]] -> 0 | G69: =Consolidated_Input[[#This Row],[2025-26]] -> 0 | H69: =Consolidated_Input[[#This Row],[2026-27]] -> 0 | I69: =Consolidated_Input[[#This Row],[2027-28]] -> 0 | J69: =Consolidated_Input[[#This Row],[2028-29]] -> 0 | K69: =Consolidated_Input[[#This Row],[2029-30]] -> 0 | L69: =SUM(Final_Input[[#This Row],[2023-24]:[2029-30]]) -> 0 | M69: =IF(L69>0,"Line Amount Requested (£m)","") -> 
A70: YKY | B70: ='F_Inputs BP'!B73 -> CW17_099TOT_PR24 | C70: Water quality improvements - Addressing raw water quality deterioration (green solutions); enhancement totex - Total | D70: £m | E70: =Consolidated_Input[[#This Row],[2023-24]] -> 0 | F70: =Consolidated_Input[[#This Row],[2024-25]] -> 0 | G70: =Consolidated_Input[[#This Row],[2025-26]] -> 0 | H70: =Consolidated_Input[[#This Row],[2026-27]] -> 0 | I70: =Consolidated_Input[[#This Row],[2027-28]] -> 0 | J70: =Consolidated_Input[[#This Row],[2028-29]] -> 0 | K70: =Consolidated_Input[[#This Row],[2029-30]] -> 0 | L70: =SUM(Final_Input[[#This Row],[2023-24]:[2029-30]]) -> 0
A71: AFW | B71: ='F_Inputs BP'!B74 -> CW3_099TOT_PR24 | C71: Water quality improvements - Addressing raw water quality deterioration (grey solutions); ; enhancement totex - Total | D71: £m | E71: =Consolidated_Input[[#This Row],[2023-24]] -> 0 | F71: =Consolidated_Input[[#This Row],[2024-25]] -> 0 | G71: =Consolidated_Input[[#This Row],[2025-26]] -> 57.668 | H71: =Consolidated_Input[[#This Row],[2026-27]] -> 67.287 | I71: =Consolidated_Input[[#This Row],[2027-28]] -> 55.558 | J71: =Consolidated_Input[[#This Row],[2028-29]] -> 45.831 | K71: =Consolidated_Input[[#This Row],[2029-30]] -> 11.278 | L71: =SUM(Final_Input[[#This Row],[2023-24]:[2029-30]]) -> 237.622 | M71: Line Amount Requested (£m)
A72: AFW | B72: ='F_Inputs BP'!B75 -> CW3_102TOT_PR24 | C72: Water quality improvements - Addressing raw water quality deterioration (green solutions); enhancement totex - Total | D72: £m | E72: =Consolidated_Input[[#This Row],[2023-24]] -> 0 | F72: =Consolidated_Input[[#This Row],[2024-25]] -> 0 | G72: =Consolidated_Input[[#This Row],[2025-26]] -> 0 | H72: =Consolidated_Input[[#This Row],[2026-27]] -> 0 | I72: =Consolidated_Input[[#This Row],[2027-28]] -> 0 | J72: =Consolidated_Input[[#This Row],[2028-29]] -> 0 | K72: =Consolidated_Input[[#This Row],[2029-30]] -> 0 | L72: =SUM(Final_Input[[#This Row],[2023-24]:[2029-30]]) -> 0
A73: AFW | B73: ='F_Inputs BP'!B76 -> CW12_096TOT_PR24 | C73: Water quality improvements - Addressing raw water quality deterioration (grey solutions); ; enhancement totex - Total | D73: £m | E73: =Consolidated_Input[[#This Row],[2023-24]] -> 1.3 | F73: =Consolidated_Input[[#This Row],[2024-25]] -> 1.865 | G73: =Consolidated_Input[[#This Row],[2025-26]] -> 0 | H73: =Consolidated_Input[[#This Row],[2026-27]] -> 0 | I73: =Consolidated_Input[[#This Row],[2027-28]] -> 0 | J73: =Consolidated_Input[[#This Row],[2028-29]] -> 0 | K73: =Consolidated_Input[[#This Row],[2029-30]] -> 0 | L73: =SUM(Final_Input[[#This Row],[2023-24]:[2029-30]]) -> 3.165 | M73: Line Amount Requested (£m)
A74: AFW | B74: ='F_Inputs BP'!B77 -> CW12_099TOT_PR24 | C74: Water quality improvements - Addressing raw water quality deterioration (green solutions); enhancement totex - Total | D74: £m | E74: =Consolidated_Input[[#This Row],[2023-24]] -> 0 | F74: =Consolidated_Input[[#This Row],[2024-25]] -> 0 | G74: =Consolidated_Input[[#This Row],[2025-26]] -> 0 | H74: =Consolidated_Input[[#This Row],[2026-27]] -> 0 | I74: =Consolidated_Input[[#This Row],[2027-28]] -> 0 | J74: =Consolidated_Input[[#This Row],[2028-29]] -> 0 | K74: =Consolidated_Input[[#This Row],[2029-30]] -> 0 | L74: =SUM(Final_Input[[#This Row],[2023-24]:[2029-30]]) -> 0
A75: AFW | B75: ='F_Inputs BP'!B78 -> CW17_096TOT_PR24 | C75: Water quality improvements - Addressing raw water quality deterioration (grey solutions); ; enhancement totex - Total | D75: £m | E75: =Consolidated_Input[[#This Row],[2023-24]] -> 2.083 | F75: =Consolidated_Input[[#This Row],[2024-25]] -> 0.637 | G75: =Consolidated_Input[[#This Row],[2025-26]] -> 0 | H75: =Consolidated_Input[[#This Row],[2026-27]] -> 0 | I75: =Consolidated_Input[[#This Row],[2027-28]] -> 0 | J75: =Consolidated_Input[[#This Row],[2028-29]] -> 0 | K75: =Consolidated_Input[[#This Row],[2029-30]] -> 0 | L75: =SUM(Final_Input[[#This Row],[2023-24]:[2029-30]]) -> 2.72 | M75: Line Amount Requested (£m)
A76: AFW | B76: ='F_Inputs BP'!B79 -> CW17_099TOT_PR24 | C76: Water quality improvements - Addressing raw water quality deterioration (green solutions); enhancement totex - Total | D76: £m | E76: =Consolidated_Input[[#This Row],[2023-24]] -> 0 | F76: =Consolidated_Input[[#This Row],[2024-25]] -> 0 | G76: =Consolidated_Input[[#This Row],[2025-26]] -> 0 | H76: =Consolidated_Input[[#This Row],[2026-27]] -> 0 | I76: =Consolidated_Input[[#This Row],[2027-28]] -> 0 | J76: =Consolidated_Input[[#This Row],[2028-29]] -> 0 | K76: =Consolidated_Input[[#This Row],[2029-30]] -> 0 | L76: =SUM(Final_Input[[#This Row],[2023-24]:[2029-30]]) -> 0
A77: BRL | B77: ='F_Inputs BP'!B80 -> CW3_099TOT_PR24 | C77: Water quality improvements - Addressing raw water quality deterioration (grey solutions); ; enhancement totex - Total | D77: £m | E77: =Consolidated_Input[[#This Row],[2023-24]] -> 0 | F77: =Consolidated_Input[[#This Row],[2024-25]] -> 0 | G77: =Consolidated_Input[[#This Row],[2025-26]] -> 6.58344 | H77: =Consolidated_Input[[#This Row],[2026-27]] -> 12.82352 | I77: =Consolidated_Input[[#This Row],[2027-28]] -> 22.271163 | J77: =Consolidated_Input[[#This Row],[2028-29]] -> 21.261044 | K77: =Consolidated_Input[[#This Row],[2029-30]] -> 21.261044 | L77: =SUM(Final_Input[[#This Row],[2023-24]:[2029-30]]) -> 84.200211 | M77: Line Amount Requested (£m)
A78: BRL | B78: ='F_Inputs BP'!B81 -> CW3_102TOT_PR24 | C78: Water quality improvements - Addressing raw water quality deterioration (green solutions); enhancement totex - Total | D78: £m | E78: =Consolidated_Input[[#This Row],[2023-24]] -> 0 | F78: =Consolidated_Input[[#This Row],[2024-25]] -> 0 | G78: =Consolidated_Input[[#This Row],[2025-26]] -> 0 | H78: =Consolidated_Input[[#This Row],[2026-27]] -> 0 | I78: =Consolidated_Input[[#This Row],[2027-28]] -> 0 | J78: =Consolidated_Input[[#This Row],[2028-29]] -> 0 | K78: =Consolidated_Input[[#This Row],[2029-30]] -> 0 | L78: =SUM(Final_Input[[#This Row],[2023-24]:[2029-30]]) -> 0
A79: BRL | B79: ='F_Inputs BP'!B82 -> CW12_096TOT_PR24 | C79: Water quality improvements - Addressing raw water quality deterioration (grey solutions); ; enhancement totex - Total | D79: £m | E79: =Consolidated_Input[[#This Row],[2023-24]] -> 0 | F79: =Consolidated_Input[[#This Row],[2024-25]] -> 0 | G79: =Consolidated_Input[[#This Row],[2025-26]] -> 0 | H79: =Consolidated_Input[[#This Row],[2026-27]] -> 0 | I79: =Consolidated_Input[[#This Row],[2027-28]] -> 0 | J79: =Consolidated_Input[[#This Row],[2028-29]] -> 0 | K79: =Consolidated_Input[[#This Row],[2029-30]] -> 0 | L79: =SUM(Final_Input[[#This Row],[2023-24]:[2029-30]]) -> 0
A80: BRL | B80: ='F_Inputs BP'!B83 -> CW12_099TOT_PR24 | C80: Water quality improvements - Addressing raw water quality deterioration (green solutions); enhancement totex - Total | D80: £m | E80: =Consolidated_Input[[#This Row],[2023-24]] -> 0 | F80: =Consolidated_Input[[#This Row],[2024-25]] -> 0 | G80: =Consolidated_Input[[#This Row],[2025-26]] -> 0 | H80: =Consolidated_Input[[#This Row],[2026-27]] -> 0 | I80: =Consolidated_Input[[#This Row],[2027-28]] -> 0 | J80: =Consolidated_Input[[#This Row],[2028-29]] -> 0 | K80: =Consolidated_Input[[#This Row],[2029-30]] -> 0 | L80: =SUM(Final_Input[[#This Row],[2023-24]:[2029-30]]) -> 0
A81: BRL | B81: ='F_Inputs BP'!B84 -> CW17_096TOT_PR24 | C81: Water quality improvements - Addressing raw water quality deterioration (grey solutions); ; enhancement totex - Total | D81: £m | E81: =Consolidated_Input[[#This Row],[2023-24]] -> 0 | F81: =Consolidated_Input[[#This Row],[2024-25]] -> 0 | G81: =Consolidated_Input[[#This Row],[2025-26]] -> 0 | H81: =Consolidated_Input[[#This Row],[2026-27]] -> 0 | I81: =Consolidated_Input[[#This Row],[2027-28]] -> 0 | J81: =Consolidated_Input[[#This Row],[2028-29]] -> 0 | K81: =Consolidated_Input[[#This Row],[2029-30]] -> 0 | L81: =SUM(Final_Input[[#This Row],[2023-24]:[2029-30]]) -> 0
A82: BRL | B82: ='F_Inputs BP'!B85 -> CW17_099TOT_PR24 | C82: Water quality improvements - Addressing raw water quality deterioration (green solutions); enhancement totex - Total | D82: £m | E82: =Consolidated_Input[[#This Row],[2023-24]] -> 0 | F82: =Consolidated_Input[[#This Row],[2024-25]] -> 0 | G82: =Consolidated_Input[[#This Row],[2025-26]] -> 0 | H82: =Consolidated_Input[[#This Row],[2026-27]] -> 0 | I82: =Consolidated_Input[[#This Row],[2027-28]] -> 0 | J82: =Consolidated_Input[[#This Row],[2028-29]] -> 0 | K82: =Consolidated_Input[[#This Row],[2029-30]] -> 0 | L82: =SUM(Final_Input[[#This Row],[2023-24]:[2029-30]]) -> 0
A83: PRT | B83: ='F_Inputs BP'!B86 -> CW3_099TOT_PR24 | C83: Water quality improvements - Addressing raw water quality deterioration (grey solutions); ; enhancement totex - Total | D83: £m | E83: =Consolidated_Input[[#This Row],[2023-24]] -> 0 | F83: =Consolidated_Input[[#This Row],[2024-25]] -> 0 | G83: =Consolidated_Input[[#This Row],[2025-26]] -> 4.6809 | H83: =Consolidated_Input[[#This Row],[2026-27]] -> 13.33638 | I83: =Consolidated_Input[[#This Row],[2027-28]] -> 13.74407 | J83: =Consolidated_Input[[#This Row],[2028-29]] -> 5.53376 | K83: =Consolidated_Input[[#This Row],[2029-30]] -> 1.38085 | L83: =SUM(Final_Input[[#This Row],[2023-24]:[2029-30]]) -> 38.67596 | M83: Line Amount Requested (£m)
A84: PRT | B84: ='F_Inputs BP'!B87 -> CW3_102TOT_PR24 | C84: Water quality improvements - Addressing raw water quality deterioration (green solutions); enhancement totex - Total | D84: £m | E84: =Consolidated_Input[[#This Row],[2023-24]] -> 0 | F84: =Consolidated_Input[[#This Row],[2024-25]] -> 0 | G84: =Consolidated_Input[[#This Row],[2025-26]] -> 0 | H84: =Consolidated_Input[[#This Row],[2026-27]] -> 0 | I84: =Consolidated_Input[[#This Row],[2027-28]] -> 0 | J84: =Consolidated_Input[[#This Row],[2028-29]] -> 0 | K84: =Consolidated_Input[[#This Row],[2029-30]] -> 0 | L84: =SUM(Final_Input[[#This Row],[2023-24]:[2029-30]]) -> 0
A85: PRT | B85: ='F_Inputs BP'!B88 -> CW12_096TOT_PR24 | C85: Water quality improvements - Addressing raw water quality deterioration (grey solutions); ; enhancement totex - Total | D85: £m | E85: =Consolidated_Input[[#This Row],[2023-24]] -> 0 | F85: =Consolidated_Input[[#This Row],[2024-25]] -> 0.6 | G85: =Consolidated_Input[[#This Row],[2025-26]] -> 0 | H85: =Consolidated_Input[[#This Row],[2026-27]] -> 0 | I85: =Consolidated_Input[[#This Row],[2027-28]] -> 0 | J85: =Consolidated_Input[[#This Row],[2028-29]] -> 0 | K85: =Consolidated_Input[[#This Row],[2029-30]] -> 0 | L85: =SUM(Final_Input[[#This Row],[2023-24]:[2029-30]]) -> 0.6 | M85: Line Amount Requested (£m)
A86: PRT | B86: ='F_Inputs BP'!B89 -> CW12_099TOT_PR24 | C86: Water quality improvements - Addressing raw water quality deterioration (green solutions); enhancement totex - Total | D86: £m | E86: =Consolidated_Input[[#This Row],[2023-24]] -> 0 | F86: =Consolidated_Input[[#This Row],[2024-25]] -> 0 | G86: =Consolidated_Input[[#This Row],[2025-26]] -> 0 | H86: =Consolidated_Input[[#This Row],[2026-27]] -> 0 | I86: =Consolidated_Input[[#This Row],[2027-28]] -> 0 | J86: =Consolidated_Input[[#This Row],[2028-29]] -> 0 | K86: =Consolidated_Input[[#This Row],[2029-30]] -> 0 | L86: =SUM(Final_Input[[#This Row],[2023-24]:[2029-30]]) -> 0
A87: PRT | B87: ='F_Inputs BP'!B90 -> CW17_096TOT_PR24 | C87: Water quality improvements - Addressing raw water quality deterioration (grey solutions); ; enhancement totex - Total | D87: £m | E87: =Consolidated_Input[[#This Row],[2023-24]] -> 0 | F87: =Consolidated_Input[[#This Row],[2024-25]] -> 0 | G87: =Consolidated_Input[[#This Row],[2025-26]] -> 0 | H87: =Consolidated_Input[[#This Row],[2026-27]] -> 0 | I87: =Consolidated_Input[[#This Row],[2027-28]] -> 0 | J87: =Consolidated_Input[[#This Row],[2028-29]] -> 0 | K87: =Consolidated_Input[[#This Row],[2029-30]] -> 0 | L87: =SUM(Final_Input[[#This Row],[2023-24]:[2029-30]]) -> 0
A88: PRT | B88: ='F_Inputs BP'!B91 -> CW17_099TOT_PR24 | C88: Water quality improvements - Addressing raw water quality deterioration (green solutions); enhancement totex - Total | D88: £m | E88: =Consolidated_Input[[#This Row],[2023-24]] -> 0 | F88: =Consolidated_Input[[#This Row],[2024-25]] -> 0 | G88: =Consolidated_Input[[#This Row],[2025-26]] -> 0 | H88: =Consolidated_Input[[#This Row],[2026-27]] -> 0 | I88: =Consolidated_Input[[#This Row],[2027-28]] -> 0 | J88: =Consolidated_Input[[#This Row],[2028-29]] -> 0 | K88: =Consolidated_Input[[#This Row],[2029-30]] -> 0 | L88: =SUM(Final_Input[[#This Row],[2023-24]:[2029-30]]) -> 0
A89: SEW | B89: ='F_Inputs BP'!B92 -> CW3_099TOT_PR24 | C89: Water quality improvements - Addressing raw water quality deterioration (grey solutions); ; enhancement totex - Total | D89: £m | E89: =Consolidated_Input[[#This Row],[2023-24]] -> 0 | F89: =Consolidated_Input[[#This Row],[2024-25]] -> 0 | G89: =Consolidated_Input[[#This Row],[2025-26]] -> 12.84411369 | H89: =Consolidated_Input[[#This Row],[2026-27]] -> 14.84389449 | I89: =Consolidated_Input[[#This Row],[2027-28]] -> 6.547955022 | J89: =Consolidated_Input[[#This Row],[2028-29]] -> 2.665784437 | K89: =Consolidated_Input[[#This Row],[2029-30]] -> 1.670384437 | L89: =SUM(Final_Input[[#This Row],[2023-24]:[2029-30]]) -> 38.57213208 | M89: Line Amount Requested (£m)
A90: SEW | B90: ='F_Inputs BP'!B93 -> CW3_102TOT_PR24 | C90: Water quality improvements - Addressing raw water quality deterioration (green solutions); enhancement totex - Total | D90: £m | E90: =Consolidated_Input[[#This Row],[2023-24]] -> 0 | F90: =Consolidated_Input[[#This Row],[2024-25]] -> 0 | G90: =Consolidated_Input[[#This Row],[2025-26]] -> 10.95390276 | H90: =Consolidated_Input[[#This Row],[2026-27]] -> 4.132173162 | I90: =Consolidated_Input[[#This Row],[2027-28]] -> 3.007576793 | J90: =Consolidated_Input[[#This Row],[2028-29]] -> 3.321392393 | K90: =Consolidated_Input[[#This Row],[2029-30]] -> 3.218605915 | L90: =SUM(Final_Input[[#This Row],[2023-24]:[2029-30]]) -> 24.63365102 | M90: Line Amount Requested (£m)
A91: SEW | B91: ='F_Inputs BP'!B94 -> CW12_096TOT_PR24 | C91: Water quality improvements - Addressing raw water quality deterioration (grey solutions); ; enhancement totex - Total | D91: £m | E91: =Consolidated_Input[[#This Row],[2023-24]] -> 0.019476 | F91: =Consolidated_Input[[#This Row],[2024-25]] -> 0.851221468 | G91: =Consolidated_Input[[#This Row],[2025-26]] -> 0 | H91: =Consolidated_Input[[#This Row],[2026-27]] -> 0 | I91: =Consolidated_Input[[#This Row],[2027-28]] -> 0 | J91: =Consolidated_Input[[#This Row],[2028-29]] -> 0 | K91: =Consolidated_Input[[#This Row],[2029-30]] -> 0 | L91: =SUM(Final_Input[[#This Row],[2023-24]:[2029-30]]) -> 0.870697468 | M91: Line Amount Requested (£m)
A92: SEW | B92: ='F_Inputs BP'!B95 -> CW12_099TOT_PR24 | C92: Water quality improvements - Addressing raw water quality deterioration (green solutions); enhancement totex - Total | D92: £m | E92: =Consolidated_Input[[#This Row],[2023-24]] -> 0 | F92: =Consolidated_Input[[#This Row],[2024-25]] -> 0 | G92: =Consolidated_Input[[#This Row],[2025-26]] -> 0 | H92: =Consolidated_Input[[#This Row],[2026-27]] -> 0 | I92: =Consolidated_Input[[#This Row],[2027-28]] -> 0 | J92: =Consolidated_Input[[#This Row],[2028-29]] -> 0 | K92: =Consolidated_Input[[#This Row],[2029-30]] -> 0 | L92: =SUM(Final_Input[[#This Row],[2023-24]:[2029-30]]) -> 0
A93: SEW | B93: ='F_Inputs BP'!B96 -> CW17_096TOT_PR24 | C93: Water quality improvements - Addressing raw water quality deterioration (grey solutions); ; enhancement totex - Total | D93: £m | E93: =Consolidated_Input[[#This Row],[2023-24]] -> 0 | F93: =Consolidated_Input[[#This Row],[2024-25]] -> 0 | G93: =Consolidated_Input[[#This Row],[2025-26]] -> 0 | H93: =Consolidated_Input[[#This Row],[2026-27]] -> 0 | I93: =Consolidated_Input[[#This Row],[2027-28]] -> 0 | J93: =Consolidated_Input[[#This Row],[2028-29]] -> 0 | K93: =Consolidated_Input[[#This Row],[2029-30]] -> 0 | L93: =SUM(Final_Input[[#This Row],[2023-24]:[2029-30]]) -> 0
A94: SEW | B94: ='F_Inputs BP'!B97 -> CW17_099TOT_PR24 | C94: Water quality improvements - Addressing raw water quality deterioration (green solutions); enhancement totex - Total | D94: £m | E94: =Consolidated_Input[[#This Row],[2023-24]] -> 0 | F94: =Consolidated_Input[[#This Row],[2024-25]] -> 0 | G94: =Consolidated_Input[[#This Row],[2025-26]] -> 0 | H94: =Consolidated_Input[[#This Row],[2026-27]] -> 0 | I94: =Consolidated_Input[[#This Row],[2027-28]] -> 0 | J94: =Consolidated_Input[[#This Row],[2028-29]] -> 0 | K94: =Consolidated_Input[[#This Row],[2029-30]] -> 0 | L94: =SUM(Final_Input[[#This Row],[2023-24]:[2029-30]]) -> 0
A95: SSC | B95: ='F_Inputs BP'!B98 -> CW3_099TOT_PR24 | C95: Water quality improvements - Addressing raw water quality deterioration (grey solutions); ; enhancement totex - Total | D95: £m | E95: =Consolidated_Input[[#This Row],[2023-24]] -> 0 | F95: =Consolidated_Input[[#This Row],[2024-25]] -> 0 | G95: =Consolidated_Input[[#This Row],[2025-26]] -> 4.52502054 | H95: =Consolidated_Input[[#This Row],[2026-27]] -> 10.87583925 | I95: =Consolidated_Input[[#This Row],[2027-28]] -> 5.58231458 | J95: =Consolidated_Input[[#This Row],[2028-29]] -> 2.91113045 | K95: =Consolidated_Input[[#This Row],[2029-30]] -> 2.47457139 | L95: =SUM(Final_Input[[#This Row],[2023-24]:[2029-30]]) -> 26.36887621 | M95: Line Amount Requested (£m)
A96: SSC | B96: ='F_Inputs BP'!B99 -> CW3_102TOT_PR24 | C96: Water quality improvements - Addressing raw water quality deterioration (green solutions); enhancement totex - Total | D96: £m | E96: =Consolidated_Input[[#This Row],[2023-24]] -> 0 | F96: =Consolidated_Input[[#This Row],[2024-25]] -> 0 | G96: =Consolidated_Input[[#This Row],[2025-26]] -> 0 | H96: =Consolidated_Input[[#This Row],[2026-27]] -> 0 | I96: =Consolidated_Input[[#This Row],[2027-28]] -> 0 | J96: =Consolidated_Input[[#This Row],[2028-29]] -> 0 | K96: =Consolidated_Input[[#This Row],[2029-30]] -> 0 | L96: =SUM(Final_Input[[#This Row],[2023-24]:[2029-30]]) -> 0
A97: SSC | B97: ='F_Inputs BP'!B100 -> CW12_096TOT_PR24 | C97: Water quality improvements - Addressing raw water quality deterioration (grey solutions); ; enhancement totex - Total | D97: £m | E97: =Consolidated_Input[[#This Row],[2023-24]] -> 0 | F97: =Consolidated_Input[[#This Row],[2024-25]] -> 0 | G97: =Consolidated_Input[[#This Row],[2025-26]] -> 0 | H97: =Consolidated_Input[[#This Row],[2026-27]] -> 0 | I97: =Consolidated_Input[[#This Row],[2027-28]] -> 0 | J97: =Consolidated_Input[[#This Row],[2028-29]] -> 0 | K97: =Consolidated_Input[[#This Row],[2029-30]] -> 0 | L97: =SUM(Final_Input[[#This Row],[2023-24]:[2029-30]]) -> 0
A98: SSC | B98: ='F_Inputs BP'!B101 -> CW12_099TOT_PR24 | C98: Water quality improvements - Addressing raw water quality deterioration (green solutions); enhancement totex - Total | D98: £m | E98: =Consolidated_Input[[#This Row],[2023-24]] -> 0 | F98: =Consolidated_Input[[#This Row],[2024-25]] -> 0 | G98: =Consolidated_Input[[#This Row],[2025-26]] -> 0 | H98: =Consolidated_Input[[#This Row],[2026-27]] -> 0 | I98: =Consolidated_Input[[#This Row],[2027-28]] -> 0 | J98: =Consolidated_Input[[#This Row],[2028-29]] -> 0 | K98: =Consolidated_Input[[#This Row],[2029-30]] -> 0 | L98: =SUM(Final_Input[[#This Row],[2023-24]:[2029-30]]) -> 0
A99: SSC | B99: ='F_Inputs BP'!B102 -> CW17_096TOT_PR24 | C99: Water quality improvements - Addressing raw water quality deterioration (grey solutions); ; enhancement totex - Total | D99: £m | E99: =Consolidated_Input[[#This Row],[2023-24]] -> 0 | F99: =Consolidated_Input[[#This Row],[2024-25]] -> 0 | G99: =Consolidated_Input[[#This Row],[2025-26]] -> 0 | H99: =Consolidated_Input[[#This Row],[2026-27]] -> 0 | I99: =Consolidated_Input[[#This Row],[2027-28]] -> 0 | J99: =Consolidated_Input[[#This Row],[2028-29]] -> 0 | K99: =Consolidated_Input[[#This Row],[2029-30]] -> 0 | L99: =SUM(Final_Input[[#This Row],[2023-24]:[2029-30]]) -> 0
A100: SSC | B100: ='F_Inputs BP'!B103 -> CW17_099TOT_PR24 | C100: Water quality improvements - Addressing raw water quality deterioration (green solutions); enhancement totex - Total | D100: £m | E100: =Consolidated_Input[[#This Row],[2023-24]] -> 0 | F100: =Consolidated_Input[[#This Row],[2024-25]] -> 0 | G100: =Consolidated_Input[[#This Row],[2025-26]] -> 0 | H100: =Consolidated_Input[[#This Row],[2026-27]] -> 0 | I100: =Consolidated_Input[[#This Row],[2027-28]] -> 0 | J100: =Consolidated_Input[[#This Row],[2028-29]] -> 0 | K100: =Consolidated_Input[[#This Row],[2029-30]] -> 0 | L100: =SUM(Final_Input[[#This Row],[2023-24]:[2029-30]]) -> 0
A101: SES | B101: ='F_Inputs BP'!B104 -> CW3_099TOT_PR24 | C101: Water quality improvements - Addressing raw water quality deterioration (grey solutions); ; enhancement totex - Total | D101: £m | E101: =Consolidated_Input[[#This Row],[2023-24]] -> 0 | F101: =Consolidated_Input[[#This Row],[2024-25]] -> 0 | G101: =Consolidated_Input[[#This Row],[2025-26]] -> 0 | H101: =Consolidated_Input[[#This Row],[2026-27]] -> 2.535 | I101: =Consolidated_Input[[#This Row],[2027-28]] -> 2.535 | J101: =Consolidated_Input[[#This Row],[2028-29]] -> 0.07 | K101: =Consolidated_Input[[#This Row],[2029-30]] -> 0.07 | L101: =SUM(Final_Input[[#This Row],[2023-24]:[2029-30]]) -> 5.21 | M101: =IF(L101>0,"Line Amount Requested (£m)","") -> Line Amount Requested (£m)
A102: SES | B102: ='F_Inputs BP'!B105 -> CW3_102TOT_PR24 | C102: Water quality improvements - Addressing raw water quality deterioration (green solutions); enhancement totex - Total | D102: £m | E102: =Consolidated_Input[[#This Row],[2023-24]] -> 0 | F102: =Consolidated_Input[[#This Row],[2024-25]] -> 0 | G102: =Consolidated_Input[[#This Row],[2025-26]] -> 0 | H102: =Consolidated_Input[[#This Row],[2026-27]] -> 0 | I102: =Consolidated_Input[[#This Row],[2027-28]] -> 0 | J102: =Consolidated_Input[[#This Row],[2028-29]] -> 0 | K102: =Consolidated_Input[[#This Row],[2029-30]] -> 0 | L102: =SUM(Final_Input[[#This Row],[2023-24]:[2029-30]]) -> 0
A103: SES | B103: ='F_Inputs BP'!B106 -> CW12_096TOT_PR24 | C103: Water quality improvements - Addressing raw water quality deterioration (grey solutions); ; enhancement totex - Total | D103: £m | E103: =Consolidated_Input[[#This Row],[2023-24]] -> 0 | F103: =Consolidated_Input[[#This Row],[2024-25]] -> 0 | G103: =Consolidated_Input[[#This Row],[2025-26]] -> 0 | H103: =Consolidated_Input[[#This Row],[2026-27]] -> 0 | I103: =Consolidated_Input[[#This Row],[2027-28]] -> 0 | J103: =Consolidated_Input[[#This Row],[2028-29]] -> 0 | K103: =Consolidated_Input[[#This Row],[2029-30]] -> 0 | L103: =SUM(Final_Input[[#This Row],[2023-24]:[2029-30]]) -> 0
A104: SES | B104: ='F_Inputs BP'!B107 -> CW12_099TOT_PR24 | C104: Water quality improvements - Addressing raw water quality deterioration (green solutions); enhancement totex - Total | D104: £m | E104: =Consolidated_Input[[#This Row],[2023-24]] -> 0 | F104: =Consolidated_Input[[#This Row],[2024-25]] -> 0 | G104: =Consolidated_Input[[#This Row],[2025-26]] -> 0 | H104: =Consolidated_Input[[#This Row],[2026-27]] -> 0 | I104: =Consolidated_Input[[#This Row],[2027-28]] -> 0 | J104: =Consolidated_Input[[#This Row],[2028-29]] -> 0 | K104: =Consolidated_Input[[#This Row],[2029-30]] -> 0 | L104: =SUM(Final_Input[[#This Row],[2023-24]:[2029-30]]) -> 0
A105: SES | B105: ='F_Inputs BP'!B108 -> CW17_096TOT_PR24 | C105: Water quality improvements - Addressing raw water quality deterioration (grey solutions); ; enhancement totex - Total | D105: £m | E105: =Consolidated_Input[[#This Row],[2023-24]] -> 0 | F105: =Consolidated_Input[[#This Row],[2024-25]] -> 0 | G105: =Consolidated_Input[[#This Row],[2025-26]] -> 0 | H105: =Consolidated_Input[[#This Row],[2026-27]] -> 0 | I105: =Consolidated_Input[[#This Row],[2027-28]] -> 0 | J105: =Consolidated_Input[[#This Row],[2028-29]] -> 0 | K105: =Consolidated_Input[[#This Row],[2029-30]] -> 0 | L105: =SUM(Final_Input[[#This Row],[2023-24]:[2029-30]]) -> 0
A106: SES | B106: ='F_Inputs BP'!B109 -> CW17_099TOT_PR24 | C106: Water quality improvements - Addressing raw water quality deterioration (green solutions); enhancement totex - Total | D106: £m | E106: =Consolidated_Input[[#This Row],[2023-24]] -> 0 | F106: =Consolidated_Input[[#This Row],[2024-25]] -> 0 | G106: =Consolidated_Input[[#This Row],[2025-26]] -> 0 | H106: =Consolidated_Input[[#This Row],[2026-27]] -> 0 | I106: =Consolidated_Input[[#This Row],[2027-28]] -> 0 | J106: =Consolidated_Input[[#This Row],[2028-29]] -> 0 | K106: =Consolidated_Input[[#This Row],[2029-30]] -> 0 | L106: =SUM(Final_Input[[#This Row],[2023-24]:[2029-30]]) -> 0

Sheet Analysis >>

Sheet Representation Overview
A1: Representation Overview
B3: Company | C3: Scheme Name | D3: DWI Notice Reference | E3: DD Requested Totex, £m | F3: Type | G3: Model Driver | H3: DD Allowance (£m) | I3: % Difference in £ | J3: Deep Dive Name | K3: Pre-Existing or New (DD or FD)? | L3: Additional Evidence? Y/N | M3: Assessed TOTEX (£m) | N3: TOTEX Difference (£m) | O3: New Challenge (%) | P3: FD Allowance (£m) | Q3: Challenge Justification | R3: Additional Notes
B4: AFW | C4: Iver | D4: AFW-2020-00005 | E4: 46.19 | F4: Deep Dive | G4: UV | H4: 27.714 | I4: 0.4 | J4: AFW (UV) | K4: Pre-Existing | L4: Y | M4: 46.47 | N4: =IFERROR(IF(M4="","",M4-E4),M4) -> 0.28 | O4: 0 | P4: =IFERROR(IF(O4="","",M4*(1-O4)),"") -> 46.47 | Q4: N/A
B5: AFW | C5: Egham | D5: AFW-2020-00006 | E5: 15.093 | F5: Deep Dive | G5: UV | H5: 9.0558 | I5: 0.4 | J5: AFW (UV) | K5: Pre-Existing | L5: Y | M5: 15.19 | N5: 0.097 | O5: 0 | P5: 15.19 | Q5: N/A
B6: AFW | C6: Blackford (GAC) | D6: AFW-2023-00010 | E6: 10.78 | F6: Deep Dive | G6: PFAS | H6: 8.624 | I6: 0.2 | J6: AFW (PFAS) | K6: Pre-Existing | L6: Y | M6: 10.86 | N6: 0.08 | O6: 0 | P6: 10.86 | Q6: Full cost allowed as PFAS related enhancement
B7: AFW | C7: Blackford (IEX) | D7: AFW-2023-00010 | E7: N/A | F7: Deep Dive | G7: PFAS | H7: N/A | I7: N/A | J7: AFW (PFAS) | K7: New | L7: N/A | M7: 16.599 | N7: 16.599 | O7: 0 | P7: 16.599 | Q7: Full cost allowed as PFAS related enhancement
B8: AFW | C8: Baldock Road/ Bowring (GAC) | D8: AFW-2023-00008 | E8: 6.916 | F8: Shallow Dive | G8: PFAS | H8: 6.5702 | I8: 0.05 | J8: Materiality & shallow dive | K8: Pre-Existing | L8: Y | M8: 6.62 | N8: -0.296 | O8: 0 | P8: =IFERROR(IF(O8="","",M8*(1-O8)),"") -> 6.62 | Q8: Full cost allowed as PFAS related enhancement | R8: DWI notice reference as Bowring WTW PFOS
B9: AFW | C9: Baldock Road/ Bowring (IEX) | D9: AFW-2023-00008 | E9: N/A | F9: Deep Dive | G9: PFAS | H9: N/A | I9: N/A | J9: AFW (PFAS) | K9: New | L9: N/A | M9: 10.652 | N9: 10.652 | O9: 0 | P9: 10.652 | Q9: Full cost allowed as PFAS related enhancement
B10: AFW | C10: Kingsdown Nitrate | D10: AFW-2023-00002 | E10: 4.476 | F10: Modelled | G10: NO3 | H10: 6.396292 | I10: -0.4290196604 | J10: Nitrate Modelling Cost | K10: Pre-Existing | L10: N | M10: 6.42 | N10: 1.944 | O10: N/A | P10: 6.456788 | Q10: N/A | R10: Accelerated scheme. Accepts DD decision
B11: AFW | C11: Broome Nitrate | D11: AFW-2023-00001 | E11: 5.376 | F11: Modelled | G11: NO3 | H11: 6.333238 | I11: -0.1780576637 | J11: Nitrate Modelling Cost | K11: Pre-Existing | L11: N | M11: 6.4 | N11: 1.024 | O11: N/A | P11: 6.401732 | Q11: N/A | R11: Accelerated scheme. Accepts DD decision
B12: AFW | C12: Hollywell (GAC Media) | D12: AFW-2023-00003 | E12: 1.294 | F12: Shallow Dive | G12: PFAS | H12: 1.2293 | I12: 0.05 | J12: Materiality & shallow dive | K12: Pre-Existing | L12: Y | M12: 1.23 | N12: -0.064 | O12: 0 | P12: =IFERROR(IF(O12="","",M12*(1-O12)),"") -> 1.23 | Q12: Full cost allowed as PFAS related enhancement | R12: Accelerated scheme
B13: AFW | C13: Holywell (IEX) | D13: AFW-2023-00003 | E13: N/A | F13: Deep Dive | G13: PFAS | H13: N/A | I13: N/A | J13: AFW (PFAS) | K13: New | L13: N/A | M13: 18.187 | N13: 18.187 | O13: 0 | P13: =IFERROR(IF(O13="","",M13*(1-O13)),"") -> 18.187 | Q13: Full cost allowed as PFAS related enhancement
B14: AFW | C14: Ardleigh WTW | D14: AFW-2023-00011 | E14: 0.647 | F14: Shallow Dive | G14: PFAS | H14: 0.61465 | I14: 0.05 | J14: Materiality & shallow dive | K14: Pre-Existing | L14: N | M14: 0.61465 | N14: -0.03235 | O14: N/A | P14: 0.61465 | Q14: Full cost allowed as PFAS related enhancement | R14: PFOS. Accepts DD decision.
B15: AFW | C15: Wheathampstead (Monitoring) | D15: AFW-2023-00009 | E15: 0.488 | F15: Shallow Dive | G15: PFAS | H15: 0.4636 | I15: 0.05 | J15: Materiality & shallow dive | K15: Pre-Existing | L15: Y | M15: 0.45 | N15: -0.038 | O15: N/A | P15: 0.45 | Q15: Full cost allowed as PFAS related enhancement | R15: PFOS
B16: AFW | C16: Stortford | D16: AFW-2023-00004 | E16: 1.974 | F16: Shallow Dive | G16: Resilience | H16: 1.8753 | I16: 0.05 | J16: Materiality & shallow dive | K16: Pre-Existing | L16: N | M16: 1.8753 | N16: -0.0987 | O16: =INDEX('F_Inputs SDEff'!$K$8:$K$24,MATCH(B16,'F_Inputs SDEff'!$A$8:$A$24,FALSE)) -> 0.03 | P16: =IFERROR(IF(O16="","",M16*(1-O16)),"") -> 1.819041 | Q16: N/A | R16: Accelerated scheme. Accepts DD decision
B17: AFW | C17: AFW PFAS GAC Filter (11) | D17: AFW-2023-00013 | E17: N/A | F17: Deep Dive | G17: PFAS | H17: N/A | I17: N/A | J17: AFW (PFAS) | K17: New | L17: N/A | M17: 78.925 | N17: 78.925 | O17: 0.94404 | P17: 4.416643 | Q17: Scheme has been partially deferred to the PFAS Reopener
B18: AFW | C18: AFW PFAS GAC Media (9) | D18: AFW-2023-00013 | E18: N/A | F18: Deep Dive | G18: PFAS | H18: N/A | I18: N/A | J18: AFW (PFAS) | K18: New | L18: N/A | M18: 21.015 | N18: 21.015 | O18: 1 | P18: 0 | Q18: Scheme has been deferred to the PFAS Reopener
B19: AFW | C19: AFW PFAS Strategy | D19: AFW-2023-00013 | E19: N/A | F19: Deep Dive | G19: PFAS | H19: N/A | I19: N/A | J19: AFW (PFAS) | K19: New | L19: N/A | M19: 3.74 | N19: 3.74 | O19: 0 | P19: 3.74 | Q19: Full cost allowed as PFAS related enhancement | R19: Includes catchment management, investigation, analysis and R&D
B20: ANH | C20: PFAS Virgin GAC Replacement - Multiple Sites PFAS | D20: ANH-2023-00017 | E20: 41.678 | F20: Deep Dive | G20: PFAS | H20: 29.1746 | I20: 0.3 | J20: ANH (PFAS) | K20: Pre-Existing | L20: Y | M20: 39.85 | N20: -1.828 | O20: 0 | P20: 39.85 | Q20: Full cost allowed as PFAS related enhancement
B21: ANH | C21: Two Mile Bottom Nitrate | D21: ANH-2023-00015 | E21: 16.39 | F21: Deep Dive | G21: NO3 | H21: 13.112 | I21: 0.2 | J21: ANH (NO3) | K21: Pre-Existing | L21: Y | M21: 16.39 | N21: 0 | O21: 0.1 | P21: 14.751 | Q21: Cost Efficiency: benchmarking, third party assurance, detailed build up of costs
B22: ANH | C22: Marham WTW Nitrate | D22: ANH-2023-00008 | E22: 14.6 | F22: Deep Dive | G22: NO3 | H22: 11.68 | I22: 0.2 | J22: ANH (NO3) | K22: Pre-Existing | L22: Y | M22: 14.6 | N22: 0 | O22: 0.1 | P22: 13.14 | Q22: Cost Efficiency: benchmarking, third party assurance, detailed build up of costs
B23: ANH | C23: Ulceby PFAS | D23: ANH-2023-00018 | E23: 14.1733 | F23: Deep Dive | G23: PFAS | H23: 9.92131 | I23: 0.3 | J23: ANH (PFAS) | K23: Pre-Existing | L23: Y | M23: 14.1733 | N23: 0 | O23: 0 | P23: 14.1733 | Q23: Full cost allowed as PFAS related enhancement
B24: ANH | C24: Parsonage Street PFAS | D24: ANH-2023-00019 | E24: 12.1417 | F24: Deep Dive | G24: PFAS | H24: 8.49919 | I24: 0.3 | J24: ANH (PFAS) | K24: Pre-Existing | L24: Y | M24: 12.1417 | N24: 0 | O24: 0 | P24: 12.1417 | Q24: Full cost allowed as PFAS related enhancement
B25: ANH | C25: Clay Hill WTW Nitrate | D25: ANH-2023-00016 | E25: 8.14 | F25: Modelled | G25: NO3 | H25: 7.553638 | I25: 0.07203464373 | J25: Nitrate Modelling Cost | K25: Pre-Existing | L25: N/A | M25: 8.14 | N25: 0 | O25: N/A | P25: 7.467332 | Q25: N/A | R25: Dismiss unit cost model in Representation
B26: ANH | C26: Risby WTW Nitrate | D26: ANH-2023-00012 | E26: 7.89 | F26: Modelled | G26: NO3 | H26: 6.650542 | I26: 0.1570922687 | J26: Nitrate Modelling Cost | K26: Pre-Existing | L26: N/A | M26: 7.89 | N26: 0 | O26: N/A | P26: 6.678788 | Q26: N/A | R26: Dismiss unit cost model in Representation
B27: ANH | C27: North Pickenham WTW Nitrate | D27: ANH-2023-00009 | E27: 7.83 | F27: Modelled | G27: NO3 | H27: 6.943438 | I27: 0.1132263091 | J27: Nitrate Modelling Cost | K27: Pre-Existing | L27: N/A | M27: 7.83 | N27: 0 | O27: N/A | P27: 6.934532 | Q27: N/A | R27: Dismiss unit cost model in Representation
B28: ANH | C28: Beachamwell WTW (Ryston) Nitrate | D28: ANH-2023-00013 | E28: 7.82 | F28: Modelled | G28: NO3 | H28: 7.710256 | I28: 0.01403375959 | J28: Nitrate Modelling Cost | K28: Pre-Existing | L28: N/A | M28: 7.82 | N28: 0 | O28: N/A | P28: 7.604084 | Q28: N/A | R28: Dismiss unit cost model in Representation
B29: ANH | C29: Congham WTW Nitrate | D29: ANH-2023-00005 | E29: 7.78 | F29: Modelled | G29: NO3 | H29: 6.591556 | I29: 0.1527562982 | J29: Nitrate Modelling Cost | K29: Pre-Existing | L29: N/A | M29: 7.78 | N29: 0 | O29: N/A | P29: 6.627284 | Q29: N/A | R29: Dismiss unit cost model in Representation
B30: ANH | C30: Twelve Acre Wood Nitrate | D30: ANH-2023-00014 | E30: 7.67 | F30: Modelled | G30: NO3 | H30: 7.512958 | I30: 0.02047483703 | J30: Nitrate Modelling Cost | K30: Pre-Existing | L30: N/A | M30: 7.67 | N30: 0 | O30: N/A | P30: 7.431812 | Q30: N/A | R30: Dismiss unit cost model in Representation
B31: ANH | C31: Houghton St Giles WTW Nitrate | D31: ANH-2023-00006 | E31: 7.47 | F31: Modelled | G31: NO3 | H31: 6.668848 | I31: 0.1072492637 | J31: Nitrate Modelling Cost | K31: Pre-Existing | L31: N/A | M31: 7.47 | N31: 0 | O31: N/A | P31: 6.694772 | Q31: N/A | R31: Dismiss unit cost model in Representation
B32: ANH | C32: Nunnery Lodge / Barnham Cross Nitrate | D32: ANH-2023-00010 | E32: 7.13 | F32: Modelled | G32: NO3 | H32: 7.075648 | I32: 0.007623001403 | J32: Nitrate Modelling Cost | K32: Pre-Existing | L32: N/A | M32: 7.13 | N32: 0 | O32: N/A | P32: 7.049972 | Q32: N/A | R32: Dismiss unit cost model in Representation
B33: ANH | C33: Ringstead Nitrate | D33: ANH-2023-00011 | E33: 6.55 | F33: Modelled | G33: NO3 | H33: 6.255946 | I33: 0.04489374046 | J33: Nitrate Modelling Cost | K33: Pre-Existing | L33: N/A | M33: 6.55 | N33: 0 | O33: N/A | P33: 6.334244 | Q33: N/A | R33: Dismiss unit cost model in Representation
B34: ANH | C34: Lyng Forge WTW Nitrate | D34: ANH-2023-00007 | E34: 5.5 | F34: Modelled | G34: NO3 | H34: 6.361714 | I34: -0.1566752727 | J34: Nitrate Modelling Cost | K34: Pre-Existing | L34: N/A | M34: 5.5 | N34: 0 | O34: N/A | P34: 6.426596 | Q34: N/A | R34: Dismiss unit cost model in Representation
B35: ANH | C35: Beck Row WTW PFAS | D35: ANH-2023-00017 | E35: 5.2 | F35: Shallow Dive | G35: PFAS | H35: 4.784 | I35: 0.08 | J35: Materiality & shallow dive | K35: Pre-existing | L35: N/A | M35: 5.2 | N35: 0 | P35: =M35 -> 5.2 | Q35: Correction: PFAS related scheme so full cost is allowed. | R35: PFAS Beckrow (ANH18) DWI to advise
B36: ANH | C36: PFAS Strategy | D36: ANH-2023-00022 | E36: 3.768 | F36: Shallow Dive | G36: PFAS | H36: 3.46656 | I36: 0.08 | J36: Materiality & shallow dive | K36: Pre-Existing | L36: N/A | M36: 3.768 | N36: =IFERROR(IF(M36="","",M36-E36),M36) -> 0 | P36: =M36 -> 3.768 | Q36: Correction: PFAS related scheme so full cost is allowed. | R36: PFAS strategy
B37: ANH | C37: Barrow WTW (GAC) | D37: ANH-2024-00002 | E37: N/A | F37: Deep Dive | G37: PFAS | H37: N/A | I37: N/A | J37: ANH (PFAS) | K37: New | L37: N/A | M37: =27.867+0.82 -> 28.687 | N37: 28.687 | O37: 0 | P37: =IFERROR(IF(O37="","",M37*(1-O37)),"") -> 28.687 | Q37: Full cost allowed as PFAS related enhancement | R37: £0.82m OPEX costs added post FD submission (11/03/20225). See Change Log for more information.
B38: ANH | C38: Warren Hill Reservoir/ Southfields WTW (GAC) | D38: ANH-2024-00001 | E38: N/A | F38: Deep Dive | G38: PFAS | H38: N/A | I38: N/A | J38: ANH (PFAS) | K38: New | L38: N/A | M38: =14.057+0.12 -> 14.177 | N38: 14.177 | O38: 0 | P38: 14.177 | Q38: Full cost allowed as PFAS related enhancement | R38: £0.18m OPEX costs added post FD submission (11/03/20225). See Change Log for more information.
B39: BRL | C39: Cheddar WTW | D39: BRL-2023-00007 | E39: 5.752 | F39: Deep Dive | G39: Microbiological | H39: 2.3008 | I39: 0.6 | J39: BRL (Cheddar WTW) | K39: Pre-Existing | L39: Y | M39: 5.752 | N39: 0 | O39: 0.1 | P39: 5.1768 | Q39: Cost Efficiency: benchmarking, third party assurance | R39: Cheddar
B40: BRL | C40: PFAS Research | D40: SWB-2023-00014 | E40: 1.715 | F40: Shallow Dive | G40: PFAS | H40: 1.372 | I40: 0.2 | J40: Materiality & shallow dive | K40: Pre-Existing | L40: Y | M40: 1.72 | N40: 0.005 | O40: 0 | P40: 1.72 | Q40: Full cost allowed as PFAS related enhancement | R40: PFAS strategy
B41: BRL | C41: Littleton WTW | D41: BRL-2023-00006 | E41: 50.221 | F41: Deep Dive | G41: Microbiological | H41: 18.0663 | I41: 0.640264033 | J41: BRL (Littleton WTW) | K41: Pre-Existing | L41: Y | M41: 50.221 | N41: 0 | O41: 0.55 | P41: 22.59945 | Q41: Investment Need: base/ enhancement expenditure split over AMP8/ AMP9 Cost Efficiency: benchmarking | R41: Littleton
B42: BRL | C42: Stowey WTW | D42: BRL-2023-00009 | E42: 26.51 | F42: Deep Dive | G42: Microbiological | H42: 15.906 | I42: 0.4 | J42: BRL (Stowey WTW) | K42: Pre-Existing | L42: Y | M42: 26.51 | N42: 0 | O42: 0.1 | P42: 23.859 | Q42: Best Optio: operating costs, benefits quantification, best value analysis | R42: Stowey
B43: NES | C43: Broken Scar | D43: NES-2023-00007 | E43: 4.258 | F43: Shallow Dive | G43: Geosmin | H43: 4.258 | I43: 0 | J43: Materiality & shallow dive | K43: Pre-Existing | L43: N/A | M43: 4.258 | N43: 0 | O43: =INDEX('F_Inputs SDEff'!$K$8:$K$24,MATCH(B43,'F_Inputs SDEff'!$A$8:$A$24,FALSE)) -> 0 | P43: 4.258 | Q43: N/A
B44: NES | C44: Warkworth | D44: NES-2023-00005 | E44: 3.789 | F44: Shallow Dive | G44: Geosmin | H44: 3.789 | I44: 0 | J44: Materiality & shallow dive | K44: Pre-Existing | L44: N/A | M44: 3.789 | N44: 0 | O44: =INDEX('F_Inputs SDEff'!$K$8:$K$24,MATCH(B44,'F_Inputs SDEff'!$A$8:$A$24,FALSE)) -> 0 | P44: 3.789 | Q44: N/A
B45: NWT | C45: Fishmoor | D45: UUT-2023-00008 | E45: 12.23523263 | F45: Deep Dive | G45: Ozone | H45: 8.56466284 | I45: 0.3 | J45: NWT (O3) | K45: Pre-Existing | L45: Y | M45: 12.23523263 | N45: 0 | O45: 0.1 | P45: 11.01170937 | Q45: Cost Efficiency: outturn data, external benchmarking, third-party assurance | R45: Fishmoor
B46: NWT | C46: Hurleston | D46: UUT-2023-00005 | E46: 10.04016924 | F46: Shallow Dive | G46: Geosmin, NIB | H46: 8.333340469 | I46: 0.17 | J46: Materiality & shallow dive | K46: Pre-Existing | L46: N/A | M46: 10.04016924 | N46: 0 | O46: =INDEX('F_Inputs SDEff'!$K$8:$K$24,MATCH(B46,'F_Inputs SDEff'!$A$8:$A$24,FALSE)) -> 0 | P46: 10.04016924 | Q46: N/A | R46: Hurleston
B47: NWT | C47: Lamaload | D47: UUT-2023-00009 | E47: 7.47827802 | F47: Shallow Dive | G47: Geosmin, NIB | H47: 10.15524308 | I47: -0.3579654372 | J47: Materiality & shallow dive | K47: Pre-Existing | L47: N/A | M47: 7.47827802 | N47: 0 | O47: =INDEX('F_Inputs SDEff'!$K$8:$K$24,MATCH(B47,'F_Inputs SDEff'!$A$8:$A$24,FALSE)) -> 0 | P47: 7.47827802 | Q47: N/A | R47: Lamaload
B48: NWT | C48: Ridgegate | D48: UUT-2023-00007 | E48: 7.436302308 | F48: Shallow Dive | G48: Geosmin, NIB | H48: 8.333340469 | I48: -0.1206295984 | J48: Materiality & shallow dive | K48: Pre-Existing | L48: N/A | M48: 7.436302308 | N48: 0 | O48: =INDEX('F_Inputs SDEff'!$K$8:$K$24,MATCH(B48,'F_Inputs SDEff'!$A$8:$A$24,FALSE)) -> 0 | P48: 7.436302308 | Q48: N/A | R48: Ridgegate
B49: NWT | C49: Cowpe | D49: UUT-2023-00006 | E49: 5.482944 | F49: Shallow Dive | G49: Geosmin, NIB | H49: 6.206970757 | I49: -0.1320507298 | J49: Materiality & shallow dive | K49: Pre-Existing | L49: N/A | M49: 5.482944 | N49: 0 | O49: =INDEX('F_Inputs SDEff'!$K$8:$K$24,MATCH(B49,'F_Inputs SDEff'!$A$8:$A$24,FALSE)) -> 0 | P49: 5.482944 | Q49: N/A | R49: Cowpe
B50: NWT | C50: Royal Oak WTW (PFAS) | D50: UUT-2024-00002 | E50: N/A | F50: Deep Dive | G50: PFAS | H50: N/A | I50: N/A | J50: NWT (PFAS) | K50: New | L50: N/A | M50: 27.597 | N50: 27.597 | O50: 0 | P50: 27.597 | Q50: Full cost allowed as PFAS related enhancement | R50: £27.364M (CAPEX) + 0.233M (OPEX). OPEX total is £0.465M for both PFAS schemes in BP, divided equally between each SVE PFAS Treatment scheme.
B51: NWT | C51: Wickenhall WTW (PFAS) | D51: UUT-2024-00003 | E51: N/A | F51: Deep Dive | G51: PFAS | H51: N/A | I51: N/A | J51: NWT (PFAS) | K51: New | L51: N/A | M51: 21.478 | N51: 21.478 | O51: 0 | P51: 21.478 | Q51: Full cost allowed as PFAS related enhancement | R51: £21.245M (CAPEX) + 0.233M (OPEX). OPEX total is £0.465M for both PFAS schemes in BP, divided equally between each SVE PFAS Treatment scheme.
B52: PRT | C52: Eastergate | D52: PRT-2023-00003 | E52: 15.433 | F52: Deep Dive | G52: NO3 | H52: 10.8031 | I52: 0.3 | J52: PRT (NO3) | K52: Pre-Existing | L52: Y | M52: 15.257 | N52: -0.176 | O52: 0.1 | P52: 13.7313 | Q52: Cost Efficiency: external benchmarking, third-party assurance | R52: PRT6 was Eastegate Group now Westergate Group inc Lovedean No reference to original £15.433m ask in original/ new BPs
B53: PRT | C53: West Street, Maindell, Slindon, Aldingbourne, Funtington, Walderton, Worldsend, Northbrook WTWs | D53: PRT-2023-00005 | E53: 12.95 | F53: Deep Dive | G53: UV | H53: 7.77 | I53: 0.4 | J53: PRT (UV) | K53: Pre-Existing | L53: Y | M53: 14.912 | N53: 1.962 | O53: 0 | P53: 14.912 | Q53: N/A | R53: micro and Crypto mitigation
B54: PRT | C54: Northbrook WTW | D54: PRT-2024-00001 | E54: 0 | F54: Deep Dive | G54: UV | H54: 0 | I54: N/A | J54: PRT (UV) | K54: Pre-Existing | L54: Y | M54: N/A | N54: N/A | O54: N/A | P54: N/A | Q54: N/A | R54: micro and Crypto mitigation
B55: PRT | C55: Lovedean | D55: PRT-2023-00004 | E55: 0 | F55: Deep Dive | G55: NO3 | H55: 0 | I55: N/A | J55: PRT (NO3) | K55: Pre-Existing | L55: Y | M55: 0 | N55: =IFERROR(IF(M55="","",M55-E55),M55) -> 0 | O55: 0.1 | P55: =IFERROR(IF(O55="","",M55*(1-O55)),"") -> 0 | Q55: Cost Efficiency: external benchmarking, third-party assurance | R55: Lovedean (see Eastergate)
B56: PRT | C56: Fishbourne WTW (RO) | D56: PRT-2023-00008 | E56: N/A | F56: Deep Dive | G56: PFAS | H56: N/A | I56: N/A | J56: PRT (PFAS) | K56: New | L56: N/A | M56: 8.662 | N56: 8.662 | O56: 1 | P56: =IFERROR(IF(O56="","",M56*(1-O56)),"") -> 0 | Q56: Scheme has been deferred to the PFAS Reopener
B57: PRT | C57: PRT PFAS Strategy | D57: PRT-2023-00008 | E57: N/A | F57: Deep Dive | G57: PFAS | H57: N/A | I57: N/A | J57: PRT (PFAS) | K57: New | L57: N/A | M57: 0.444 | N57: 0.444 | O57: 0 | P57: =IFERROR(IF(O57="","",M57*(1-O57)),"") -> 0.444 | Q57: Full cost allowed as PFAS related enhancement
B58: SES | C58: Kenley WTW | D58: SES-2023-00007 | E58: 2.699 | F58: Modelled | G58: UV | H58: 3.4216 | I58: -0.2677287884 | J58: UV Modelling Cost | K58: Pre-Existing | L58: N/A | M58: 2.699 | N58: 0 | O58: N/A | P58: 3.5034 | Q58: N/A | R58: Kenley
B59: SES | C59: Cheam WTW | D59: SES-2023-00006 | E59: 2.611 | F59: Modelled | G59: UV | H59: 4.8366 | I59: -0.8523937189 | J59: UV Modelling Cost | K59: Pre-Existing | L59: N/A | M59: 2.611 | N59: 0 | O59: N/A | P59: 4.9984 | Q59: N/A | R59: Cheam
B60: SEW | C60: PFAS Investigation | D60: SEW-2023-00015 | E60: 14.384 | F60: Deep Dive | G60: PFAS | H60: 5.7536 | I60: 0.6 | J60: SEW (PFAS) | K60: Pre-Existing | L60: Y | M60: 14.384 | N60: 0 | O60: 0 | P60: =IFERROR(IF(O60="","",M60*(1-O60)),"") -> 14.384 | Q60: Full cost allowed as PFAS related enhancement | R60: PFAS strategy
B61: SEW | C61: West Ham WTW Nitrate | D61: SEW-2023-00013 | E61: 7.607 | F61: Modelled | G61: NO3 | H61: 8.21062 | I61: -0.07935059813 | J61: Nitrate Modelling Cost | K61: Pre-Existing | L61: N/A | M61: 7.61 | N61: 0.003 | O61: N/A | P61: 8.04098 | Q61: N/A | R61: Accelerated. Accepts DD decision
B62: SEW | C62: Poverty Bottom WTW Nitrate | D62: SEW-2023-00012 | E62: 6.193 | F62: Modelled | G62: NO3 | H62: 6.733936 | I62: -0.08734635879 | J62: Nitrate Modelling Cost | K62: Pre-Existing | L62: N/A | M62: 6.19 | N62: -0.003 | O62: N/A | P62: 6.751604 | Q62: N/A | R62: Accelerated
B63: SEW | C63: Boughton WTW Nitrate | D63: SEW-2023-00011 | E63: 4.977 | F63: Modelled | G63: NO3 | H63: 6.4207 | I63: -0.290074342 | J63: Nitrate Modelling Cost | K63: Pre-Existing | L63: N/A | M63: 4.98 | N63: 0.003 | O63: N/A | P63: 6.4781 | Q63: N/A | R63: Accelerated
B64: SEW | C64: Beenhams Heath WTW (PFAS) | D64: N/A | E64: N/A | F64: Deep Dive | G64: PFAS | H64: N/A | I64: N/A | J64: SEW (PFAS) | K64: New | L64: N/A | M64: 3.444 | N64: 3.444 | O64: 1 | P64: =IFERROR(IF(O64="","",M64*(1-O64)),"") -> 0 | Q64: Scheme has been deferred to the PFAS Reopener
B65: SEW | C65: Cow Wish WTW Nitrate | D65: SEW-2024-00005 | E65: N/A | F65: Modelled | G65: NO3 | H65: N/A | I65: N/A | J65: Nitrate Modelling Cost | K65: New | L65: N/A | M65: 6.78 | N65: 6.78 | O65: N/A | P65: 7.17074 | Q65: N/A | R65: SEW scheme modelled allowance is above requested amount, requested amount used (hence 0% challenge).
B66: SEW | C66: Cookham Dean WTW (NO3) | D66: SEW-2024-00004 | E66: N/A | F66: Deep Dive | G66: NO3 | H66: N/A | I66: N/A | J66: SEW (NO3) | K66: New | L66: N/A | M66: 13.55 | N66: 13.55 | O66: 0.1 | P66: =IFERROR(IF(O66="","",M66*(1-O66)),"") -> 12.195 | Q66: Cost Efficiency: high costs in comparison to modelled schemes
B67: SEW | C67: SEW NTU Scheme | D67: SEW-2023-00001 | E67: N/A | F67: Shallow Dive | G67: NTU | H67: N/A | I67: N/A | J67: Materiality & shallow dive | K67: New | L67: N/A | M67: 7.13 | N67: 7.13 | O67: =INDEX('F_Inputs SDEff'!$K$8:$K$24,MATCH(B67,'F_Inputs SDEff'!$A$8:$A$24,FALSE)) -> 0.1 | P67: =IFERROR(IF(O67="","",M67*(1-O67)),"") -> 6.417 | Q67: N/A
B68: SRN | C68: Martin Gorse | D68: SRN-2023-00010 | E68: 9.156 | F68: Deep Dive | G68: NO3 | H68: 7.3248 | I68: 0.2 | J68: SRN (NO3) | K68: Pre-Existing | L68: Y | M68: 8.6982 | N68: -0.4578 | O68: 0.1 | P68: =IFERROR(IF(O68="","",M68*(1-O68)),"") -> 7.82838 | Q68: Cost Efficiency: external benchmarking, third-party assurance | R68: Martin Gorse and Martin Mill Company states every scheme under RWD enhancement now has -5% from TOTEX request. 5% subtracted
B69: SRN | C69: Patcham Nitrate | D69: SRN-2023-00008 | E69: 7.781 | F69: Modelled | G69: NO3 | H69: 7.60042 | I69: 0.02320781391 | J69: Nitrate Modelling Cost | K69: Pre-Existing | L69: N/A | M69: 7.39195 | N69: -0.38905 | O69: N/A | P69: 7.50818 | Q69: N/A | R69: Mossy Bottom and Patcham Company states every scheme under RWD enhancement now has -5% from TOTEX request. 5% subtracted
B70: SRN | C70: Mossy Bottom Nitrate | D70: SRN-2023-00008 | E70: 6.92 | F70: Modelled | G70: NO3 | H70: 6.40036 | I70: 0.07509248555 | J70: Nitrate Modelling Cost | K70: Pre-Existing | L70: N/A | M70: 6.574 | N70: -0.346 | O70: N/A | P70: 6.46034 | Q70: N/A | R70: Mossy Bottom and Patcham Company states every scheme under RWD enhancement now has -5% from TOTEX request. 5% subtracted
B71: SRN | C71: Patching Nitrate | D71: SRN-2023-00007 | E71: 7.057 | F71: Modelled | G71: NO3 | H71: 6.70546 | I71: 0.04981436871 | J71: Nitrate Modelling Cost | K71: Pre-Existing | L71: N/A | M71: 6.70415 | N71: -0.35285 | O71: N/A | P71: 6.72674 | Q71: N/A | R71: Madehurst and Patching Company states every scheme under RWD enhancement now has -5% from TOTEX request. 5% subtracted
B72: SRN | C72: Madehurst Nitrate | D72: SRN-2023-00007 | E72: 6.955 | F72: Modelled | G72: NO3 | H72: 6.53257 | I72: 0.06073759885 | J72: Nitrate Modelling Cost | K72: Pre-Existing | L72: N/A | M72: 6.60725 | N72: -0.34775 | O72: N/A | P72: 6.57578 | Q72: N/A | R72: Madehurst and Patching Company states every scheme under RWD enhancement now has -5% from TOTEX request. 5% subtracted
B73: SRN | C73: Ringwould Nitrate | D73: SRN-2023-00010 | E73: 6.763 | F73: Modelled | G73: NO3 | H73: 6.60376 | I73: 0.02354576371 | J73: Nitrate Modelling Cost | K73: Pre-Existing | L73: N/A | M73: 6.42485 | N73: -0.33815 | O73: N/A | P73: 6.63794 | Q73: N/A | R73: Martin Gorse and Martin Mill (part of this) Company states every scheme under RWD enhancement now has -5% from TOTEX request. 5% subtracted
B74: SRN | C74: WTW2 | D74: SRN-2022-00009 | E74: 0 | F74: Modelled | G74: UV | H74: 0 | I74: N/A | J74: UV Modelling Cost | K74: Pre-Existing | L74: N/A | M74: N/A | N74: N/A | O74: N/A | P74: 0 | Q74: N/A | R74: WTW2 FEO Data used for unit cost modelling, however scheme not progressed
B75: SRN | C75: Twyford | D75: SRN-2023-00016 | E75: 4.025 | F75: Modelled | G75: UV | H75: 2.71976 | I75: 0.3242832298 | J75: UV Modelling Cost | K75: Pre-Existing | L75: N/A | M75: 3.82375 | N75: =IFERROR(IF(M75="","",M75-E75),M75) -> -0.20125 | O75: N/A | P75: 2.76188 | Q75: N/A | R75: Twyford, Burpham, Patcham Company states every scheme under RWD enhancement now has -5% from TOTEX request. 5% subtracted
B76: SRN | C76: Hardham WTW | D76: SRN-2022-00010 | E76: 0 | F76: Modelled | G76: UV | H76: 0 | I76: N/A | J76: UV Modelling Cost | K76: Pre-Existing | L76: N/A | M76: N/A | N76: N/A | O76: N/A | P76: 0 | Q76: N/A | R76: Data used for unit cost modelling, however scheme not progressed
B77: SRN | C77: Wingham | D77: SRN-2024-00017 | E77: 3.911 | F77: Modelled | G77: UV | H77: 2.73108 | I77: 0.3016926617 | J77: UV Modelling Cost | K77: Pre-Existing | L77: N/A | M77: 3.71545 | N77: =IFERROR(IF(M77="","",M77-E77),M77) -> -0.19555 | O77: N/A | P77: 2.77384 | Q77: N/A | R77: Twyford, Burpham, Patcham Company states every scheme under RWD enhancement now has -5% from TOTEX request. 5% subtracted
B78: SRN | C78: Patcham | D78: SRN-2023-00016 | E78: 3.415 | F78: Modelled | G78: UV | H78: 2.64335 | I78: 0.2259590044 | J78: UV Modelling Cost | K78: Pre-Existing | L78: N/A | M78: 3.24425 | N78: -0.17075 | O78: N/A | P78: 2.68115 | Q78: N/A | R78: Twyford, Burpham, Patcham Company states every scheme under RWD enhancement now has -5% from TOTEX request. 5% subtracted
B79: SRN | C79: Burpham | D79: SRN-2023-00016 | E79: 3.303 | F79: Modelled | G79: UV | H79: 2.48204 | I79: 0.2485498032 | J79: UV Modelling Cost | K79: Pre-Existing | L79: N/A | M79: 3.13785 | N79: -0.16515 | O79: N/A | P79: 2.51072 | Q79: N/A | R79: Twyford, Burpham, Patcham Company states every scheme under RWD enhancement now has -5% from TOTEX request. 5% subtracted
B80: SRN | C80: Northfleet | D80: SRN-2024-00017 | E80: 2.986 | F80: Modelled | G80: UV | H80: 2.36318 | I80: 0.2085800402 | J80: UV Modelling Cost | K80: Pre-Existing | L80: N/A | M80: 2.8367 | N80: -0.1493 | O80: N/A | P80: 2.38514 | Q80: N/A | R80: Company states every scheme under RWD enhancement now has -5% from TOTEX request. 5% subtracted
B81: SRN | C81: Luton | D81: SRN-2024-00017 | E81: 2.916 | F81: Modelled | G81: UV | H81: 2.47355 | I81: 0.1517318244 | J81: UV Modelling Cost | K81: Pre-Existing | L81: N/A | M81: 2.7702 | N81: -0.1458 | O81: N/A | P81: 2.50175 | Q81: N/A | R81: Company states every scheme under RWD enhancement now has -5% from TOTEX request. 5% subtracted
B82: SRN | C82: Barton Stacey | D82: SRN-2024-00017 | E82: 2.474 | F82: Modelled | G82: UV | H82: 2.19904 | I82: 0.1111398545 | J82: UV Modelling Cost | K82: Pre-Existing | L82: N/A | M82: 2.3503 | N82: -0.1237 | O82: N/A | P82: 2.21172 | Q82: N/A | R82: Company states every scheme under RWD enhancement now has -5% from TOTEX request. 5% subtracted
B83: SRN | C83: Stanhope Lodge | D83: SRN-2023-00007 | E83: 2.055 | F83: Shallow Dive | G83: UV | H83: 1.644 | I83: 0.2 | J83: Materiality & shallow dive | K83: Pre-Existing | L83: N/A | M83: 1.95225 | N83: -0.10275 | O83: =INDEX('F_Inputs SDEff'!$K$8:$K$24,MATCH(B83,'F_Inputs SDEff'!$A$8:$A$24,FALSE)) -> 0.1 | P83: =IFERROR(IF(O83="","",M83*(1-O83)),"") -> 1.757025 | Q83: Corrected. New Shallow Dive challenge for SRN applied (10%), previously using DD challenge (20%). | R83: Company states every scheme under RWD enhancement now has -5% from TOTEX request. 5% subtracted
B84: SRN | C84: PFAS Strategy | D84: SRN-2023-00011 | E84: 3.887 | F84: Deep Dive | G84: PFAS | H84: 3.1096 | I84: 0.2 | J84: SRN (PFAS) | K84: Pre-Existing | L84: Y | M84: 3.69265 | N84: -0.19435 | O84: 0 | P84: =IFERROR(IF(O84="","",M84*(1-O84)),"") -> 3.69265 | Q84: Full cost allowed as PFAS related enhancement | R84: PFAS strategy Company states every scheme under RWD enhancement now has -5% from TOTEX request. 5% subtracted
B85: SRN | C85: Calbourne | D85: SRN-2024-00017 | E85: 2.346 | F85: Modelled | G85: UV | H85: 2.19055 | I85: 0.06626172208 | J85: UV Modelling Cost | K85: Pre-Existing | L85: N/A | M85: 2.2287 | N85: -0.1173 | O85: N/A | P85: 2.20275 | Q85: N/A | R85: Company states every scheme under RWD enhancement now has -5% from TOTEX request. 5% subtracted
B86: SRN | C86: Keycol | D86: SRN-2023-00014 | E86: 1.404 | F86: Shallow Dive | G86: UV | H86: 1.1232 | I86: 0.2 | J86: Materiality & shallow dive | K86: Pre-Existing | L86: N/A | M86: 1.3338 | N86: -0.0702 | O86: =INDEX('F_Inputs SDEff'!$K$8:$K$24,MATCH(B86,'F_Inputs SDEff'!$A$8:$A$24,FALSE)) -> 0.1 | P86: =IFERROR(IF(O86="","",M86*(1-O86)),"") -> 1.20042 | Q86: Corrected. New Shallow Dive challenge for SRN applied (10%), previously using DD challenge (20%). | R86: Keycol Company states every scheme under RWD enhancement now has -5% from TOTEX request. 5% subtracted
B87: SRN | C87: Hazells | D87: SRN-2023-00009 | E87: 1.24 | F87: Shallow Dive | G87: UV | H87: 0.992 | I87: 0.2 | J87: Materiality & shallow dive | K87: Pre-Existing | L87: N/A | M87: 1.178 | N87: -0.062 | O87: =INDEX('F_Inputs SDEff'!$K$8:$K$24,MATCH(B87,'F_Inputs SDEff'!$A$8:$A$24,FALSE)) -> 0.1 | P87: =IFERROR(IF(O87="","",M87*(1-O87)),"") -> 1.0602 | Q87: Corrected. New Shallow Dive challenge for SRN applied (10%), previously using DD challenge (20%). | R87: Company states every scheme under RWD enhancement now has -5% from TOTEX request. 5% subtracted
B88: SRN | C88: Martin Mill | D88: SRN-2023-00010 | E88: 0 | F88: Shallow Dive | G88: NO3 | H88: 0 | I88: N/A | J88: Materiality & shallow dive | K88: Pre-Existing | L88: N/A | M88: N/A | N88: N/A | O88: N/A | P88: N/A | Q88: N/A | R88: Included within Martin Gorse
B89: SRN | C89: Sutton | D89: SRN-2024-00017 | E89: 3.488 | F89: Shallow Dive | G89: UV | H89: 2.7904 | I89: 0.2 | J89: Materiality & shallow dive | K89: Pre-Existing | L89: N/A | M89: 3.3136 | N89: =IFERROR(IF(M89="","",M89-E89),M89) -> -0.1744 | O89: =INDEX('F_Inputs SDEff'!$K$8:$K$24,MATCH(B89,'F_Inputs SDEff'!$A$8:$A$24,FALSE)) -> 0.1 | P89: =IFERROR(IF(O89="","",M89*(1-O89)),"") -> 2.98224 | Q89: Corrected. New Shallow Dive challenge for SRN applied (10%), previously using DD challenge (20%). | R89: Company states every scheme under RWD enhancement now has -5% from TOTEX request. 5% subtracted
B90: SRN | C90: Brede | D90: SRN-2024-00017 | E90: 3.621 | F90: Shallow Dive | G90: UV | H90: 2.8968 | I90: 0.2 | J90: Materiality & shallow dive | K90: Pre-Existing | L90: N/A | M90: 3.43995 | N90: =IFERROR(IF(M90="","",M90-E90),M90) -> -0.18105 | O90: =INDEX('F_Inputs SDEff'!$K$8:$K$24,MATCH(B90,'F_Inputs SDEff'!$A$8:$A$24,FALSE)) -> 0.1 | P90: =IFERROR(IF(O90="","",M90*(1-O90)),"") -> 3.095955 | Q90: Corrected. New Shallow Dive challenge for SRN applied (10%), previously using DD challenge (20%). | R90: Company states every scheme under RWD enhancement now has -5% from TOTEX request. 5% subtracted
B91: SRN | C91: Beauport | D91: SRN-2024-00017 | E91: 4.699 | F91: Shallow Dive | G91: UV | H91: 3.7592 | I91: 0.2 | J91: Materiality & shallow dive | K91: Pre-Existing | L91: N/A | M91: 4.46405 | N91: =IFERROR(IF(M91="","",M91-E91),M91) -> -0.23495 | O91: =INDEX('F_Inputs SDEff'!$K$8:$K$24,MATCH(B91,'F_Inputs SDEff'!$A$8:$A$24,FALSE)) -> 0.1 | P91: =IFERROR(IF(O91="","",M91*(1-O91)),"") -> 4.017645 | Q91: Corrected. New Shallow Dive challenge for SRN applied (10%), previously using DD challenge (20%). | R91: Company states every scheme under RWD enhancement now has -5% from TOTEX request. 5% subtracted
B92: SRN | C92: Andover | D92: SRN-2024-00017 | E92: 5.38 | F92: Shallow Dive | G92: UV | H92: 4.304 | I92: 0.2 | J92: Materiality & shallow dive | K92: Pre-Existing | L92: N/A | M92: 5.111 | N92: =IFERROR(IF(M92="","",M92-E92),M92) -> -0.269 | O92: =INDEX('F_Inputs SDEff'!$K$8:$K$24,MATCH(B92,'F_Inputs SDEff'!$A$8:$A$24,FALSE)) -> 0.1 | P92: =IFERROR(IF(O92="","",M92*(1-O92)),"") -> 4.5999 | Q92: Corrected. New Shallow Dive challenge for SRN applied (10%), previously using DD challenge (20%). | R92: Company states every scheme under RWD enhancement now has -5% from TOTEX request. 5% subtracted
B93: SRN | C93: Balsdean | D93: SRN-2023-00017 | E93: 4.619 | F93: Shallow Dive | G93: UV | H93: 3.6952 | I93: 0.2 | J93: Materiality & shallow dive | K93: Pre-Existing | L93: N/A | M93: 4.38805 | N93: =IFERROR(IF(M93="","",M93-E93),M93) -> -0.23095 | O93: =INDEX('F_Inputs SDEff'!$K$8:$K$24,MATCH(B93,'F_Inputs SDEff'!$A$8:$A$24,FALSE)) -> 0.1 | P93: =IFERROR(IF(O93="","",M93*(1-O93)),"") -> 3.949245 | Q93: Corrected. New Shallow Dive challenge for SRN applied (10%), previously using DD challenge (20%). | R93: Company states every scheme under RWD enhancement now has -5% from TOTEX request. 5% subtracted
B94: SRN | C94: Transitional | D94: N/A | E94: N/A | F94: N/A | G94: N/A | H94: N/A | I94: N/A | J94: N/A | K94: N/A | L94: N/A | M94: N/A | N94: N/A | O94: N/A | P94: N/A | Q94: N/A | R94: N/A
B95: SSC | C95: Morden Grange Nitrate | D95: CAM-2023-00001 | E95: 6.734 | F95: Modelled | G95: NO3 | H95: 6.577318 | I95: 0.02326730027 | J95: Nitrate Modelling Cost | K95: Pre-Existing | L95: N/A | M95: 6.577318 | N95: =IFERROR(IF(M95="","",M95-E95),M95) -> -0.156682 | O95: N/A | P95: 6.614852 | Q95: N/A
B96: SSC | C96: Sutton WQZ | D96: SST-2023-00004 | E96: 5.534 | F96: Deep Dive | G96: Mn | H96: 3.8738 | I96: 0.3 | J96: SSC (Sutton WSZ Mn) | K96: Pre-Existing | L96: Y | M96: 3.8738 | N96: -1.6602 | O96: 0 | P96: =IFERROR(IF(O96="","",M96*(1-O96)),"") -> 3.8738 | Q96: N/A | R96: Sutton consumer acceptability (inc Bourne Vale)
B97: SSC | C97: Fradley WTW | D97: SST-2023-00005 | E97: 4.09 | F97: Shallow Dive | H97: 4.09 | I97: 0 | J97: Materiality & shallow dive | K97: Pre-Existing | L97: N/A | M97: 4.09 | N97: 0 | O97: =INDEX('F_Inputs SDEff'!$K$8:$K$24,MATCH(B97,'F_Inputs SDEff'!$A$8:$A$24,FALSE)) -> 0 | P97: =IFERROR(IF(O97="","",M97*(1-O97)),"") -> 4.09 | Q97: N/A | R97: Fradley - Antimony
B98: SSC | C98: Cookley Pumping Station | D98: SST-2024-00002 | E98: 3.21 | F98: Modelled | G98: UV | H98: 2.6575 | I98: 0.1721183801 | J98: UV Modelling Cost | K98: Pre-Existing | L98: N/A | M98: 2.6575 | N98: -0.5525 | O98: N/A | P98: 2.6961 | Q98: N/A | R98: DWI acknowledged action
B99: SSC | C99: Bourne Vale Pumping Station | D99: SST-2023-00004 | E99: 2.219 | F99: Shallow Dive | H99: 2.219 | I99: 0 | J99: Materiality & shallow dive | K99: Pre-Existing | L99: N/A | M99: 2.219 | N99: 0 | O99: =INDEX('F_Inputs SDEff'!$K$8:$K$24,MATCH(B99,'F_Inputs SDEff'!$A$8:$A$24,FALSE)) -> 0 | P99: =IFERROR(IF(O99="","",M99*(1-O99)),"") -> 2.219 | Q99: N/A | R99: Sutton consumer acceptability (inc Bourne Vale)
B100: SSC | C100: Great Wilbraham Pumping Station | D100: SST-2024-00002 | E100: 1.657 | F100: Modelled | G100: UV | H100: 2.405347 | I100: -0.4516276403 | J100: UV Modelling Cost | K100: Pre-Existing | L100: N/A | M100: 1.657 | N100: 0 | O100: N/A | P100: 2.429691 | Q100: N/A | R100: DWI acknowledged action
B101: SSC | C101: Pipe Hill Pumping Station | D101: SST-2024-00002 | E101: 1.508 | F101: Modelled | G101: UV | H101: 2.50468 | I101: -0.660928382 | J101: UV Modelling Cost | K101: Pre-Existing | L101: N/A | M101: 1.508 | N101: 0 | O101: N/A | P101: 2.53464 | Q101: N/A | R101: DWI acknowledged action
B102: SSC | C102: Maple Brook Pumping Station | D102: SST-2024-00002 | E102: 1.479 | F102: Modelled | G102: UV | H102: 2.4311 | I102: -0.6437457742 | J102: UV Modelling Cost | K102: Pre-Existing | L102: N/A | M102: 1.479 | N102: 0 | O102: N/A | P102: 2.4569 | Q102: N/A | R102: DWI acknowledged action
B103: SSC | C103: Fulbourne Pumping Station | D103: SST-2024-00002 | E103: 0.843 | F103: Modelled | G103: UV | H103: 2.240924 | I103: -1.658272835 | J103: UV Modelling Cost | K103: Pre-Existing | L103: N/A | M103: 0.843 | N103: 0 | O103: N/A | P103: 2.255972 | Q103: N/A | R103: DWI acknowledged action
B104: SSC | C104: Great Chishill Pumping Station | D104: SST-2024-00002 | E104: 0.793 | F104: Modelled | G104: UV | H104: 2.178098 | I104: -1.746655738 | J104: UV Modelling Cost | K104: Pre-Existing | L104: N/A | M104: 0.793 | N104: 0 | O104: N/A | P104: 2.189594 | Q104: N/A | R104: DWI acknowledged action
B105: SVE | C105: Homesford WTW | D105: SVT-2023-00012 | E105: 72.65 | F105: Deep Dive | G105: Lead | H105: 43.59 | I105: 0.4 | J105: SVE (Homesford WTW Lead) | K105: Pre-Existing | L105: Y | M105: 72.65 | N105: 0 | O105: 0 | P105: =IFERROR(IF(O105="","",M105*(1-O105)),"") -> 72.65 | Q105: N/A | R105: Homesford
B106: SVE | C106: Whitacre WTW | D106: SVT-2023-00011 | E106: 66.027 | F106: Deep Dive | G106: Algae | H106: 46.2189 | I106: 0.3 | J106: SVE (Whitacre WTW) | K106: Pre-Existing | L106: Y | M106: 66.027 | N106: 0 | O106: 0 | P106: =IFERROR(IF(O106="","",M106*(1-O106)),"") -> 66.027 | Q106: N/A | R106: Whitacre
B107: SVE | C107: Rednal | D107: SVT-2024-00011 | E107: 3.158 | F107: Modelled | G107: UV | H107: 2.3179 | I107: 0.2660227992 | J107: UV Modelling Cost | K107: Pre-Existing | L107: N/A | M107: 3.158 | N107: 0 | O107: N/A | P107: 2.3373 | Q107: N/A | R107: DWI acknowledged action
B108: SVE | C108: Witches Oak WTW | D108: SVT-2023-00007 | E108: 31.702 | F108: Deep Dive | G108: PFAS | H108: 19.0212 | I108: 0.4 | J108: SVE (PFAS) | K108: Pre-Existing | L108: Y | M108: 34.9 | N108: 3.198 | O108: 0 | P108: =IFERROR(IF(O108="","",M108*(1-O108)),"") -> 34.9 | Q108: Full cost allowed as PFAS related enhancement | R108: Wiches Oak
B109: SVE | C109: Beckbury (Nedge Hill) | D109: SVT-2023-00009 | E109: 19.931 | F109: Deep Dive | G109: NO3 | H109: 9.9655 | I109: 0.5 | J109: SVE (NO3) | K109: Pre-Existing | L109: Y | M109: 19.931 | N109: 0 | O109: 0.1 | P109: =IFERROR(IF(O109="","",M109*(1-O109)),"") -> 17.9379 | Q109: Cost Efficiency: waste disposal cost breakdown | R109: Beckbury
B110: SVE | C110: Cosford (Nurton) | D110: SVT-2023-00010 | E110: 16.415 | F110: Deep Dive | G110: NO3 | H110: 8.2075 | I110: 0.5 | J110: SVE (NO3) | K110: Pre-Existing | L110: Y | M110: 16.415 | N110: 0 | O110: 0.1 | P110: =IFERROR(IF(O110="","",M110*(1-O110)),"") -> 14.7735 | Q110: Cost Efficiency: waste disposal cost breakdown | R110: Nurton
B111: SVE | C111: Cresswell | D111: SVT-2023-00008 | E111: 12.749 | F111: Deep Dive | G111: UV | H111: 8.9243 | I111: 0.3 | J111: SVE (UV) | K111: Pre-Existing | L111: Y | M111: 12.749 | N111: 0 | O111: 0 | P111: =IFERROR(IF(O111="","",M111*(1-O111)),"") -> 12.749 | Q111: N/A | R111: Cresswell
B112: SVE | C112: Cropston WTW | D112: SVT-2023-0002 | E112: 13.406 | F112: Deep Dive | G112: PFAS | H112: 8.0436 | I112: 0.4 | J112: SVE (PFAS) | K112: Pre-Existing | L112: Y | M112: 18.9 | N112: 5.494 | O112: 0 | P112: =IFERROR(IF(O112="","",M112*(1-O112)),"") -> 18.9 | Q112: Full cost allowed as PFAS related enhancement | R112: Served as part of our routine enforcement casework (rather than as an AMP scheme)
B113: SVE | C113: Wildmoor | D113: SVT-2024-00010 | E113: 4.077 | F113: Modelled | G113: UV | H113: 2.53298 | I113: 0.3787147412 | J113: UV Modelling Cost | K113: Pre-Existing | L113: N/A | M113: 4.077 | N113: 0 | O113: N/A | P113: 2.56454 | Q113: N/A | R113: DWI acknowledged action
B114: SVE | C114: Far Baulker / Rufford | D114: SVT-2024-00009 | E114: 48.745 | F114: Deep Dive | G114: Microbiological | H114: 29.247 | I114: 0.4 | J114: SVE (Ceramic Membranes) | K114: Pre-Existing | L114: Y | M114: 48.745 | N114: 0 | O114: 0.1 | P114: =IFERROR(IF(O114="","",M114*(1-O114)),"") -> 43.8705 | Q114: Cost Efficiency: generally inefficient evidence, no cost comparison between ceramic and polymeric | R114: DWI acknowledged action
B115: SVE | C115: Edmond Bridge | D115: SVT-2024-00012 | E115: 2.191 | F115: Modelled | G115: UV | H115: 2.71693 | I115: -0.2400410771 | J115: UV Modelling Cost | K115: Pre-Existing | L115: N/A | M115: 2.191 | N115: 0 | O115: N/A | P115: 2.75889 | Q115: N/A | R115: DWI acknowledged action
B116: SVE | C116: Westwood / Dunhampton | D116: SVT-2024-00008 | E116: 1.714 | F116: Modelled | G116: UV | H116: 2.47355 | I116: -0.4431446908 | J116: UV Modelling Cost | K116: Pre-Existing | L116: N/A | M116: 1.714 | N116: 0 | O116: N/A | P116: 2.50175 | Q116: N/A | R116: DWI acknowledged action
B117: SVE | C117: Companywide - PFAS laboratory expansion | D117: SVT-2024-00021 | E117: 2.438 | F117: Deep Dive | G117: PFAS | H117: 0 | I117: 1 | J117: SVE (PFAS Laboratory) | K117: Pre-Existing | L117: Y | M117: 2.4 | N117: -0.038 | O117: 0.2 | P117: =IFERROR(IF(O117="","",M117*(1-O117)),"") -> 1.92 | Q117: Investment Need: resin disposal, Cost Efficiency: confirmation of equipment, general efficiency | R117: awaiting wider PFAS Strategy undertaking (SVT-2023-0014)
B118: SVE | C118: AMP7 enhancement OPEX | D118: N/A | E118: 9.489 | F118: Shallow Dive | G118: N/A | H118: 0 | I118: 1 | J118: N/A | K118: Pre-Existing | L118: N/A | M118: 9.489 | N118: 0 | O118: =P118/M118 -> 0.4808725893 | P118: 4.563 | Q118: N/A | R118: 2/5th of request with 20% energy cost challenge
B119: SVE | C119: AMP7 continued catchment management schemes | D119: N/A | E119: 1.16 | F119: Shallow Dive | G119: N/A | H119: 0 | I119: 1 | J119: N/A | K119: Pre-Existing | L119: N/A | M119: 1.16 | N119: 0 | O119: =INDEX('F_Inputs SDEff'!$K$8:$K$24,MATCH(B119,'F_Inputs SDEff'!$A$8:$A$24,FALSE)) -> 0 | P119: 1.16 | Q119: N/A
B120: SVE | C120: PFAS Catchment management | D120: SVT-2023-0014 | E120: 0.278 | F120: Shallow Dive | H120: 0.278 | I120: 0 | J120: Materiality & shallow dive | K120: Pre-Existing | L120: N/A | M120: 0.278 | N120: 0 | O120: =INDEX('F_Inputs SDEff'!$K$8:$K$24,MATCH(B120,'F_Inputs SDEff'!$A$8:$A$24,FALSE)) -> 0 | P120: 0.278 | Q120: N/A | R120: PFAS strategy
B121: SVE | C121: Transitional | D121: N/A | E121: 30.20016436 | F121: Transitional/ Accelerated | G121: N/A | H121: 18.87510273 | I121: 0.375 | J121: N/A | K121: Pre-Existing | L121: N/A | M121: 30.2 | N121: -0.000164361 | O121: 0.1164292988 | P121: =IFERROR(IF(O121="","",M121*(1-O121)),"") -> 26.68383518 | Q121: Average challenge | R121: This is a mismatch from the CW12 line. £30.200m has been used instead of £13.351m as the total amount requested from company then matches at approx. £462m. It is not apportioned against the other schemes. Average challenge for all schemes for SVE excluding PFAS Reopener and Transitional
B122: SVE | C122: Whitacre WTW (PFAS) | D122: N/A | E122: N/A | F122: Deep Dive | G122: PFAS | H122: N/A | I122: N/A | J122: SVE (PFAS) | K122: New | L122: N/A | M122: 31.8 | N122: 31.8 | O122: 1 | P122: 0 | Q122: Scheme has been deferred to the PFAS Reopener
B123: SVE | C123: Church Wilne WTW (PFAS) | D123: N/A | E123: N/A | F123: Deep Dive | G123: PFAS | H123: N/A | I123: N/A | J123: SVE (PFAS) | K123: New | L123: N/A | M123: 53.8 | N123: 53.8 | O123: 1 | P123: 0 | Q123: Scheme has been deferred to the PFAS Reopener
B124: SVE | C124: SVE PFAS Risk Reduction Programme | D124: N/A | E124: N/A | F124: Deep Dive | G124: PFAS | H124: N/A | I124: N/A | J124: SVE (PFAS) | K124: New | L124: N/A | M124: 32 | N124: 32 | O124: 0.53125 | P124: =IFERROR(IF(O124="","",M124*(1-O124)),"") -> 15 | Q124: Scheme has been partially deferred to the PFAS Reopener
B125: SWB | C125: Dotton WTW | D125: SWB-2023-00010 | E125: 13.707 | F125: Deep Dive | G125: Microbiological | H125: 5.4828 | I125: 0.6 | J125: SWB (Dotton WTW) | K125: Pre-Existing | L125: Y | M125: 13.707 | N125: 0 | O125: 0 | P125: 13.707 | Q125: N/A | R125: Dotton
B126: SWB | C126: Lowermoor WTW | D126: SWB-2023-00007 | E126: 12.27 | F126: Deep Dive | G126: Microbiological | H126: 4.908 | I126: 0.6 | J126: SWB (Lowermoor WTW) | K126: Pre-Existing | L126: Y | M126: 12.27 | N126: 0 | O126: 0 | P126: 12.27 | Q126: N/A | R126: Lowermoor
B127: SWB | C127: Greatwell WTW | D127: SWB-2023-00009 | E127: 3.796 | F127: Deep Dive | G127: Microbiological | H127: 1.5184 | I127: 0.6 | J127: SWB (Greatwell WTW) | K127: Pre-Existing | L127: Y | M127: 3.796 | N127: =IFERROR(IF(M127="","",M127-E127),M127) -> 0 | O127: 0.1 | P127: 3.4164 | Q127: Cost Efficiency: cost sheeet efficiency challenge unclear, UV treatment not benchmarked | R127: Greatwell
B128: SWB | C128: Multiple Sites PAC dosing | D128: SWB-2023-00012 | E128: 1.477 | F128: Shallow Dive | H128: 1.1816 | I128: 0.2 | J128: Materiality & shallow dive | K128: Pre-Existing | L128: N/A | M128: 1.477 | N128: 0 | O128: =INDEX('F_Inputs SDEff'!$K$8:$K$24,MATCH(B128,'F_Inputs SDEff'!$A$8:$A$24,FALSE)) -> 0.1 | P128: 1.3293 | Q128: N/A | R128: Multiple PAC dosing
B129: SWB | C129: PFAS Research | D129: SWB-2023-00014 | E129: 1.718 | F129: Shallow Dive | G129: PFAS | H129: 1.3744 | I129: 0.2 | J129: Materiality & shallow dive | K129: Pre-Existing | L129: N/A | M129: 1.72 | N129: 0.002 | O129: 0 | P129: 1.72 | Q129: Full cost allowed as PFAS related enhancement | R129: PFAS strategy
B130: SWB | C130: Bratton Fleming WTW | D130: SWB-2023-00004 | E130: 16.226 | F130: Deep Dive | G130: Mn | H130: 9.7356 | I130: 0.4 | J130: SWB (Bratton Fleming WTW) | K130: Pre-Existing | L130: Y | M130: 16.371 | N130: 0.145 | O130: 0.1 | P130: 14.7339 | Q130: Cost Efficiency: costing sheets, third party assurance | R130: Bratton Flemming
B131: TMS | C131: Hampton, Coppermills, Kempton, Ashford | D131: TMS-2023-00008 TMS-2023-00009 TMS-2023-00010 TMS-2023-00011 | E131: 179.116 | F131: Deep Dive | G131: UV | H131: 10.28802 | I131: 0.94 | J131: TMS (UV) | K131: Pre-Existing | L131: Y | M131: 179.116 | N131: 0 | O131: 0.94 | P131: 10.74696 | Q131: Investment Need: scheme will go through gated process, allowance for development/ design given (6%) | R131: Coppermills Ashford Common Kempton Park Hampton
B132: WSH | C132: Discolouration and consumer acceptability | D132: DWR-2023-00006 | E132: 7.959 | F132: Shallow Dive | H132: 7.959 | I132: 0 | J132: Materiality & shallow dive | K132: Pre-Existing | L132: N/A | M132: 7.959 | N132: 0 | O132: =INDEX('F_Inputs SDEff'!$K$8:$K$24,MATCH(B132,'F_Inputs SDEff'!$A$8:$A$24,FALSE)) -> 0.01 | P132: =IFERROR(IF(O132="","",M132*(1-O132)),"") -> 7.87941 | Q132: N/A | R132: Cefn Dryscoed and other sites
B133: WSH | C133: Cefn Dryscoed | D133: DWR-2023-00006 | E133: 13.702 | F133: Deep Dive | G133: Manganese | H133: 12.3318 | I133: 0.1 | J133: WSH (Cefn Dryscoed WTW) | K133: Pre-Existing | L133: Y | M133: 13.702 | N133: 0 | O133: 0 | P133: =IFERROR(IF(O133="","",M133*(1-O133)),"") -> 13.702 | Q133: N/A | R133: Cefn Dryscoed and other sites
B134: WSH | C134: Broomy Hill WTW | D134: DWR-2023-00011 | E134: 3.267 | F134: Modelled | G134: UV | H134: 3.7612 | I134: -0.1512702785 | J134: UV Modelling Cost | K134: Pre-Existing | L134: N/A | M134: 3.267 | N134: 0 | O134: N/A | P134: 3.8622 | Q134: N/A | R134: UV disinfection schemes
B135: WSH | C135: Mayhill | D135: DWR-2023-0003 | E135: 2.91 | F135: Shallow Dive | H135: 2.91 | I135: 0 | J135: Materiality & shallow dive | K135: Pre-Existing | L135: N/A | M135: 2.91 | N135: 0 | O135: =INDEX('F_Inputs SDEff'!$K$8:$K$24,MATCH(B135,'F_Inputs SDEff'!$A$8:$A$24,FALSE)) -> 0.01 | P135: =IFERROR(IF(O135="","",M135*(1-O135)),"") -> 2.8809 | Q135: N/A | R135: Mayhill organics removal – this is in existing notice (pre AMP8). It includes Court Farm WTW as well as Monmouth WTW (Mayhill). Legal notice reference changed post PD, confirmed as correct with DWI.
B136: WSH | C136: Bretton WTW | D136: DWR-2023-00011 | E136: 2.65 | F136: Modelled | G136: UV | H136: 3.4216 | I136: -0.2911698113 | J136: UV Modelling Cost | K136: Pre-Existing | L136: N/A | M136: 2.65 | N136: 0 | O136: N/A | P136: 3.5034 | Q136: N/A | R136: UV disinfection schemes
B137: WSH | C137: Whitbourne WTW | D137: DWR-2023-00011 | E137: 1.583 | F137: Modelled | G137: UV | H137: 2.36035 | I137: -0.4910612761 | J137: UV Modelling Cost | K137: Pre-Existing | L137: N/A | M137: 1.583 | N137: 0 | O137: N/A | P137: 2.38215 | Q137: N/A | R137: UV disinfection schemes
B138: WSH | C138: Mayhill WTW | D138: DWR-2023-0003 | E138: 1.412 | F138: Modelled | G138: UV | H138: 2.4028 | I138: -0.7016997167 | J138: UV Modelling Cost | K138: Pre-Existing | L138: N/A | M138: 1.412 | N138: 0 | O138: N/A | P138: 2.427 | Q138: N/A | R138: UV disinfection schemes. Mayhill is called Monmouth on DWI records. Legal notice reference changed post PD, confirmed as correct with DWI.
B139: WSH | C139: Bontgoch and Pendine WTW | D139: DWR-2022-00004 (Pendine) DWR-2024-00009 (Bontgoch) | E139: 5.701 | F139: Shallow Dive | G139: Manganese | H139: 5.701 | I139: 0 | J139: Materiality & shallow dive | K139: Pre-Existing | L139: N/A | M139: 5.701 | N139: 0 | O139: =INDEX('F_Inputs SDEff'!$K$8:$K$24,MATCH(B139,'F_Inputs SDEff'!$A$8:$A$24,FALSE)) -> 0.01 | P139: =IFERROR(IF(O139="","",M139*(1-O139)),"") -> 5.64399 | Q139: N/A | R139: New borehole Bontgoch WTW legal notice reference changed post PD, confirmed as correct with DWI.
B140: WSH | C140: Reg 26 disinfection | D140: DWR-2023-00011 | E140: 1.24 | F140: Shallow Dive | G140: Microbiological | H140: 1.24 | I140: 0 | J140: Materiality & shallow dive | K140: Pre-Existing | L140: N/A | M140: 1.24 | N140: 0 | O140: =INDEX('F_Inputs SDEff'!$K$8:$K$24,MATCH(B140,'F_Inputs SDEff'!$A$8:$A$24,FALSE)) -> 0.01 | P140: 1.2276 | Q140: N/A | R140: Reference Letter DWR 2.
B141: WSH | C141: Capel Curig WTW | D141: DWR-2023-00009 | E141: 5.514 | F141: Shallow Dive | G141: DBPs | H141: 5.514 | I141: 0 | J141: Materiality & shallow dive | K141: Pre-Existing | L141: N/A | M141: 5.514 | N141: 0 | O141: =INDEX('F_Inputs SDEff'!$K$8:$K$24,MATCH(B141,'F_Inputs SDEff'!$A$8:$A$24,FALSE)) -> 0.01 | P141: 5.45886 | Q141: N/A | R141: TOC, THM
B142: WSH | C142: Catchment Management: “Recover” – Safeguard Zones | D142: acknowledged action | E142: 2.78 | F142: Shallow Dive | H142: 2.78 | I142: 0 | J142: Materiality & shallow dive | K142: Pre-Existing | L142: N/A | M142: 2.78 | N142: 0 | O142: =INDEX('F_Inputs SDEff'!$K$8:$K$24,MATCH(B142,'F_Inputs SDEff'!$A$8:$A$24,FALSE)) -> 0.01 | P142: 2.7522 | Q142: N/A | R142: DWI commend to support and will track like a notice/undertaking
B143: WSH | C143: Catchment Management: “Prevent” – Smart Catchments | D143: acknowledged action | E143: 2.74 | F143: Shallow Dive | H143: 2.74 | I143: 0 | J143: Materiality & shallow dive | K143: Pre-Existing | L143: N/A | M143: 2.74 | N143: 0 | O143: =INDEX('F_Inputs SDEff'!$K$8:$K$24,MATCH(B143,'F_Inputs SDEff'!$A$8:$A$24,FALSE)) -> 0.01 | P143: 2.7126 | Q143: N/A | R143: DWI commend to support and will track like a notice/undertaking
B144: WSH | C144: Catchment Management: “Adapt” – Research, Development and Implementation of Emerging Techniques | D144: acknowledged action | E144: 0.956 | F144: Shallow Dive | H144: 0.956 | I144: 0 | J144: Materiality & shallow dive | K144: Pre-Existing | L144: N/A | M144: 0.956 | N144: 0 | O144: =INDEX('F_Inputs SDEff'!$K$8:$K$24,MATCH(B144,'F_Inputs SDEff'!$A$8:$A$24,FALSE)) -> 0.01 | P144: 0.94644 | Q144: N/A | R144: DWI commend to support and will track like a notice/undertaking
B145: WSX | C145: Sturminster Marshall | D145: WSX-2023-00002 | E145: 21.285 | F145: Deep Dive | G145: NO3 | H145: 12.771 | I145: 0.4 | J145: WSX (NO3) | K145: Pre-Existing | L145: Y | M145: 21.285 | N145: 0 | O145: 0.1 | P145: 19.1565 | Q145: Cost Efficiency: NO3 removal general efficiency | R145: Sturminster Marshall/Shapwick Nitrate
B146: WSX | C146: Charlton WTW (PFAS) | D146: WSX-2024-00005 | E146: N/A | F146: Deep Dive | G146: PFAS | H146: N/A | I146: N/A | J146: WSX (PFAS) | K146: New | L146: N/A | M146: 4.793 | N146: 4.793 | O146: 0 | P146: 4.793 | Q146: Full cost allowed as PFAS related enhancement
B147: WSX | C147: Upton Scudamore WTW (PFAS) | D147: WSX-2024-00007 | E147: N/A | F147: Deep Dive | G147: PFAS | H147: N/A | I147: N/A | J147: WSX (PFAS) | K147: New | L147: N/A | M147: 2.833 | N147: 2.833 | O147: 0 | P147: 2.833 | Q147: Full cost allowed as PFAS related enhancement
B148: WSX | C148: Tucking Mill WTW (PFAS) | D148: WSX-2024-00006 | E148: N/A | F148: Deep Dive | G148: PFAS | H148: N/A | I148: N/A | J148: WSX (PFAS) | K148: New | L148: N/A | M148: 4.608 | N148: 4.608 | O148: 0 | P148: 4.608 | Q148: Full cost allowed as PFAS related enhancement
B149: WSX | C149: WSX PFAS Strategy | D149: WSX-2023-00003 | E149: N/A | F149: Deep Dive | G149: PFAS | H149: N/A | I149: N/A | J149: WSX (PFAS) | K149: New | L149: N/A | M149: 4.29 | N149: 4.29 | O149: 0 | P149: 4.29 | Q149: Full cost allowed as PFAS related enhancement
B150: WSX | C150: WSX PFAS Catchment Management | D150: WSX-2024-00004 | E150: N/A | F150: Deep Dive | G150: PFAS | H150: N/A | I150: N/A | J150: WSX (PFAS) | K150: New | L150: N/A | M150: 2.123 | N150: 2.123 | O150: 0 | P150: 2.123 | Q150: Full cost allowed as PFAS related enhancement
B151: YKY | C151: Doncaster BHs | D151: YKS-2023-00005 | E151: =12.7227712805329+10.1342287194671 -> 22.857 | F151: Deep Dive | G151: Microbiological | H151: 16 | I151: 0.3 | J151: YKY (Doncaster BHs) | K151: Pre-Existing | L151: Y | M151: 21.121 | N151: -1.736 | O151: 0.1 | P151: 19.0089 | Q151: Cost Efficiency: scheme assurance | R151: Doncaster boreholes Number updated query response OFW-REP-YKY-080 – Response.docx
B152: YKY | C152: East Ness WTW | D152: YKS-2023-00004 | E152: 9.905 | F152: Deep Dive | G152: Microbiological | H152: 4.9525 | I152: 0.5 | J152: YKY (East Ness WTW) | K152: Pre-Existing | L152: Y | M152: 9.811 | N152: -0.094 | O152: 0.1 | P152: 8.8299 | Q152: Cost Efficiency: scheme assurance | R152: East Ness Number updated query response OFW-REP-YKY-080 – Response.docx
B153: YKY | C153: Haisthorpe Boreholes Nitrate | D153: YKS-2023-00006 | E153: 8.05 | F153: Modelled | G153: NO3 | H153: 8.59708 | I153: -0.06796024845 | J153: Nitrate Modelling Cost | K153: Pre-Existing | L153: N/A | M153: 8.05 | N153: 0 | O153: N/A | P153: 8.37842 | Q153: N/A | R153: Haisthorpe
B154: YKY | C154: YKY PFAS Strategy | D154: YKS-2023-00009 | E154: N/A | F154: Shallow Dive | G154: PFAS | H154: N/A | I154: N/A | J154: Materiality & shallow dive | K154: New | L154: N/A | M154: 2.9 | N154: 2.9 | O154: 0 | P154: =IFERROR(IF(O154="","",M154*(1-O154)),"") -> 2.9 | Q154: Full cost allowed as PFAS related enhancement
B155: YKY | C155: N/A | D155: N/A | E155: 1.689 | F155: Transitional/Accelerated | G155: N/A | H155: 1.087023 | I155: 0.223 | J155: N/A | K155: Pre-Existing | L155: N/A | M155: N/A | N155: N/A | O155: N/A | P155: N/A | Q155: N/A | R155: Amount has been removed as without this value, YKY assesed request matches better with the actual line requests. At Rep it appears the transitional has been incorporated into the other schemes assessed.
B157: Total | E157: =SUBTOTAL(9,E4:E155) -> 100.401 | H157: =SUBTOTAL(9,H4:H155) -> 85.28432 | I157: =IFERROR((E157-H157)/E157,"") -> 0.1505630422 | M157: =SUBTOTAL(9,M4:M155) -> 95.38095 | P157: =SUBTOTAL(9,P4:P155) -> 88.12159

Sheet Representation Req. Summary
A1: Representation Request Summary
B3: Company | C3: Deep Dive | D3: Shallow Dive | E3: Modelled | F3: Transitional/ Accelerated | G3: Total Requested (£m) | H3: Line Amount Requested (£m) | I3: Difference | J3: FD Allowance (£m) | K3: Comments
B4: ANH | C4: =SUMIFS('Representation Overview'!$M$4:$M$155,'Representation Overview'!$B$4:$B$155,"="&$B4,'Representation Overview'!$F$4:$F$155,"="&C$3) -> 140.019 | D4: =SUMIFS('Representation Overview'!$M$4:$M$155,'Representation Overview'!$B$4:$B$155,"="&$B4,'Representation Overview'!$F$4:$F$155,"="&D$3) -> 8.968 | E4: =SUMIFS('Representation Overview'!$M$4:$M$155,'Representation Overview'!$B$4:$B$155,"="&$B4,'Representation Overview'!$F$4:$F$155,"="&E$3) -> 73.78 | F4: =SUMIFS('Representation Overview'!$M$4:$M$155,'Representation Overview'!$B$4:$B$155,"="&$B4,'Representation Overview'!$F$4:$F$155,"="&F$3) -> 0 | G4: =SUM(C4:F4) -> 222.767 | H4: =SUMIFS('Final Input'!$L$5:$L$106,'Final Input'!$A$5:$A$106,"="&$B4,'Final Input'!$M$5:$M$106,"="&$H$3) -> 225.401 | I4: =H4-G4 -> 2.634 | J4: =SUMIFS('Representation Overview'!$P$4:$P$155,'Representation Overview'!$B$4:$B$155,'Representation Req. Summary'!B4) -> 215.137416 | K4: Possibly OPEX costs which were not submitted in BPs Explanation: DD request for Multiple GAC Replacement includes OPEX, this figure would bring up ask by approx. £1.8m Barrow/ Southfields only have CAPEX included - a DWI support document has details on the OPEX cost for these schemes - approx £1m | M4: =H4-G4 -> 2.634
B5: WSH | C5: =SUMIFS('Representation Overview'!$M$4:$M$155,'Representation Overview'!$B$4:$B$155,"="&$B5,'Representation Overview'!$F$4:$F$155,"="&C$3) -> 13.702 | D5: =SUMIFS('Representation Overview'!$M$4:$M$155,'Representation Overview'!$B$4:$B$155,"="&$B5,'Representation Overview'!$F$4:$F$155,"="&D$3) -> 29.8 | E5: =SUMIFS('Representation Overview'!$M$4:$M$155,'Representation Overview'!$B$4:$B$155,"="&$B5,'Representation Overview'!$F$4:$F$155,"="&E$3) -> 8.912 | F5: =SUMIFS('Representation Overview'!$M$4:$M$155,'Representation Overview'!$B$4:$B$155,"="&$B5,'Representation Overview'!$F$4:$F$155,"="&F$3) -> 0 | G5: =SUM(C5:F5) -> 52.414 | H5: =SUMIFS('Final Input'!$L$5:$L$106,'Final Input'!$A$5:$A$106,"="&$B5,'Final Input'!$M$5:$M$106,"="&$H$3) -> 52.414 | I5: =H5-G5 -> 0 | J5: =SUMIFS('Representation Overview'!$P$4:$P$155,'Representation Overview'!$B$4:$B$155,'Representation Req. Summary'!B5) -> 55.37875
B6: HDD | C6: =SUMIFS('Representation Overview'!$M$4:$M$155,'Representation Overview'!$B$4:$B$155,"="&$B6,'Representation Overview'!$F$4:$F$155,"="&C$3) -> 0 | D6: =SUMIFS('Representation Overview'!$M$4:$M$155,'Representation Overview'!$B$4:$B$155,"="&$B6,'Representation Overview'!$F$4:$F$155,"="&D$3) -> 0 | E6: =SUMIFS('Representation Overview'!$M$4:$M$155,'Representation Overview'!$B$4:$B$155,"="&$B6,'Representation Overview'!$F$4:$F$155,"="&E$3) -> 0 | F6: =SUMIFS('Representation Overview'!$M$4:$M$155,'Representation Overview'!$B$4:$B$155,"="&$B6,'Representation Overview'!$F$4:$F$155,"="&F$3) -> 0 | G6: =SUM(C6:F6) -> 0 | H6: =SUMIFS('Final Input'!$L$5:$L$106,'Final Input'!$A$5:$A$106,"="&$B6,'Final Input'!$M$5:$M$106,"="&$H$3) -> 0 | I6: 0 | J6: =SUMIFS('Representation Overview'!$P$4:$P$155,'Representation Overview'!$B$4:$B$155,'Representation Req. Summary'!B6) -> 0
B7: NES | C7: =SUMIFS('Representation Overview'!$M$4:$M$155,'Representation Overview'!$B$4:$B$155,"="&$B7,'Representation Overview'!$F$4:$F$155,"="&C$3) -> 0 | D7: =SUMIFS('Representation Overview'!$M$4:$M$155,'Representation Overview'!$B$4:$B$155,"="&$B7,'Representation Overview'!$F$4:$F$155,"="&D$3) -> 8.047 | E7: =SUMIFS('Representation Overview'!$M$4:$M$155,'Representation Overview'!$B$4:$B$155,"="&$B7,'Representation Overview'!$F$4:$F$155,"="&E$3) -> 0 | F7: =SUMIFS('Representation Overview'!$M$4:$M$155,'Representation Overview'!$B$4:$B$155,"="&$B7,'Representation Overview'!$F$4:$F$155,"="&F$3) -> 0 | G7: 8.047 | H7: =SUMIFS('Final Input'!$L$5:$L$106,'Final Input'!$A$5:$A$106,"="&$B7,'Final Input'!$M$5:$M$106,"="&$H$3) -> 8.051 | I7: 0.004 | J7: =SUMIFS('Representation Overview'!$P$4:$P$155,'Representation Overview'!$B$4:$B$155,'Representation Req. Summary'!B7) -> 8.047
B8: SVE | C8: =SUMIFS('Representation Overview'!$M$4:$M$155,'Representation Overview'!$B$4:$B$155,"="&$B8,'Representation Overview'!$F$4:$F$155,"="&C$3) -> 410.317 | D8: =SUMIFS('Representation Overview'!$M$4:$M$155,'Representation Overview'!$B$4:$B$155,"="&$B8,'Representation Overview'!$F$4:$F$155,"="&D$3) -> 10.927 | E8: =SUMIFS('Representation Overview'!$M$4:$M$155,'Representation Overview'!$B$4:$B$155,"="&$B8,'Representation Overview'!$F$4:$F$155,"="&E$3) -> 11.14 | F8: =SUMIFS('Representation Overview'!$M$4:$M$155,'Representation Overview'!$B$4:$B$155,"="&$B8,'Representation Overview'!$F$4:$F$155,"="&F$3) -> 30.2 | G8: =SUM(C8:F8) -> 462.584 | H8: =SUMIFS('Final Input'!$L$5:$L$106,'Final Input'!$A$5:$A$106,"="&$B8,'Final Input'!$M$5:$M$106,"="&$H$3) -> 462.6969877 | I8: 0.1129876591 | J8: =SUMIFS('Representation Overview'!$P$4:$P$155,'Representation Overview'!$B$4:$B$155,'Representation Req. Summary'!B8) -> 341.5752152
B9: SWB | C9: =SUMIFS('Representation Overview'!$M$4:$M$155,'Representation Overview'!$B$4:$B$155,"="&$B9,'Representation Overview'!$F$4:$F$155,"="&C$3) -> 46.144 | D9: =SUMIFS('Representation Overview'!$M$4:$M$155,'Representation Overview'!$B$4:$B$155,"="&$B9,'Representation Overview'!$F$4:$F$155,"="&D$3) -> 3.197 | E9: =SUMIFS('Representation Overview'!$M$4:$M$155,'Representation Overview'!$B$4:$B$155,"="&$B9,'Representation Overview'!$F$4:$F$155,"="&E$3) -> 0 | F9: =SUMIFS('Representation Overview'!$M$4:$M$155,'Representation Overview'!$B$4:$B$155,"="&$B9,'Representation Overview'!$F$4:$F$155,"="&F$3) -> 0 | G9: =SUM(C9:F9) -> 49.341 | H9: =SUMIFS('Final Input'!$L$5:$L$106,'Final Input'!$A$5:$A$106,"="&$B9,'Final Input'!$M$5:$M$106,"="&$H$3) -> 54.012365 | I9: 4.671365 | J9: =SUMIFS('Representation Overview'!$P$4:$P$155,'Representation Overview'!$B$4:$B$155,'Representation Req. Summary'!B9) -> 47.1766 | K9: £6.352m reallocated from CW3.120, split equally per year Reallocated Bratton Fleming
B10: SRN | C10: =SUMIFS('Representation Overview'!$M$4:$M$155,'Representation Overview'!$B$4:$B$155,"="&$B10,'Representation Overview'!$F$4:$F$155,"="&C$3) -> 12.39085 | D10: =SUMIFS('Representation Overview'!$M$4:$M$155,'Representation Overview'!$B$4:$B$155,"="&$B10,'Representation Overview'!$F$4:$F$155,"="&D$3) -> 25.1807 | E10: =SUMIFS('Representation Overview'!$M$4:$M$155,'Representation Overview'!$B$4:$B$155,"="&$B10,'Representation Overview'!$F$4:$F$155,"="&E$3) -> 57.8094 | F10: =SUMIFS('Representation Overview'!$M$4:$M$155,'Representation Overview'!$B$4:$B$155,"="&$B10,'Representation Overview'!$F$4:$F$155,"="&F$3) -> 0 | G10: 95.38095 | H10: =SUMIFS('Final Input'!$L$5:$L$106,'Final Input'!$A$5:$A$106,"="&$B10,'Final Input'!$M$5:$M$106,"="&$H$3) -> 90.124 | I10: -5.25695 | J10: =SUMIFS('Representation Overview'!$P$4:$P$155,'Representation Overview'!$B$4:$B$155,'Representation Req. Summary'!B10) -> 88.12159 | K10: Reallocation of £47.193m from CW3.120, and 3.887m from CW3.132 Reallocated disinfection from resilience to RWD - potentially no longer needed Should be £95.2m according to the Raw Water Rep doc (pg.3). £100.4m at draft, 5% challenge applied by SRN, should equal £95.38m. Possibly missing £3.024m of transitional allowance
B11: TMS | C11: =SUMIFS('Representation Overview'!$M$4:$M$155,'Representation Overview'!$B$4:$B$155,"="&$B11,'Representation Overview'!$F$4:$F$155,"="&C$3) -> 179.116 | D11: =SUMIFS('Representation Overview'!$M$4:$M$155,'Representation Overview'!$B$4:$B$155,"="&$B11,'Representation Overview'!$F$4:$F$155,"="&D$3) -> 0 | E11: =SUMIFS('Representation Overview'!$M$4:$M$155,'Representation Overview'!$B$4:$B$155,"="&$B11,'Representation Overview'!$F$4:$F$155,"="&E$3) -> 0 | F11: =SUMIFS('Representation Overview'!$M$4:$M$155,'Representation Overview'!$B$4:$B$155,"="&$B11,'Representation Overview'!$F$4:$F$155,"="&F$3) -> 0 | G11: 179.116 | H11: =SUMIFS('Final Input'!$L$5:$L$106,'Final Input'!$A$5:$A$106,"="&$B11,'Final Input'!$M$5:$M$106,"="&$H$3) -> 179.116 | I11: 0 | J11: =SUMIFS('Representation Overview'!$P$4:$P$155,'Representation Overview'!$B$4:$B$155,'Representation Req. Summary'!B11) -> 10.74696 | L11: Go with line request
B12: NWT | C12: =SUMIFS('Representation Overview'!$M$4:$M$155,'Representation Overview'!$B$4:$B$155,"="&$B12,'Representation Overview'!$F$4:$F$155,"="&C$3) -> 61.31023263 | D12: =SUMIFS('Representation Overview'!$M$4:$M$155,'Representation Overview'!$B$4:$B$155,"="&$B12,'Representation Overview'!$F$4:$F$155,"="&D$3) -> 30.43769357 | E12: =SUMIFS('Representation Overview'!$M$4:$M$155,'Representation Overview'!$B$4:$B$155,"="&$B12,'Representation Overview'!$F$4:$F$155,"="&E$3) -> 0 | F12: =SUMIFS('Representation Overview'!$M$4:$M$155,'Representation Overview'!$B$4:$B$155,"="&$B12,'Representation Overview'!$F$4:$F$155,"="&F$3) -> 0 | G12: 91.7479262 | H12: =SUMIFS('Final Input'!$L$5:$L$106,'Final Input'!$A$5:$A$106,"="&$B12,'Final Input'!$M$5:$M$106,"="&$H$3) -> 91.75010156 | I12: 0.002175363637 | J12: =SUMIFS('Representation Overview'!$P$4:$P$155,'Representation Overview'!$B$4:$B$155,'Representation Req. Summary'!B12) -> 90.52440293 | L12: Go with line request
B13: WSX | C13: =SUMIFS('Representation Overview'!$M$4:$M$155,'Representation Overview'!$B$4:$B$155,"="&$B13,'Representation Overview'!$F$4:$F$155,"="&C$3) -> 39.932 | D13: =SUMIFS('Representation Overview'!$M$4:$M$155,'Representation Overview'!$B$4:$B$155,"="&$B13,'Representation Overview'!$F$4:$F$155,"="&D$3) -> 0 | E13: =SUMIFS('Representation Overview'!$M$4:$M$155,'Representation Overview'!$B$4:$B$155,"="&$B13,'Representation Overview'!$F$4:$F$155,"="&E$3) -> 0 | F13: =SUMIFS('Representation Overview'!$M$4:$M$155,'Representation Overview'!$B$4:$B$155,"="&$B13,'Representation Overview'!$F$4:$F$155,"="&F$3) -> 0 | G13: 39.932 | H13: =SUMIFS('Final Input'!$L$5:$L$106,'Final Input'!$A$5:$A$106,"="&$B13,'Final Input'!$M$5:$M$106,"="&$H$3) -> 40.089274 | I13: 0.157274 | J13: =SUMIFS('Representation Overview'!$P$4:$P$155,'Representation Overview'!$B$4:$B$155,'Representation Req. Summary'!B13) -> 37.8035 | L13: Go with line request
B14: YKY | C14: =SUMIFS('Representation Overview'!$M$4:$M$155,'Representation Overview'!$B$4:$B$155,"="&$B14,'Representation Overview'!$F$4:$F$155,"="&C$3) -> 30.932 | D14: =SUMIFS('Representation Overview'!$M$4:$M$155,'Representation Overview'!$B$4:$B$155,"="&$B14,'Representation Overview'!$F$4:$F$155,"="&D$3) -> 2.9 | E14: =SUMIFS('Representation Overview'!$M$4:$M$155,'Representation Overview'!$B$4:$B$155,"="&$B14,'Representation Overview'!$F$4:$F$155,"="&E$3) -> 8.05 | F14: =SUMIFS('Representation Overview'!$M$4:$M$155,'Representation Overview'!$B$4:$B$155,"="&$B14,'Representation Overview'!$F$4:$F$155,"="&F$3) -> 0 | G14: 41.882 | H14: =SUMIFS('Final Input'!$L$5:$L$106,'Final Input'!$A$5:$A$106,"="&$B14,'Final Input'!$M$5:$M$106,"="&$H$3) -> 42.1731216 | I14: 0.2911216 | J14: =SUMIFS('Representation Overview'!$P$4:$P$155,'Representation Overview'!$B$4:$B$155,'Representation Req. Summary'!B14) -> 39.11722 | K14: Existing scheme asks need to go into New Request column | L14: Go with line request
B15: AFW | C15: =SUMIFS('Representation Overview'!$M$4:$M$155,'Representation Overview'!$B$4:$B$155,"="&$B15,'Representation Overview'!$F$4:$F$155,"="&C$3) -> 221.638 | D15: =SUMIFS('Representation Overview'!$M$4:$M$155,'Representation Overview'!$B$4:$B$155,"="&$B15,'Representation Overview'!$F$4:$F$155,"="&D$3) -> 10.78995 | E15: =SUMIFS('Representation Overview'!$M$4:$M$155,'Representation Overview'!$B$4:$B$155,"="&$B15,'Representation Overview'!$F$4:$F$155,"="&E$3) -> 12.82 | F15: =SUMIFS('Representation Overview'!$M$4:$M$155,'Representation Overview'!$B$4:$B$155,"="&$B15,'Representation Overview'!$F$4:$F$155,"="&F$3) -> 0 | G15: 245.24795 | H15: =SUMIFS('Final Input'!$L$5:$L$106,'Final Input'!$A$5:$A$106,"="&$B15,'Final Input'!$M$5:$M$106,"="&$H$3) -> 243.507 | I15: -1.74095 | J15: =SUMIFS('Representation Overview'!$P$4:$P$155,'Representation Overview'!$B$4:$B$155,'Representation Req. Summary'!B15) -> 149.706854 | K15: Close, review in detail
B16: BRL | C16: =SUMIFS('Representation Overview'!$M$4:$M$155,'Representation Overview'!$B$4:$B$155,"="&$B16,'Representation Overview'!$F$4:$F$155,"="&C$3) -> 82.483 | D16: =SUMIFS('Representation Overview'!$M$4:$M$155,'Representation Overview'!$B$4:$B$155,"="&$B16,'Representation Overview'!$F$4:$F$155,"="&D$3) -> 1.72 | E16: =SUMIFS('Representation Overview'!$M$4:$M$155,'Representation Overview'!$B$4:$B$155,"="&$B16,'Representation Overview'!$F$4:$F$155,"="&E$3) -> 0 | F16: =SUMIFS('Representation Overview'!$M$4:$M$155,'Representation Overview'!$B$4:$B$155,"="&$B16,'Representation Overview'!$F$4:$F$155,"="&F$3) -> 0 | G16: =SUM(C16:F16) -> 84.203 | H16: =SUMIFS('Final Input'!$L$5:$L$106,'Final Input'!$A$5:$A$106,"="&$B16,'Final Input'!$M$5:$M$106,"="&$H$3) -> 84.200211 | I16: -0.002789 | J16: =SUMIFS('Representation Overview'!$P$4:$P$155,'Representation Overview'!$B$4:$B$155,'Representation Req. Summary'!B16) -> 53.35525 | K16: Reallocation of £30.693m from line CW3.120 for Stowey WTW and Littleton WTW. Potentially company already submitted correct RWD cost Reallocated Littleton and Stowey WTW resilience to RWD
B17: PRT | C17: =SUMIFS('Representation Overview'!$M$4:$M$155,'Representation Overview'!$B$4:$B$155,"="&$B17,'Representation Overview'!$F$4:$F$155,"="&C$3) -> 39.275 | D17: =SUMIFS('Representation Overview'!$M$4:$M$155,'Representation Overview'!$B$4:$B$155,"="&$B17,'Representation Overview'!$F$4:$F$155,"="&D$3) -> 0 | E17: =SUMIFS('Representation Overview'!$M$4:$M$155,'Representation Overview'!$B$4:$B$155,"="&$B17,'Representation Overview'!$F$4:$F$155,"="&E$3) -> 0 | F17: =SUMIFS('Representation Overview'!$M$4:$M$155,'Representation Overview'!$B$4:$B$155,"="&$B17,'Representation Overview'!$F$4:$F$155,"="&F$3) -> 0 | G17: 39.275 | H17: =SUMIFS('Final Input'!$L$5:$L$106,'Final Input'!$A$5:$A$106,"="&$B17,'Final Input'!$M$5:$M$106,"="&$H$3) -> 39.27596 | I17: 0.00096 | J17: =SUMIFS('Representation Overview'!$P$4:$P$155,'Representation Overview'!$B$4:$B$155,'Representation Req. Summary'!B17) -> 29.0873 | K17: Looks like PRT haven't included previous schemes in FD request. Roughly same amount missing as in the | L17: Go with line request
B18: SEW | C18: =SUMIFS('Representation Overview'!$M$4:$M$155,'Representation Overview'!$B$4:$B$155,"="&$B18,'Representation Overview'!$F$4:$F$155,"="&C$3) -> 31.378 | D18: =SUMIFS('Representation Overview'!$M$4:$M$155,'Representation Overview'!$B$4:$B$155,"="&$B18,'Representation Overview'!$F$4:$F$155,"="&D$3) -> 7.13 | E18: =SUMIFS('Representation Overview'!$M$4:$M$155,'Representation Overview'!$B$4:$B$155,"="&$B18,'Representation Overview'!$F$4:$F$155,"="&E$3) -> 25.56 | F18: =SUMIFS('Representation Overview'!$M$4:$M$155,'Representation Overview'!$B$4:$B$155,"="&$B18,'Representation Overview'!$F$4:$F$155,"="&F$3) -> 0 | G18: 64.068 | H18: =SUMIFS('Final Input'!$L$5:$L$106,'Final Input'!$A$5:$A$106,"="&$B18,'Final Input'!$M$5:$M$106,"="&$H$3) -> 64.07648057 | I18: =H18-G18 -> 0.008480566606 | J18: =SUMIFS('Representation Overview'!$P$4:$P$155,'Representation Overview'!$B$4:$B$155,'Representation Req. Summary'!B18) -> 61.437424 | K18: Minimal difference | L18: Go with line request
B19: SSC | C19: =SUMIFS('Representation Overview'!$M$4:$M$155,'Representation Overview'!$B$4:$B$155,"="&$B19,'Representation Overview'!$F$4:$F$155,"="&C$3) -> 3.8738 | D19: =SUMIFS('Representation Overview'!$M$4:$M$155,'Representation Overview'!$B$4:$B$155,"="&$B19,'Representation Overview'!$F$4:$F$155,"="&D$3) -> 6.309 | E19: =SUMIFS('Representation Overview'!$M$4:$M$155,'Representation Overview'!$B$4:$B$155,"="&$B19,'Representation Overview'!$F$4:$F$155,"="&E$3) -> 15.514818 | F19: =SUMIFS('Representation Overview'!$M$4:$M$155,'Representation Overview'!$B$4:$B$155,"="&$B19,'Representation Overview'!$F$4:$F$155,"="&F$3) -> 0 | G19: 25.697618 | H19: =SUMIFS('Final Input'!$L$5:$L$106,'Final Input'!$A$5:$A$106,"="&$B19,'Final Input'!$M$5:$M$106,"="&$H$3) -> 26.36887621 | I19: 0.67125821 | J19: =SUMIFS('Representation Overview'!$P$4:$P$155,'Representation Overview'!$B$4:$B$155,'Representation Req. Summary'!B19) -> 31.360549 | L19: Go with line request
B20: SES | C20: =SUMIFS('Representation Overview'!$M$4:$M$155,'Representation Overview'!$B$4:$B$155,"="&$B20,'Representation Overview'!$F$4:$F$155,"="&C$3) -> 0 | D20: =SUMIFS('Representation Overview'!$M$4:$M$155,'Representation Overview'!$B$4:$B$155,"="&$B20,'Representation Overview'!$F$4:$F$155,"="&D$3) -> 0 | E20: =SUMIFS('Representation Overview'!$M$4:$M$155,'Representation Overview'!$B$4:$B$155,"="&$B20,'Representation Overview'!$F$4:$F$155,"="&E$3) -> 5.31 | F20: =SUMIFS('Representation Overview'!$M$4:$M$155,'Representation Overview'!$B$4:$B$155,"="&$B20,'Representation Overview'!$F$4:$F$155,"="&F$3) -> 0 | G20: =SUM(C20:E20) -> 5.31 | H20: =SUMIFS('Final Input'!$L$5:$L$106,'Final Input'!$A$5:$A$106,"="&$B20,'Final Input'!$M$5:$M$106,"="&$H$3) -> 5.21 | I20: -0.1 | J20: =SUMIFS('Representation Overview'!$P$4:$P$155,'Representation Overview'!$B$4:$B$155,'Representation Req. Summary'!B20) -> 8.5018 | L20: Go with line request
B21: Total | C21: =SUM(C4:C20) -> 1312.510883 | D21: =SUM(D4:D20) -> 145.4063436 | E21: 218.896218 | F21: 30.2 | G21: =SUM(G4:G20) -> 1707.013444 | H21: =SUM(H4:H20) -> 1708.466378 | I21: =SUM(I4:I20) -> 1.452933399 | J21: 1267.077831

Sheet Representation All. Summary
A1: Representation Allowance Summary
B3: Company | C3: Deep Dive | D3: Shallow Dive | E3: Modelled | F3: Transitional/ Accelerated | G3: Total Allowance (£m) | H3: Line Amount Requested (£m) | I3: Difference | J3: Comments
B4: AFW | C4: =SUMIFS('Representation Overview'!$P$4:$P$155,'Representation Overview'!$B$4:$B$155,"="&$B4,'Representation Overview'!$F$4:$F$155,"="&C$3) -> 126.114643 | D4: =SUMIFS('Representation Overview'!$P$4:$P$155,'Representation Overview'!$B$4:$B$155,"="&$B4,'Representation Overview'!$F$4:$F$155,"="&D$3) -> 10.733691 | E4: =SUMIFS('Representation Overview'!$P$4:$P$155,'Representation Overview'!$B$4:$B$155,"="&$B4,'Representation Overview'!$F$4:$F$155,"="&E$3) -> 12.85852 | F4: =SUMIFS('Representation Overview'!$P$4:$P$155,'Representation Overview'!$B$4:$B$155,"="&$B4,'Representation Overview'!$F$4:$F$155,"="&F$3) -> 0 | G4: =SUM(C4:F4) -> 149.706854 | H4: =SUMIFS('Final Input'!$L$5:$L$106,'Final Input'!$A$5:$A$106,"="&$B4,'Final Input'!$M$5:$M$106,"="&$H$3) -> 243.507 | I4: =H4-G4 -> 93.800146
B5: ANH | C5: =SUMIFS('Representation Overview'!$P$4:$P$155,'Representation Overview'!$B$4:$B$155,"="&$B5,'Representation Overview'!$F$4:$F$155,"="&C$3) -> 136.92 | D5: =SUMIFS('Representation Overview'!$P$4:$P$155,'Representation Overview'!$B$4:$B$155,"="&$B5,'Representation Overview'!$F$4:$F$155,"="&D$3) -> 8.968 | E5: =SUMIFS('Representation Overview'!$P$4:$P$155,'Representation Overview'!$B$4:$B$155,"="&$B5,'Representation Overview'!$F$4:$F$155,"="&E$3) -> 69.249416 | F5: =SUMIFS('Representation Overview'!$P$4:$P$155,'Representation Overview'!$B$4:$B$155,"="&$B5,'Representation Overview'!$F$4:$F$155,"="&F$3) -> 0 | G5: 215.137416 | H5: =SUMIFS('Final Input'!$L$5:$L$106,'Final Input'!$A$5:$A$106,"="&$B5,'Final Input'!$M$5:$M$106,"="&$H$3) -> 225.401 | I5: 10.263584
B6: BRL | C6: =SUMIFS('Representation Overview'!$P$4:$P$155,'Representation Overview'!$B$4:$B$155,"="&$B6,'Representation Overview'!$F$4:$F$155,"="&C$3) -> 51.63525 | D6: =SUMIFS('Representation Overview'!$P$4:$P$155,'Representation Overview'!$B$4:$B$155,"="&$B6,'Representation Overview'!$F$4:$F$155,"="&D$3) -> 1.72 | E6: =SUMIFS('Representation Overview'!$P$4:$P$155,'Representation Overview'!$B$4:$B$155,"="&$B6,'Representation Overview'!$F$4:$F$155,"="&E$3) -> 0 | F6: =SUMIFS('Representation Overview'!$P$4:$P$155,'Representation Overview'!$B$4:$B$155,"="&$B6,'Representation Overview'!$F$4:$F$155,"="&F$3) -> 0 | G6: 53.35525 | H6: =SUMIFS('Final Input'!$L$5:$L$106,'Final Input'!$A$5:$A$106,"="&$B6,'Final Input'!$M$5:$M$106,"="&$H$3) -> 84.200211 | I6: 30.844961
B7: HDD | C7: =SUMIFS('Representation Overview'!$P$4:$P$155,'Representation Overview'!$B$4:$B$155,"="&$B7,'Representation Overview'!$F$4:$F$155,"="&C$3) -> 0 | D7: =SUMIFS('Representation Overview'!$P$4:$P$155,'Representation Overview'!$B$4:$B$155,"="&$B7,'Representation Overview'!$F$4:$F$155,"="&D$3) -> 0 | E7: =SUMIFS('Representation Overview'!$P$4:$P$155,'Representation Overview'!$B$4:$B$155,"="&$B7,'Representation Overview'!$F$4:$F$155,"="&E$3) -> 0 | F7: =SUMIFS('Representation Overview'!$P$4:$P$155,'Representation Overview'!$B$4:$B$155,"="&$B7,'Representation Overview'!$F$4:$F$155,"="&F$3) -> 0 | G7: 0 | H7: =SUMIFS('Final Input'!$L$5:$L$106,'Final Input'!$A$5:$A$106,"="&$B7,'Final Input'!$M$5:$M$106,"="&$H$3) -> 0 | I7: 0
B8: NES | C8: =SUMIFS('Representation Overview'!$P$4:$P$155,'Representation Overview'!$B$4:$B$155,"="&$B8,'Representation Overview'!$F$4:$F$155,"="&C$3) -> 0 | D8: =SUMIFS('Representation Overview'!$P$4:$P$155,'Representation Overview'!$B$4:$B$155,"="&$B8,'Representation Overview'!$F$4:$F$155,"="&D$3) -> 8.047 | E8: =SUMIFS('Representation Overview'!$P$4:$P$155,'Representation Overview'!$B$4:$B$155,"="&$B8,'Representation Overview'!$F$4:$F$155,"="&E$3) -> 0 | F8: =SUMIFS('Representation Overview'!$P$4:$P$155,'Representation Overview'!$B$4:$B$155,"="&$B8,'Representation Overview'!$F$4:$F$155,"="&F$3) -> 0 | G8: 8.047 | H8: =SUMIFS('Final Input'!$L$5:$L$106,'Final Input'!$A$5:$A$106,"="&$B8,'Final Input'!$M$5:$M$106,"="&$H$3) -> 8.051 | I8: 0.004
B9: NWT | C9: =SUMIFS('Representation Overview'!$P$4:$P$155,'Representation Overview'!$B$4:$B$155,"="&$B9,'Representation Overview'!$F$4:$F$155,"="&C$3) -> 60.08670937 | D9: =SUMIFS('Representation Overview'!$P$4:$P$155,'Representation Overview'!$B$4:$B$155,"="&$B9,'Representation Overview'!$F$4:$F$155,"="&D$3) -> 30.43769357 | E9: =SUMIFS('Representation Overview'!$P$4:$P$155,'Representation Overview'!$B$4:$B$155,"="&$B9,'Representation Overview'!$F$4:$F$155,"="&E$3) -> 0 | F9: =SUMIFS('Representation Overview'!$P$4:$P$155,'Representation Overview'!$B$4:$B$155,"="&$B9,'Representation Overview'!$F$4:$F$155,"="&F$3) -> 0 | G9: 90.52440293 | H9: =SUMIFS('Final Input'!$L$5:$L$106,'Final Input'!$A$5:$A$106,"="&$B9,'Final Input'!$M$5:$M$106,"="&$H$3) -> 91.75010156 | I9: 1.225698626
B10: PRT | C10: =SUMIFS('Representation Overview'!$P$4:$P$155,'Representation Overview'!$B$4:$B$155,"="&$B10,'Representation Overview'!$F$4:$F$155,"="&C$3) -> 29.0873 | D10: =SUMIFS('Representation Overview'!$P$4:$P$155,'Representation Overview'!$B$4:$B$155,"="&$B10,'Representation Overview'!$F$4:$F$155,"="&D$3) -> 0 | E10: =SUMIFS('Representation Overview'!$P$4:$P$155,'Representation Overview'!$B$4:$B$155,"="&$B10,'Representation Overview'!$F$4:$F$155,"="&E$3) -> 0 | F10: =SUMIFS('Representation Overview'!$P$4:$P$155,'Representation Overview'!$B$4:$B$155,"="&$B10,'Representation Overview'!$F$4:$F$155,"="&F$3) -> 0 | G10: 29.0873 | H10: =SUMIFS('Final Input'!$L$5:$L$106,'Final Input'!$A$5:$A$106,"="&$B10,'Final Input'!$M$5:$M$106,"="&$H$3) -> 39.27596 | I10: 10.18866
B11: SES | C11: =SUMIFS('Representation Overview'!$P$4:$P$155,'Representation Overview'!$B$4:$B$155,"="&$B11,'Representation Overview'!$F$4:$F$155,"="&C$3) -> 0 | D11: =SUMIFS('Representation Overview'!$P$4:$P$155,'Representation Overview'!$B$4:$B$155,"="&$B11,'Representation Overview'!$F$4:$F$155,"="&D$3) -> 0 | E11: =SUMIFS('Representation Overview'!$P$4:$P$155,'Representation Overview'!$B$4:$B$155,"="&$B11,'Representation Overview'!$F$4:$F$155,"="&E$3) -> 8.5018 | F11: =SUMIFS('Representation Overview'!$P$4:$P$155,'Representation Overview'!$B$4:$B$155,"="&$B11,'Representation Overview'!$F$4:$F$155,"="&F$3) -> 0 | G11: 8.5018 | H11: =SUMIFS('Final Input'!$L$5:$L$106,'Final Input'!$A$5:$A$106,"="&$B11,'Final Input'!$M$5:$M$106,"="&$H$3) -> 5.21 | I11: -3.2918
B12: SEW | C12: =SUMIFS('Representation Overview'!$P$4:$P$155,'Representation Overview'!$B$4:$B$155,"="&$B12,'Representation Overview'!$F$4:$F$155,"="&C$3) -> 26.579 | D12: =SUMIFS('Representation Overview'!$P$4:$P$155,'Representation Overview'!$B$4:$B$155,"="&$B12,'Representation Overview'!$F$4:$F$155,"="&D$3) -> 6.417 | E12: =SUMIFS('Representation Overview'!$P$4:$P$155,'Representation Overview'!$B$4:$B$155,"="&$B12,'Representation Overview'!$F$4:$F$155,"="&E$3) -> 28.441424 | F12: =SUMIFS('Representation Overview'!$P$4:$P$155,'Representation Overview'!$B$4:$B$155,"="&$B12,'Representation Overview'!$F$4:$F$155,"="&F$3) -> 0 | G12: 61.437424 | H12: =SUMIFS('Final Input'!$L$5:$L$106,'Final Input'!$A$5:$A$106,"="&$B12,'Final Input'!$M$5:$M$106,"="&$H$3) -> 64.07648057 | I12: 2.639056567
B13: SRN | C13: =SUMIFS('Representation Overview'!$P$4:$P$155,'Representation Overview'!$B$4:$B$155,"="&$B13,'Representation Overview'!$F$4:$F$155,"="&C$3) -> 11.52103 | D13: =SUMIFS('Representation Overview'!$P$4:$P$155,'Representation Overview'!$B$4:$B$155,"="&$B13,'Representation Overview'!$F$4:$F$155,"="&D$3) -> 22.66263 | E13: =SUMIFS('Representation Overview'!$P$4:$P$155,'Representation Overview'!$B$4:$B$155,"="&$B13,'Representation Overview'!$F$4:$F$155,"="&E$3) -> 53.93793 | F13: =SUMIFS('Representation Overview'!$P$4:$P$155,'Representation Overview'!$B$4:$B$155,"="&$B13,'Representation Overview'!$F$4:$F$155,"="&F$3) -> 0 | G13: 88.12159 | H13: =SUMIFS('Final Input'!$L$5:$L$106,'Final Input'!$A$5:$A$106,"="&$B13,'Final Input'!$M$5:$M$106,"="&$H$3) -> 90.124 | I13: 2.00241
B14: SSC | C14: =SUMIFS('Representation Overview'!$P$4:$P$155,'Representation Overview'!$B$4:$B$155,"="&$B14,'Representation Overview'!$F$4:$F$155,"="&C$3) -> 3.8738 | D14: =SUMIFS('Representation Overview'!$P$4:$P$155,'Representation Overview'!$B$4:$B$155,"="&$B14,'Representation Overview'!$F$4:$F$155,"="&D$3) -> 6.309 | E14: =SUMIFS('Representation Overview'!$P$4:$P$155,'Representation Overview'!$B$4:$B$155,"="&$B14,'Representation Overview'!$F$4:$F$155,"="&E$3) -> 21.177749 | F14: =SUMIFS('Representation Overview'!$P$4:$P$155,'Representation Overview'!$B$4:$B$155,"="&$B14,'Representation Overview'!$F$4:$F$155,"="&F$3) -> 0 | G14: 31.360549 | H14: =SUMIFS('Final Input'!$L$5:$L$106,'Final Input'!$A$5:$A$106,"="&$B14,'Final Input'!$M$5:$M$106,"="&$H$3) -> 26.36887621 | I14: -4.99167279
B15: SVE | C15: =SUMIFS('Representation Overview'!$P$4:$P$155,'Representation Overview'!$B$4:$B$155,"="&$B15,'Representation Overview'!$F$4:$F$155,"="&C$3) -> 298.7279 | D15: =SUMIFS('Representation Overview'!$P$4:$P$155,'Representation Overview'!$B$4:$B$155,"="&$B15,'Representation Overview'!$F$4:$F$155,"="&D$3) -> 6.001 | E15: =SUMIFS('Representation Overview'!$P$4:$P$155,'Representation Overview'!$B$4:$B$155,"="&$B15,'Representation Overview'!$F$4:$F$155,"="&E$3) -> 10.16248 | F15: =SUMIFS('Representation Overview'!$P$4:$P$155,'Representation Overview'!$B$4:$B$155,"="&$B15,'Representation Overview'!$F$4:$F$155,"="&F$3) -> 26.68383518 | G15: 341.5752152 | H15: =SUMIFS('Final Input'!$L$5:$L$106,'Final Input'!$A$5:$A$106,"="&$B15,'Final Input'!$M$5:$M$106,"="&$H$3) -> 462.6969877 | I15: 121.1217725
B16: SWB | C16: =SUMIFS('Representation Overview'!$P$4:$P$155,'Representation Overview'!$B$4:$B$155,"="&$B16,'Representation Overview'!$F$4:$F$155,"="&C$3) -> 44.1273 | D16: =SUMIFS('Representation Overview'!$P$4:$P$155,'Representation Overview'!$B$4:$B$155,"="&$B16,'Representation Overview'!$F$4:$F$155,"="&D$3) -> 3.0493 | E16: =SUMIFS('Representation Overview'!$P$4:$P$155,'Representation Overview'!$B$4:$B$155,"="&$B16,'Representation Overview'!$F$4:$F$155,"="&E$3) -> 0 | F16: =SUMIFS('Representation Overview'!$P$4:$P$155,'Representation Overview'!$B$4:$B$155,"="&$B16,'Representation Overview'!$F$4:$F$155,"="&F$3) -> 0 | G16: 47.1766 | H16: =SUMIFS('Final Input'!$L$5:$L$106,'Final Input'!$A$5:$A$106,"="&$B16,'Final Input'!$M$5:$M$106,"="&$H$3) -> 54.012365 | I16: 6.835765
B17: TMS | C17: =SUMIFS('Representation Overview'!$P$4:$P$155,'Representation Overview'!$B$4:$B$155,"="&$B17,'Representation Overview'!$F$4:$F$155,"="&C$3) -> 10.74696 | D17: =SUMIFS('Representation Overview'!$P$4:$P$155,'Representation Overview'!$B$4:$B$155,"="&$B17,'Representation Overview'!$F$4:$F$155,"="&D$3) -> 0 | E17: =SUMIFS('Representation Overview'!$P$4:$P$155,'Representation Overview'!$B$4:$B$155,"="&$B17,'Representation Overview'!$F$4:$F$155,"="&E$3) -> 0 | F17: =SUMIFS('Representation Overview'!$P$4:$P$155,'Representation Overview'!$B$4:$B$155,"="&$B17,'Representation Overview'!$F$4:$F$155,"="&F$3) -> 0 | G17: 10.74696 | H17: =SUMIFS('Final Input'!$L$5:$L$106,'Final Input'!$A$5:$A$106,"="&$B17,'Final Input'!$M$5:$M$106,"="&$H$3) -> 179.116 | I17: 168.36904
B18: WSH | C18: =SUMIFS('Representation Overview'!$P$4:$P$155,'Representation Overview'!$B$4:$B$155,"="&$B18,'Representation Overview'!$F$4:$F$155,"="&C$3) -> 13.702 | D18: =SUMIFS('Representation Overview'!$P$4:$P$155,'Representation Overview'!$B$4:$B$155,"="&$B18,'Representation Overview'!$F$4:$F$155,"="&D$3) -> 29.502 | E18: =SUMIFS('Representation Overview'!$P$4:$P$155,'Representation Overview'!$B$4:$B$155,"="&$B18,'Representation Overview'!$F$4:$F$155,"="&E$3) -> 12.17475 | F18: =SUMIFS('Representation Overview'!$P$4:$P$155,'Representation Overview'!$B$4:$B$155,"="&$B18,'Representation Overview'!$F$4:$F$155,"="&F$3) -> 0 | G18: 55.37875 | H18: =SUMIFS('Final Input'!$L$5:$L$106,'Final Input'!$A$5:$A$106,"="&$B18,'Final Input'!$M$5:$M$106,"="&$H$3) -> 52.414 | I18: -2.96475
B19: WSX | C19: =SUMIFS('Representation Overview'!$P$4:$P$155,'Representation Overview'!$B$4:$B$155,"="&$B19,'Representation Overview'!$F$4:$F$155,"="&C$3) -> 37.8035 | D19: =SUMIFS('Representation Overview'!$P$4:$P$155,'Representation Overview'!$B$4:$B$155,"="&$B19,'Representation Overview'!$F$4:$F$155,"="&D$3) -> 0 | E19: =SUMIFS('Representation Overview'!$P$4:$P$155,'Representation Overview'!$B$4:$B$155,"="&$B19,'Representation Overview'!$F$4:$F$155,"="&E$3) -> 0 | F19: =SUMIFS('Representation Overview'!$P$4:$P$155,'Representation Overview'!$B$4:$B$155,"="&$B19,'Representation Overview'!$F$4:$F$155,"="&F$3) -> 0 | G19: 37.8035 | H19: =SUMIFS('Final Input'!$L$5:$L$106,'Final Input'!$A$5:$A$106,"="&$B19,'Final Input'!$M$5:$M$106,"="&$H$3) -> 40.089274 | I19: 2.285774
B20: YKY | C20: =SUMIFS('Representation Overview'!$P$4:$P$155,'Representation Overview'!$B$4:$B$155,"="&$B20,'Representation Overview'!$F$4:$F$155,"="&C$3) -> 27.8388 | D20: =SUMIFS('Representation Overview'!$P$4:$P$155,'Representation Overview'!$B$4:$B$155,"="&$B20,'Representation Overview'!$F$4:$F$155,"="&D$3) -> 2.9 | E20: =SUMIFS('Representation Overview'!$P$4:$P$155,'Representation Overview'!$B$4:$B$155,"="&$B20,'Representation Overview'!$F$4:$F$155,"="&E$3) -> 8.37842 | F20: =SUMIFS('Representation Overview'!$P$4:$P$155,'Representation Overview'!$B$4:$B$155,"="&$B20,'Representation Overview'!$F$4:$F$155,"="&F$3) -> 0 | G20: 39.11722 | H20: =SUMIFS('Final Input'!$L$5:$L$106,'Final Input'!$A$5:$A$106,"="&$B20,'Final Input'!$M$5:$M$106,"="&$H$3) -> 42.1731216 | I20: 3.0559016
B21: Total | C21: =SUM(C4:C20) -> 878.7641924 | D21: 136.7473146 | E21: 224.882489 | F21: =SUM(F4:F20) -> 26.68383518 | G21: 1267.077831 | H21: 1708.466378 | I21: 441.3885465

Sheet Deep Dives >>

Sheet ANH (NO3)
B1: FINAL DETERMINATION | H1: DRAFT DETERMINATION
H2: Published summary version | M2: To be copied in every template
B3: Company | C3: =I3 -> ANH | H3: Company | I3: ANH | M3: Pass
B4: Scheme/Programme name | C4: =I4 -> Marham and Two Mile Bottom | H4: Scheme/Programme name | I4: Marham and Two Mile Bottom | M4: Partial pass
B5: Scheme/Programme overview | C5: =I5 -> Nitrate schemes | H5: Scheme/Programme overview | I5: Nitrate schemes | M5: Fail
B6: PR24 table line allocation | C6: =I6 -> CW3.99 and CW3.102 | H6: PR24 table line allocation | I6: CW3.99 and CW3.102 | M6: Pass
B7: Total requested in business plan (totex, £m) | C7: =SUMIFS('Representation Overview'!$M$4:$M$155,'Representation Overview'!$B$4:$B$155,C3) -> 222.767 | H7: Total requested in business plan (totex, £m) | I7: 181.734 | M7: Minor concerns
B8: Scheme/Programme value assessed in deep dive (totex, £m) | C8: =SUMIFS('Representation Overview'!$M$4:$M$155,'Representation Overview'!$J$4:$J$155,_xlfn.TEXTAFTER(CELL("filename",A1),"]")) -> 30.99 | H8: Scheme/Programme value assessed in deep dive (totex, £m) | I8: =SUMIFS('Representation Overview'!$M$4:$M$155,'Representation Overview'!$J$4:$J$155,_xlfn.TEXTAFTER(CELL("filename",G1),"]")) -> 30.99 | M8: Some concerns
B9: Overall adjustment | C9: =1-(C10/C8) -> 0.1 | H9: Overall adjustment | I9: =SUM(K13:K16) -> 0.2 | M9: Significant concerns
B10: Totex allowance from deep dive | C10: =SUMIFS('Representation Overview'!$P$4:$P$155,'Representation Overview'!$J$4:$J$155,_xlfn.TEXTAFTER(CELL("filename",A1),"]")) -> 27.891 | H10: Totex allowance from deep dive | I10: =I8*(1-I9) -> 24.792
B12: Criteria | C12: Assessment Comments | D12: Criteria Decision | E12: % Adjustment | F12: Reference (e.g. document and page number) | H12: Criteria | I12: Assessment Comments | J12: Criteria Decision | K12: % Adjustment | L12: Reference (e.g. document and page number)
B13: Need for Enhancement Investment | C13: In the draft determination the proposed investment met the criteria for enhancement investment and additional customer funding. The DWI support the proposed interventions and have served a notice on the company. In its representation the company retains its proposed investment, but it provides no additional supporting evidence. Therefore, we retain our draft determination approach for the final determination and do not apply an adjustment. | D13: Pass | E13: 0 | F13: N/A | H13: Need for Enhancement Investment | I13: Pass: The investment meets the criteria for enhancement investment and additional customer funding. The company's proposed investment relates to addressing water quality risks. This is supported by the Drinking Water Inspectorate as it has served notices on the company under regulation 28(4) of the Water Supply (Water Quality) Regulations 2016 (as amended) references ANH-2023-00008 (Marham) and ANH-2023-00015 (Two Mile Bottom) that the investment is the most appropriate steps to address water quality risks within the 2025-2030 period. The company also provides sufficient and convincing evidence to show there is no overlap with previous enhancement funding. | J13: Pass | K13: 0 | L13: ANH26 Enhancement Strategies, section 11.1 Nitrates, p163-174
B14: Best Option for Customers | C14: In the draft determination we had minor concerns that the investment was the best option for customers and applied an adjustment. In its representation the company provides sufficient and convincing evidence to address our concerns. Therefore, for the final determination, the proposed investment meets the enhancement criteria for the best option for customers and we do not apply an adjustment. In the draft determination the company provided limited evidence with respect to third-party nitrate reduction calculations to demonstrate the scheme is cost beneficial in comparison to benchmarks. In its representation the company provides further supporting evidence relating to the options considered and cost benefit analysis. The company provides third-party nitrate reduction calculations for both schemes based on the preferred programme level option. The company provides sufficient and convincing evidence that its proposed investment meets the enhancement criteria for best option for customers. Therefore, for the final determination we do not apply an adjustment. | D14: Pass | E14: 0 | F14: ANH_DD_018-Resilient-to-flood-enhancement strategy.pdf, p 53-58) | H14: Best Option for Customers | I14: Minor concerns: We have minor concerns whether the investment is the best option for customers. The company considers a range of alternative options but does not provide sufficient and convincing evidence to demonstrate that the chosen options are the most cost beneficial. ​ The company states that a wide range of options have been considered. However, the company has not provided any of the third-party nitrate reduction calculations alongside the enhancement case supporting narrative. These calculations would provide more background to the optioneering process and demonstrate that the chosen options are the most cost beneficial in comparison to benchmarks. | J14: Minor concerns | K14: 0.1 | L14: ANH26 Enhancement Strategies, section 11.1 Nitrates, p168-174
B15: Cost Efficiency | C15: In the draft determination we had minor concerns that the proposed investment was efficient and applied an adjustment. In its representation the company includes its proposed investment submitted in its October 2023 business plan, but it provides no additional supporting evidence. Therefore, we retain our draft determination approach for the final determination. In the draft determination we had minor concerns as whilst the company provided some benchmarking and assurance across aspects of the programme this was not consistently applied for all options. It lacked a detailed build-up of option costs and benchmarking to provide more confidence in the costing approach. In its representation the company provides no additional supporting evidence of consistently applying benchmarking and assurance to these schemes . No additional detailed build-up of option costs and benchmarking at scheme level has been provided. Therefore, for our final determination we apply a 10% adjustment. | D15: Minor concerns | E15: 0.1 | F15: ANH_DD_018-Resilient-to-flood-enhancement strategy.pdf, p 58) | H15: Cost Efficiency | I15: Minor concerns: We have minor concerns whether the investment is efficient. The company provides a description of the costing methodology and third-party benchmarking, but the approach does not cover all aspects of the deep dived schemes.​ The company provides some benchmarking and assurance across aspects of the programme, however this is not consistently applied for all options. Detailed build-up of option costs and benchmarking would provide more confidence in the costing approach. ​ The company states that costs were developed from the ground up using unit cost databases (which use historical actual delivery costs) and specialist advice. Additionally, external cost consultants have been used to benchmark costs for nitrate removal schemes. The company states that third-party assurance of nitrate reduction costs has been undertaken. | J15: Minor concerns | K15: 0.1 | L15: ANH26 Enhancement Strategies, section 11.1 Nitrates, p171-174
B16: Customer Protection | C16: For the final determination we apply a price control deliverable (PCD) on all raw water deterioration schemes based on DWI legal instruments and acknowledged actions. We discuss the PCD and our considerations of any consultation responses received in the Price Control Deliverables Appendix. We note that failure to comply with a DWI notice under regulation 28(4) of the Water Supply (Water Quality) Regulations 2016 (as amended) or an undertaking given under section 19 of the Water Industry Act 1991 (as amended) can result in further enforcement action. Failure to deliver an Acknowledged Action may result in formal enforcement action. | D16: Pass | E16: n/a | F16: N/A | H16: Customer Protection | I16: Pass: We accept that the company's proposals protects customers from non or under delivery. The company states that statutory obligations served from the DWI and a nitrate price control deliverable (PCD) provides sufficient customer protection. ​ For consistency across companies with enhancement line expenditure, we are introducing a common PCD based on DWI legal instruments, please see Expenditure allowances document for decisions on customer protection. We note that failure to comply with the DWI notice under regulation 28(4) of the Water Supply (Water Quality) Regulations 2016 (as amended) can result in further enforcement action. | J16: Pass | K16: NA | L16: ANH26 Enhancement strategy-Resilience to drought&flood.pdf, p183-184 ANH37 Price control deliverables 101123.pdf, p52-54
B18: End of published version | H18: End of published version

Sheet ANH (PFAS)
B1: FINAL DETERMINATION | H1: DRAFT DETERMINATION
H2: Published summary version | M2: To be copied in every template
B3: Company | C3: =I3 -> ANH | H3: Company | I3: ANH | M3: Pass
B4: Scheme/Programme Reference | C4: =I4 -> PFAS Virgin GAC Media Replacement at multiple sites; Ulceby and Parsonage Street | H4: Scheme/Programme Reference | I4: PFAS Virgin GAC Media Replacement at multiple sites; Ulceby and Parsonage Street | M4: Partial pass
B5: Scheme/Programme Category | C5: =I5 -> PFAS | H5: Scheme/Programme Category | I5: PFAS | M5: Fail
B6: PR24 Allocation Table Line | C6: =I6 -> CW3.99 and CW3.102 | H6: PR24 Allocation Table Line | I6: CW3.99 and CW3.102 | M6: Pass
B7: Business Plan TOTEX (£m) | C7: =SUMIFS('Representation Overview'!$M$4:$M$155,'Representation Overview'!$B$4:$B$155,C3) -> 222.767 | H7: Business Plan TOTEX (£m) | I7: 181.734 | M7: Minor concerns
B8: Scheme/Programme TOTEX (£m) | C8: =SUMIFS('Representation Overview'!$M$4:$M$155,'Representation Overview'!$J$4:$J$155,_xlfn.TEXTAFTER(CELL("filename",A1),"]")) -> 109.029 | H8: Scheme/Programme TOTEX (£m) | I8: 67.993 | M8: Some concerns
B9: Overall Adjustment (%) | C9: =SUM(E13:E16) -> 0 | H9: Overall Adjustment (%) | I9: 0.3 | M9: Significant concerns
B10: TOTEX Allowance (£m) | C10: =C8*(1-C9) -> 109.029 | H10: TOTEX Allowance (£m) | I10: 47.595
B12: Criteria | C12: Assessment Comments | D12: Criteria Decision | E12: % Adjustment | F12: Reference (e.g. document and page number) | H12: Criteria | I12: Assessment Comments | J12: Criteria Decision | K12: % Adjustment | L12: Reference (e.g. document and page number)
B13: Need for Enhancement Investment | C13: In the draft determination the proposed investment met the criteria for enhancement investment and additional customer funding as the Drinking Water Inspectorate has served three notices on the company under regulation 28(4) of the Water Supply (Water Quality) Regulations 2016 references ANH-2023-00017 (PFAS Virgin GAC replacement), ANH-2023-00018 (Ulceby) and ANH-2023-00019 (Parsonage Street). In its representation the company increases the proposed investment (the “revised” investment). This is supported by the Drinking Water Inspectorate as it has served two additional notices on the company under regulation 28(4) of the Water Supply (Water Quality) Regulations 2016 references ANH-2024-00001 (Warren Hill Reservoir / Southfields WTW – GAC) and ANH-2024-00002 (Barrow – GAC) that the investment is the most appropriate steps to address water quality risks within the 2025-2030 period. The company provides sufficient and convincing evidence to demonstrate that the revised investment meets the need for enhancement criteria. Therefore, for the final determination, we do not apply an adjustment . | D13: Pass | E13: 0 | F13: Guidance on the Water Supply (Water Quality) Regulations 2016 (as amended) for England and Water Supply (Water Quality) Regulations 2018 for Wales specific to PFAS (per- and polyfluoroalkyl substances) in drinking water, p6-7 | H13: Need for Enhancement Investment | I13: Pass: The investment meets the criteria for enhancement investment and additional customer funding. The company's proposed investment relates to addressing water quality risks. This is supported by the Drinking Water Inspectorate as it has served notices on the company under regulation 28(4) of the Water Supply (Water Quality) Regulations 2016 (as amended) references ANH-2023-00017 (PFAS GAC replacement), ANH-2023-00018 (Ulceby) and ANH-2023-00019 (Parsonage Street) that the investment is the most appropriate steps to address water quality risks within the 2025-2030 period. ​The company also provides sufficient and convincing evidence to show there is no overlap with previous enhancement funding. | J13: Pass | K13: 0 | L13: ANH26 Enhancement strategy-Resilience to drought&flood.pdf, p175-184
